Body Name,Service Area,Expenses Type,Invoice Payment Date,Transaction Number,Net Amount,Supplier Name,
Manchester City Council,Corporate Services,Building Works,01.05.2020,1906846084,"947,689.00",Apis Assay Technologies Ltd,
Manchester City Council,Chief Executives,Advertising,01.05.2020,5101086803,"30,153.00",Reach Publishing Services Ltd,
Manchester City Council,Childrens & Education Services,Third party payments relating to Voluntary Organisations,01.05.2020,5101086828,"19,227.35",Remedi,
Manchester City Council,Adult Social Care,Registered Nursing Homes Permanent Payments,01.05.2020,5101086791,"14,649.14",Ringway Mews Nursing Home,
Manchester City Council,Adult Social Care,Bed and Breakfast Accommodation Expenditure,01.05.2020,5101086783,"12,600.00",Redacted Personal Information,
Manchester City Council,Manchester Leisure,Payments to Sub-Contractors,01.05.2020,5101086817,"7,000.00",Greater M/cr Tree Station Limited,
Manchester City Council,Regeneration Finance,Professional fees,01.05.2020,5101086744,"6,836.00",Deloitte Mcs Ltd,
Manchester City Council,Regeneration Finance,External repairs and maintenance for buildings,01.05.2020,5101086831,"5,174.78",J Greenwood (Builders) Limited,
Manchester City Council,Childrens & Education Services,Payments for services,01.05.2020,1906841453,"5,089.20",B4L Education Services Ltd,
Manchester City Council,Adult Social Care,Supporting People Payments,01.05.2020,5101086760,"4,468.00",Arawak Walton Housing Association,
Manchester City Council,Hospitality + Trading Services,Funeral and coroner related services,01.05.2020,5101086773,"3,638.00",G E Robinson & Co Ltd,
Manchester City Council,Adult Social Care,Payments for services,01.05.2020,5101086787,"3,500.00",Cais Ltd,
Manchester City Council,Adult Social Care,Payments for services,01.05.2020,5101086788,"3,500.00",Cais Ltd,
Manchester City Council,Chief Executives,Agency staff provision,01.05.2020,5101086798,"3,303.36",Ashberry Recruitment Ltd,
Manchester City Council,Childrens & Education Services,Third party payments relating to Voluntary Organisations,01.05.2020,5101086829,"3,250.00",Remedi,
Manchester City Council,Adult Social Care,Payments for services,01.05.2020,5101086786,"2,982.00",Delphi Medical,
Manchester City Council,Hospitality + Trading Services,Funeral and coroner related services,01.05.2020,5101086772,"2,953.53",G E Robinson & Co Ltd,
Manchester City Council,Hospitality + Trading Services,Funeral and coroner related services,01.05.2020,5101086771,"2,826.00",G E Robinson & Co Ltd,
Manchester City Council,Childrens & Education Services,Home Care ,01.05.2020,5101086819,"2,767.99",Vision Support Social Ltd,
Manchester City Council,Hospitality + Trading Services,Rents,01.05.2020,1906846551,"2,573.25",CBRE Ltd,
Manchester City Council,Hospitality + Trading Services,Rents,01.05.2020,1906846552,"2,573.25",CBRE Ltd,
Manchester City Council,Adult Social Care,Payments for services,01.05.2020,5101086789,"2,500.00",Cais Ltd,
Manchester City Council,Manchester Leisure,External repairs and maintenance for buildings,01.05.2020,5101086780,"1,500.00",LABOSPORT,
Manchester City Council,Adult Social Care,Home Care ,01.05.2020,5101086790,"1,492.26",Standwalk Ltd,
Manchester City Council,Regeneration Finance,Professional fees,01.05.2020,5101086744,"1,429.00",Deloitte Mcs Ltd,
Manchester City Council,Hospitality + Trading Services,Funeral and coroner related services,01.05.2020,5101086775,"1,388.00",G E Robinson & Co Ltd,
Manchester City Council,Manchester Leisure,Grant and subscriptions awarded,01.05.2020,5101086745,"1,198.00",Friends of Beech Road Park,
Manchester City Council,Childrens & Education Services,Home Care ,01.05.2020,5101086818,892.90,Vision Support Social Ltd,
Manchester City Council,Childrens & Education Services,Day Care Payments,01.05.2020,5101086804,611.00,Bizzie Kidz Nursery Ltd,
Manchester City Council,Manchester Leisure,Professional fees,01.05.2020,5101086779,600.00,Redacted Personal Information,
Manchester City Council,Manchester Leisure,Goods purchased for resale in Council outlets,01.05.2020,5101086820,524.41,Redacted Personal Information,
Manchester City Council,Regeneration Finance,External repairs and maintenance for buildings,01.05.2020,5101086756,500.00,Manchester Working Ltd,
Manchester City Council,Manchester Leisure,Professional fees,01.05.2020,5101086813,500.00,Redacted Personal Information,
Manchester City Council,Adult Social Care,Payments for services,01.05.2020,5101086785,"-2,982.00",Delphi Medical,
Manchester City Council,Adult Social Care,Third party payments to Health Authority,04.05.2020,5101086855,"873,083.33",Central Mcr Uni Hospital t/a,
Manchester City Council,Adult Social Care,Third party payments to Health Authority,04.05.2020,5101086852,"499,070.50",Central Mcr Uni Hospital t/a,
Manchester City Council,Adult Social Care,Third party payments to Health Authority,04.05.2020,5101086850,"287,011.17",Central Mcr Uni Hospital t/a,
Manchester City Council,Adult Social Care,Rents,04.05.2020,5101087068,"83,168.43",Accommodation Links Ltd,
Manchester City Council,Adult Social Care,Third party payments to Health Authority,04.05.2020,5101086849,"83,166.67",Central Mcr Uni Hospital t/a,
Manchester City Council,Adult Social Care,Rents,04.05.2020,5101086943,"82,614.14",Accommodation Links Ltd,
Manchester City Council,Chief Executives,Grant Payments,04.05.2020,5101087044,"67,000.00",National College For Digital Skills,
Manchester City Council,Adult Social Care,Rents,04.05.2020,5101086950,"66,080.44",Mears Limited,
Manchester City Council,Adult Social Care,Rents,04.05.2020,5101086880,"60,808.14",Mears Limited,
Manchester City Council,General Fund,Levies,04.05.2020,1906845996,"55,899.00",Environment Agency,
Manchester City Council,Adult Social Care,Rents,04.05.2020,5101086883,"54,490.94",Mears Limited,
Manchester City Council,Hospitality + Trading Services,Compensation Payments,04.05.2020,1906846801,"50,000.00",Irwin Mitchell Solicitors,
Manchester City Council,Manchester Leisure,Third party payments relating to Voluntary Organisations,04.05.2020,5101087031,"50,000.00",Cityco,
Manchester City Council,Adult Social Care,Third party payments to Health Authority,04.05.2020,5101086851,"46,262.83",Central Mcr Uni Hospital t/a,
Manchester City Council,Adult Social Care,Third party payments relating to Voluntary Organisations,04.05.2020,5101086990,"40,000.00",Manchester Carers Centre,
Manchester City Council,Highways Services,Professional fees,04.05.2020,5101086940,"33,000.00",Parking Matters Ltd,
Manchester City Council,Childrens & Education Services,Payments for services,04.05.2020,5101086959,"30,772.25",Pure Innovations Ltd,
Manchester City Council,Adult Social Care,Rents,04.05.2020,5101086953,"28,803.03",United Property Management Ltd,
Manchester City Council,Chief Executives,Works and associated costs for Land and Buildings,04.05.2020,5101087065,"28,000.00",BLACC Ltd,
Manchester City Council,Adult Social Care,Third party payments to Health Authority,04.05.2020,5101086850,"20,833.33",Central Mcr Uni Hospital t/a,
Manchester City Council,Chief Executives,Agency staff provision,04.05.2020,5101086947,"20,642.86",Deekay Technical Recruitment Ltd,
Manchester City Council,Environment and Operations,Construction Works,04.05.2020,5101086795,"20,400.00",J.Hopkins (Contractors) Ltd.,
Manchester City Council,Corporate Services,Works and associated costs for Land and Buildings,04.05.2020,5101086908,"19,966.33",ENGIE Regeneration (Bramall) Ltd,
Manchester City Council,Regeneration Finance,Professional fees,04.05.2020,5101087063,"19,327.35",Local Data Company,
Manchester City Council,Regeneration Finance,Third party payments relating to Voluntary Organisations,04.05.2020,5101086865,"18,556.00",Back On Track,
Manchester City Council,Corporate Services,Rents,04.05.2020,1906846361,"16,674.99",Regus Management (UK) Ltd,
Manchester City Council,Adult Social Care,Registered Nursing Homes Permanent Payments,04.05.2020,5101086863,"15,659.43",Ringway Mews Nursing Home,
Manchester City Council,Adult Social Care,Third party payments to Health Authority,04.05.2020,5101086850,"15,371.75",Central Mcr Uni Hospital t/a,
Manchester City Council,Highways Services,Professional fees,04.05.2020,5101086944,"15,000.00",Parking Matters Ltd,
Manchester City Council,Hospitality + Trading Services,Compensation Payments,04.05.2020,1906846803,"15,000.00",Irwin Mitchell Solicitors,
Manchester City Council,Adult Social Care,Rents,04.05.2020,5101086932,"14,970.75",AJD Property Limited,
Manchester City Council,Chief Executives,Agency staff provision,04.05.2020,5101086946,"14,790.00",Triad Resourcing,
Manchester City Council,Adult Social Care,Third party payments relating to Voluntary Organisations,04.05.2020,5101086872,"14,662.62",Breakthrough Uk Ltd,
Manchester City Council,Childrens & Education Services,Professional fees,04.05.2020,1906812422,"14,615.00",Survey & Engineering Projects,
Manchester City Council,Adult Social Care,Third party payments relating to Voluntary Organisations,04.05.2020,5101086898,"13,485.98",The Shaw Centre,
Manchester City Council,Adult Social Care,Third party payments relating to Voluntary Organisations,04.05.2020,5101086998,"12,664.30",Manchester People First,
Manchester City Council,Regeneration Finance,Third party payments relating to Voluntary Organisations,04.05.2020,5101086858,"12,351.00",Back On Track,
Manchester City Council,Adult Social Care,Bed and Breakfast Accommodation Expenditure,04.05.2020,5101086919,"12,268.00",Redacted Personal Information,
Manchester City Council,Adult Social Care,Bed and Breakfast Accommodation Expenditure,04.05.2020,5101086926,"12,084.00",Redacted Personal Information,
Manchester City Council,Chief Executives,Agency staff provision,04.05.2020,5101087023,"11,084.00",Venn Group Ltd,
Manchester City Council,Adult Social Care,Bed and Breakfast Accommodation Expenditure,04.05.2020,5101086929,"10,593.00",Redacted Personal Information,
Manchester City Council,Childrens & Education Services,Payments for services,04.05.2020,5101086963,"9,724.00",Teenage Works,
Manchester City Council,Manchester Leisure,Professional fees,04.05.2020,5101086924,"9,200.00",Walk The Plank Ltd,
Manchester City Council,Childrens & Education Services,Transport Coach Hire,04.05.2020,5101086955,"8,941.00",Redacted Personal Information,
Manchester City Council,Childrens & Education Services,Third party payments to other Local Authorities,04.05.2020,5101086915,"8,854.43",New Bridge School,
Manchester City Council,Adult Social Care,Rents,04.05.2020,5101086934,"8,585.23",AJD Property Limited,
Manchester City Council,Manchester Leisure,Professional fees,04.05.2020,5101086847,"8,500.00",Teamkinetic Ltd,
Manchester City Council,Adult Social Care,Third party payments to Health Authority,04.05.2020,5101086853,"8,455.50",Central Mcr Uni Hospital t/a,
Manchester City Council,Chief Executives,Agency staff provision,04.05.2020,5101087071,"7,552.38",Liquid Personnel Ltd,
Manchester City Council,Adult Social Care,Rents,04.05.2020,5101086923,"7,054.22",Eeven Homes Ltd.,
Manchester City Council,Adult Social Care,Payments for services,04.05.2020,5101086800,"7,008.00",Brook,
Manchester City Council,Manchester Leisure,General Office expenses,04.05.2020,5101086974,"6,952.00",Community Security (North West),
Manchester City Council,Childrens & Education Services,Payments for services,04.05.2020,5101086968,"6,578.46",Cheadle & Marple Sixth Form College,
Manchester City Council,Childrens & Education Services,Third party payments to other Local Authorities,04.05.2020,5101086918,"6,470.00",St Anne's RC High School,
Manchester City Council,Regeneration Finance,Professional fees,04.05.2020,5101086823,"6,375.00",Pannone Corporate LLP,
Manchester City Council,Childrens & Education Services,Third party payments to other Local Authorities,04.05.2020,5101087054,"6,370.00",St James' Catholic High School,
Manchester City Council,Regeneration Finance,External repairs and maintenance for buildings,04.05.2020,1906846785,"6,217.18",Bolton At Home,
Manchester City Council,Adult Social Care,Third party payments relating to Voluntary Organisations,04.05.2020,5101086859,"6,190.46",Talbot House Support Centre,
Manchester City Council,Childrens & Education Services,Third party payments to other Local Authorities,04.05.2020,5101086914,"5,807.08",New Bridge School,
Manchester City Council,Adult Social Care,Bed and Breakfast Accommodation Expenditure,04.05.2020,5101086922,"5,495.00",Hala Guest House,
Manchester City Council,Adult Social Care,Third party payments relating to Voluntary Organisations,04.05.2020,5101086897,"5,312.50",Pure Innovations Ltd,
Manchester City Council,Corporate Services,Works and associated costs for Land and Buildings,04.05.2020,5101086857,"5,250.00",Ramboll UK Limited,
Manchester City Council,Childrens & Education Services,Supported Accommodation,04.05.2020,5101086928,"4,815.00",Bedspace Resource Ltd,
Manchester City Council,Adult Social Care,Rents,04.05.2020,5101086937,"4,806.06",AJD Property Limited,
Manchester City Council,Childrens & Education Services,Third party payments to other Local Authorities,04.05.2020,5101086917,"4,748.10",Thomasson Memorial School,
Manchester City Council,Regeneration Finance,Legal Fees,04.05.2020,1906844570,"4,029.09",Addleshaw Goddard Solicitors,
Manchester City Council,Corporate Services,Equipment,04.05.2020,5101086921,"3,982.00",Arrow County Supplies,
Manchester City Council,Adult Social Care,Third party payments relating to Voluntary Organisations,04.05.2020,5101086872,"3,944.77",Breakthrough Uk Ltd,
Manchester City Council,Regeneration Finance,External repairs and maintenance for buildings,04.05.2020,5101086981,"3,350.00",Community Security (North West),
Manchester City Council,Childrens & Education Services,Third party payments to other Local Authorities,04.05.2020,5101087070,"3,256.00",Cheadle Hulme High School,
Manchester City Council,Adult Social Care,Third party payments to Health Authority,04.05.2020,5101086850,"3,040.58",Central Mcr Uni Hospital t/a,
Manchester City Council,Adult Social Care,Rents,04.05.2020,5101086989,"2,999.40",Mosscare St Vincent's Housing,
Manchester City Council,Childrens & Education Services,Professional fees,04.05.2020,1906844568,"2,823.20",Target Psychology Ltd,
Manchester City Council,Corporate Services,Equipment,04.05.2020,5101086920,"2,678.80",Arrow County Supplies,
Manchester City Council,Manchester Leisure,Professional fees,04.05.2020,1906844563,"2,500.00",AK Arts,
Manchester City Council,Adult Social Care,Third party payments to Health Authority,04.05.2020,5101086854,"2,500.00",Central Mcr Uni Hospital t/a,
Manchester City Council,Childrens & Education Services,Third party payments to other Local Authorities,04.05.2020,5101086916,"2,313.68",New Bridge School,
Manchester City Council,Adult Social Care,Equipment,04.05.2020,5101086987,"2,280.00",Tunstall Healthcare (UK) Ltd,
Manchester City Council,Adult Social Care,Compensation Payments,04.05.2020,1906848321,"2,275.00",Liberata,
Manchester City Council,Childrens & Education Services,Expenditure re Internal Trading Ordered Externally,04.05.2020,5101086864,"2,159.20",Language Line Ltd,
Manchester City Council,Childrens & Education Services,Payments for services,04.05.2020,5101086966,"2,050.00",TMP College,
Manchester City Council,Corporate Services,Professional fees,04.05.2020,5101086870,"1,895.75",Manchester Working Ltd,
Manchester City Council,Manchester Leisure,Special Events,04.05.2020,5101086876,"1,746.00",Event Technical Support,
Manchester City Council,Manchester Leisure,Special Events,04.05.2020,5101086877,"1,612.00",Event Technical Support,
Manchester City Council,Childrens & Education Services,Third party payments to other Local Authorities,04.05.2020,5101086913,"1,594.26",New Bridge School,
Manchester City Council,Manchester Leisure,Hire of Equipment,04.05.2020,5101086878,"1,578.00",Event Technical Support,
Manchester City Council,Childrens & Education Services,Payments for services,04.05.2020,5101086840,"1,577.11",Apollo Home Healthcare Ltd,
Manchester City Council,Manchester Leisure,Building Materials for direct delivery,04.05.2020,5101087000,"1,500.00",Gorton Events Committee,
Manchester City Council,Adult Social Care,Compensation Payments,04.05.2020,1906846798,"1,500.00",Anthony Hodari Solicitors,
Manchester City Council,Manchester Leisure,Equipment,04.05.2020,5101086836,"1,450.00",Massey & Harris (Engrg) Ltd,
Manchester City Council,Childrens & Education Services,Payments for services,04.05.2020,5101087040,"1,380.34",The Together Trust,
Manchester City Council,Childrens & Education Services,Professional fees,04.05.2020,1906844564,"1,333.33",St Johns Buildings-Barristers,
Manchester City Council,Adult Social Care,Rents,04.05.2020,1906848314,"1,296.44",Manchester Letting,
Manchester City Council,Manchester Leisure,Special Events,04.05.2020,5101086879,"1,277.00",Event Technical Support,
Manchester City Council,Manchester Leisure,Special Events,04.05.2020,5101086881,"1,274.00",Event Technical Support,
Manchester City Council,Childrens & Education Services,Payments for services,04.05.2020,5101087039,"1,240.89",The Together Trust,
Manchester City Council,Manchester Leisure,Hire of Equipment,04.05.2020,5101086882,"1,223.64",Event Technical Support,
Manchester City Council,Hospitality + Trading Services,Funeral and coroner related services,04.05.2020,5101086873,"1,168.57",ECE Consultancy,
Manchester City Council,Adult Social Care,Third party payments to Health Authority,04.05.2020,1906846362,"1,020.39",Homerton University Hospital NHS FT,
Manchester City Council,Adult Social Care,Furniture,04.05.2020,5101086960,"1,006.00",Camilla Carpets Ltd,
Manchester City Council,Childrens & Education Services,Professional fees,04.05.2020,1906844482,947.92,Redacted Personal Information,
Manchester City Council,Environment and Operations,Construction Works,04.05.2020,5101086895,900.80,Symology Limited,
Manchester City Council,Chief Executives,Works and associated costs for Land and Buildings,04.05.2020,5101086778,760.00,Armstrong York,
Manchester City Council,Highways Services,Compensation Payments,04.05.2020,1906846001,725.00,Department For Work & Pensions,
Manchester City Council,Adult Social Care,Professional fees,04.05.2020,5101086984,702.00,YOURmedpack Ltd,
Manchester City Council,Leasing,Professional fees,04.05.2020,5101087007,687.50,Arlingclose Ltd,
Manchester City Council,Adult Social Care,Rents,04.05.2020,5101086938,667.33,Amco Management,
Manchester City Council,Adult Social Care,Rents,04.05.2020,5101086942,667.33,Amco Management,
Manchester City Council,Regeneration Finance,External repairs and maintenance for buildings,04.05.2020,5101086971,660.00,Community Security (North West),
Manchester City Council,Regeneration Finance,External repairs and maintenance for buildings,04.05.2020,5101086973,660.00,Community Security (North West),
Manchester City Council,Childrens & Education Services,Professional fees,04.05.2020,1906845994,636.61,Target Psychology Ltd,
Manchester City Council,Regeneration Finance,Subsistence and Conference Expenses,04.05.2020,5101086985,615.00,Institute of Licensing (Events) Ltd,
Manchester City Council,Adult Social Care,Personal needs of client,04.05.2020,5101086906,603.13,Prism Medical UK Carefree Division,
Manchester City Council,Manchester Leisure,Special Events,04.05.2020,5101086884,550.00,Event Technical Support,
Manchester City Council,Manchester Leisure,Catering,04.05.2020,5101086925,530.95,Manchester Art Gallery,
Manchester City Council,Highways Services,Legal Fees,04.05.2020,5101086905,500.00,Redacted Personal Information,
Manchester City Council,Highways Services,Compensation Payments,04.05.2020,1700100606,-725.00,Department For Work & Pensions,
Manchester City Council,Childrens & Education Services,Professional fees,04.05.2020,1700100618,-800.00,NHS England,
Manchester City Council,Childrens & Education Services,Supported Accommodation,04.05.2020,5101086930,"-4,815.00",Bedspace Resource Ltd,
Manchester City Council,Corporate Services,Works and associated costs for Land and Buildings,04.05.2020,5101086856,"-5,250.00",Ramboll UK Limited,
Manchester City Council,Adult Social Care,Third party payments to Health Authority,04.05.2020,5101087099,"-70,833.33",Central Mcr Uni Hospital t/a,
Manchester City Council,Manchester Leisure,External repairs and maintenance for buildings,05.05.2020,5101087186,"208,729.42",Laing O'Rourke Construction Ltd,
Manchester City Council,Adult Social Care,Rents,05.05.2020,5101087080,"119,894.85",T15 Consultancy Ltd,
Manchester City Council,Adult Social Care,Rents,05.05.2020,5101087085,"80,927.07",Manchester Housing Group Ltd,
Manchester City Council,Adult Social Care,Rents,05.05.2020,5101087089,"34,431.20",Housing Social Ltd,
Manchester City Council,Regeneration Finance,Rents,05.05.2020,1906831274,"30,696.00",Vanguard Holdings Ltd,
Manchester City Council,Regeneration Finance,Professional fees,05.05.2020,5101087233,"27,019.74",Faithful & Gould Ltd,
Manchester City Council,Corporate Services,Grant Payments,05.05.2020,5101087192,"25,904.75",CIPFA Business Ltd,
Manchester City Council,Regeneration Finance,Professional fees,05.05.2020,5101087119,"22,035.00",Kpmg Llp,
Manchester City Council,Environment and Operations,Construction Works,05.05.2020,5101087164,"19,054.26",Balfour Beatty Living Places Ltd,
Manchester City Council,Childrens & Education Services,Payments for services,05.05.2020,5101087229,"18,972.00",National Offender Mgt Services,
Manchester City Council,Childrens & Education Services,Payments for services,05.05.2020,5101087218,"17,457.00",National Offender Mgt Services,
Manchester City Council,Chief Executives,Agency staff provision,05.05.2020,5101087273,"13,711.68",Michael Page International,
Manchester City Council,Adult Social Care,Rents,05.05.2020,5101087282,"11,912.42",K L Properties,
Manchester City Council,Environment and Operations,Construction Works,05.05.2020,5101087298,"10,950.00",Transport for Greater Manchester,
Manchester City Council,Chief Executives,Payments to Sub-Contractors,05.05.2020,5101087118,"9,467.00",Sharpfutures Manchester CIC,
Manchester City Council,Regeneration Finance,General Office expenses,05.05.2020,1906844650,"8,348.49",Northenden Players Theatre Club,
Manchester City Council,Childrens & Education Services,Payments for services,05.05.2020,5101087187,"7,813.75",Time Specialist Support Ltd,
Manchester City Council,Childrens & Education Services,Payments for services,05.05.2020,5101087221,"7,440.00",National Offender Mgt Services,
Manchester City Council,Childrens & Education Services,Payments for services,05.05.2020,5101087225,"7,440.00",National Offender Mgt Services,
Manchester City Council,Childrens & Education Services,Payments for services,05.05.2020,5101087232,"7,440.00",National Offender Mgt Services,
Manchester City Council,Childrens & Education Services,Payments for services,05.05.2020,5101087236,"7,440.00",National Offender Mgt Services,
Manchester City Council,Childrens & Education Services,Payments for services,05.05.2020,5101087241,"7,440.00",National Offender Mgt Services,
Manchester City Council,Childrens & Education Services,Payments for services,05.05.2020,5101087230,"7,344.00",National Offender Mgt Services,
Manchester City Council,Regeneration Finance,Professional fees,05.05.2020,5101087226,"7,170.00",Faithful & Gould Ltd,
Manchester City Council,Chief Executives,Third party payments relating to Voluntary Organisations,05.05.2020,5101086935,"6,000.00",North Manchester FM Ltd,
Manchester City Council,Chief Executives,Third party payments relating to Voluntary Organisations,05.05.2020,5101086936,"6,000.00",North Manchester FM Ltd,
Manchester City Council,Chief Executives,Agency staff provision,05.05.2020,5101087278,"4,851.00",Pertemps Professional Recruitment L,
Manchester City Council,Childrens & Education Services,Payments for services,05.05.2020,5101087234,"4,560.00",National Offender Mgt Services,
Manchester City Council,Childrens & Education Services,Professional fees,05.05.2020,1906841677,"4,464.13",Waddington & Son Solicitors,
Manchester City Council,Childrens & Education Services,Professional fees,05.05.2020,1906841571,"4,322.41",Waddington & Son Solicitors,
Manchester City Council,Corporate Services,Vehicle Costs,05.05.2020,1906848322,"3,995.00",Cyclescheme Ltd,
Manchester City Council,Manchester Leisure,Equipment,05.05.2020,5101087334,"3,987.00",The Helping Hand Company Ltd,
Manchester City Council,Childrens & Education Services,Payments for services,05.05.2020,5101087223,"3,672.00",National Offender Mgt Services,
Manchester City Council,Chief Executives,Professional fees,05.05.2020,1906848306,"3,056.25",Weightmans LLP Solicitors,
Manchester City Council,Chief Executives,Compensation Payments,05.05.2020,1906848313,"2,800.00",Redacted Personal Information,
Manchester City Council,Corporate Services,Vehicle Costs,05.05.2020,1906848323,"2,763.00",Cyclescheme Ltd,
Manchester City Council,Childrens & Education Services,Third party payments relating to Voluntary Organisations,05.05.2020,5101087074,"2,598.75",The Big Life Company,
Manchester City Council,Childrens & Education Services,Contract Cleaning External,05.05.2020,1906813236,"2,555.00",Redacted Personal Information,
Manchester City Council,Regeneration Finance,External repairs and maintenance for buildings,05.05.2020,5101087304,"2,300.00",Community Security (North West),
Manchester City Council,Manchester Leisure,Equipment,05.05.2020,5101087390,"1,844.50",The Helping Hand Company Ltd,
Manchester City Council,Adult Social Care,Personal needs of client,05.05.2020,5101087201,"1,780.00",Care & Independence Ltd,
Manchester City Council,Housing Revenue Account,West Gorton Management Fee,05.05.2020,5101087093,"1,765.50",The Guinness Partnership Ltd,
Manchester City Council,Regeneration Finance,Professional fees,05.05.2020,5101087286,"1,750.00",GVA Grimley Ltd,
Manchester City Council,Chief Executives,Professional fees,05.05.2020,1906848307,"1,656.25",Weightmans LLP Solicitors,
Manchester City Council,Childrens & Education Services,Payments for services,05.05.2020,5101087238,"1,200.00",National Offender Mgt Services,
Manchester City Council,Hospitality + Trading Services,Hire of Machinery,05.05.2020,5101087117,"1,091.80",R & M Developments Ltd,
Manchester City Council,Chief Executives,Payments to Sub-Contractors,05.05.2020,5101087247,"1,035.97",Redacted Personal Information,
Manchester City Council,Hospitality + Trading Services,Hire of Machinery,05.05.2020,5101087111,"1,026.55",R & M Developments Ltd,
Manchester City Council,Manchester Leisure,Goods purchased for resale in Council outlets,05.05.2020,5101087163,992.89,Stone Marketing Ltd,
Manchester City Council,Chief Executives,Payments to Sub-Contractors,05.05.2020,5101087258,962.47,Redacted Personal Information,
Manchester City Council,Manchester Leisure,Equipment,05.05.2020,5101087196,900.00,Willfab Ltd,
Manchester City Council,Hospitality + Trading Services,Hire of Machinery,05.05.2020,5101087116,830.80,R & M Developments Ltd,
Manchester City Council,Childrens & Education Services,Supported Accommodation,05.05.2020,5101087081,705.40,MyriadLinks Care Solutions,
Manchester City Council,Childrens Services,Works and associated costs for Land and Buildings,05.05.2020,5101086839,682.00,WYG Engineering Ltd,
Manchester City Council,Childrens & Education Services,Payments for services,05.05.2020,5101087220,663.00,National Offender Mgt Services,
Manchester City Council,Childrens & Education Services,Professional fees,05.05.2020,1906841674,643.75,Waddington & Son Solicitors,
Manchester City Council,Hospitality + Trading Services,Hire of Machinery,05.05.2020,5101087109,623.10,R & M Developments Ltd,
Manchester City Council,Adult Social Care,Third party payments to Health Authority,05.05.2020,1906847662,622.00,Southport & Ormskirk Hospital,
Manchester City Council,Environment and Operations,Professional fees,05.05.2020,5101087112,595.00,Solution Talk LLP,
Manchester City Council,Hospitality + Trading Services,Hire of Machinery,05.05.2020,5101087169,550.00,R & M Developments Ltd,
Manchester City Council,Childrens & Education Services,Payments for services,05.05.2020,5101087220,537.00,National Offender Mgt Services,
Manchester City Council,Adult Social Care,Furniture,05.05.2020,5101087094,501.99,Angel Springs Limited,
Manchester City Council,Adult Social Care,Compensation Payments,05.05.2020,1906844485,500.00,Clyde & Co LLP,
Manchester City Council,Chief Executives,Compensation Payments,05.05.2020,1906846786,500.00,Knights Plc,
Manchester City Council,Childrens & Education Services,Professional fees,05.05.2020,1700101054,-520.92,RAISING RELATIONSHIPS CIC,
Manchester City Council,Manchester Leisure,Equipment,05.05.2020,5101087193,-900.00,Willfab Ltd,
Manchester City Council,Adult Social Care,Personal needs of client,05.05.2020,5101087199,"-1,780.00",Care & Independence Ltd,
Manchester City Council,Housing Revenue Account,Grant and subscriptions awarded,06.05.2020,5101087400,"383,903.00",Northwards Housing Limited,
Manchester City Council,Corporate Services,"Clothes, Uniform and Laundry",06.05.2020,5101087129,"165,000.00",Alliance Disposables Ltd,
Manchester City Council,Adult Social Care,Rents,06.05.2020,5101087414,"82,848.84",MJ Rental Ltd,
Manchester City Council,Chief Executives,Equipment Operating Lease,06.05.2020,5101087560,"69,373.41",Ricoh UK Ltd.,
Manchester City Council,Chief Executives,Equipment Operating Lease,06.05.2020,5101087579,"69,373.39",Ricoh UK Ltd.,
Manchester City Council,Insurance Fund,Insurance,06.05.2020,1906812656,"69,014.90",Redacted Personal Information,
Manchester City Council,Childrens & Education Services,Third party payments relating to Voluntary Organisations,06.05.2020,5101087322,"58,117.00",Barnardo Services Ltd (Essex),
Manchester City Council,Adult Social Care,Rents,06.05.2020,5101087413,"55,517.51",B & A Properties,
Manchester City Council,Adult Social Care,Bed and Breakfast Accommodation Expenditure,06.05.2020,5101087166,"41,829.00",Redacted Personal Information,
Manchester City Council,Adult Social Care,Bed and Breakfast Accommodation Expenditure,06.05.2020,5101087502,"41,497.00",Redacted Personal Information,
Manchester City Council,Chief Executives,Printing,06.05.2020,5101087553,"39,154.42",Ricoh UK Ltd.,
Manchester City Council,Adult Social Care,Third party payments to Health Authority,06.05.2020,5101086751,"30,000.00",Public Health England,
Manchester City Council,Manchester Leisure,Works and associated costs for Land and Buildings,06.05.2020,5101087394,"25,922.09",Laing O'Rourke Construction Ltd,
Manchester City Council,Adult Social Care,Bed and Breakfast Accommodation Expenditure,06.05.2020,5101087328,"19,503.00",Redacted Personal Information,
Manchester City Council,Chief Executives,Works and associated costs for Land and Buildings,06.05.2020,5101087418,"18,119.00",Soben Contract & Commercial Ltd,
Manchester City Council,Corporate Services,Fees,06.05.2020,1906847700,"17,631.10",Newlyn Plc,
Manchester City Council,Adult Social Care,Third party payments relating to Voluntary Organisations,06.05.2020,5101087194,"16,112.00",On The Out CIC,
Manchester City Council,Adult Social Care,Bed and Breakfast Accommodation Expenditure,06.05.2020,5101087497,"15,804.52",Redacted Personal Information,
Manchester City Council,Corporate Services,Security,06.05.2020,5101087300,"15,674.05",Marston Group Limited,
Manchester City Council,Chief Executives,Professional fees,06.05.2020,5101087108,"10,824.00",Tep-The Environment Partnership,
Manchester City Council,Manchester Leisure,Payments to Sub-Contractors,06.05.2020,5101087339,"9,562.00",Greenfingers Landscape Ltd,
Manchester City Council,Adult Social Care,Bed and Breakfast Accommodation Expenditure,06.05.2020,5101087503,"8,600.00",Redacted Personal Information,
Manchester City Council,Housing Revenue Account,Rents,06.05.2020,5101087083,"7,932.10",Northwards Housing Limited,
Manchester City Council,Childrens & Education Services,Payments for services,06.05.2020,5101087467,"7,549.20",Holy Cross Catholic Sixth Form,
Manchester City Council,Corporate Services,Security,06.05.2020,5101087301,"7,511.37",Marston Group Limited,
Manchester City Council,Childrens & Education Services,CORONA VIRUS D-19,06.05.2020,5101087292,"7,200.00",Galaxy Transport (Manchester) Ltd,
Manchester City Council,Chief Executives,Agency staff provision,06.05.2020,5101087450,"6,847.74",Parity Professionals Ltd,
Manchester City Council,Childrens & Education Services,Payments for services,06.05.2020,5101087475,"6,767.25",Cedar House School,
Manchester City Council,Chief Executives,Expenditure re Internal Trading Ordered Externally,06.05.2020,5101087362,"6,416.98",Civica Election Services,
Manchester City Council,Adult Social Care,Bed and Breakfast Accommodation Expenditure,06.05.2020,5101087498,"5,450.00",Hala Guest House,
Manchester City Council,Regeneration Finance,Professional fees,06.05.2020,5101087460,"5,000.00",Savills (UK) Ltd,
Manchester City Council,Adult Social Care,Bed and Breakfast Accommodation Expenditure,06.05.2020,5101087412,"4,725.00",Medlock House Ltd,
Manchester City Council,Corporate Services,"Clothes, Uniform and Laundry",06.05.2020,5101087469,"4,228.00",Alliance Disposables Ltd,
Manchester City Council,Corporate Services,"Clothes, Uniform and Laundry",06.05.2020,5101086792,"4,071.00",Alliance Disposables Ltd,
Manchester City Council,Childrens & Education Services,Payments for services,06.05.2020,5101087454,"3,750.00",Thompsons Academy Ltd,
Manchester City Council,Childrens & Education Services,Payments for services,06.05.2020,5101087455,"3,750.00",Thompsons Academy Ltd,
Manchester City Council,Childrens & Education Services,Third party payments to other Local Authorities,06.05.2020,5101087417,"3,631.00",Abbey Hill Academy,
Manchester City Council,Regeneration Finance,Professional fees,06.05.2020,5101087397,"3,274.69",Simpson Haugh Architects Ltd,
Manchester City Council,Chief Executives,Works and associated costs for Land and Buildings,06.05.2020,5101087501,"3,180.00",WSP UK Ltd,
Manchester City Council,Chief Executives,Works and associated costs for Land and Buildings,06.05.2020,5101087464,"2,870.00",Pearson Consult Ltd,
Manchester City Council,Environment and Operations,Construction Works,06.05.2020,5101087002,"2,850.00",Ove Arup & Partners Ltd,
Manchester City Council,Adult Social Care,Payments to Government Departments,06.05.2020,5101087378,"2,550.24",Homeecare4u Ltd,
Manchester City Council,Adult Social Care,Payments to Government Departments,06.05.2020,5101087379,"2,550.24",Homeecare4u Ltd,
Manchester City Council,Adult Social Care,Payments to Government Departments,06.05.2020,5101087381,"2,550.24",Homeecare4u Ltd,
Manchester City Council,Adult Social Care,Payments to Government Departments,06.05.2020,5101087384,"2,550.24",Homeecare4u Ltd,
Manchester City Council,Adult Social Care,Equipment,06.05.2020,5101087047,"2,352.80",Tunstall Healthcare (UK) Ltd,
Manchester City Council,Childrens & Education Services,Professional fees,06.05.2020,1906848301,"2,343.75",Waddington & Son Solicitors,
Manchester City Council,Manchester Leisure,Building Materials for direct delivery,06.05.2020,5101087541,"2,000.00",Clearway Drainage Systems Ltd,
Manchester City Council,Childrens & Education Services,Personal needs of client,06.05.2020,5101087516,"2,000.00",Hemingways Marketing Services Ltd,
Manchester City Council,Manchester Leisure,I T Provision,06.05.2020,5101087517,"1,980.00",Sprytar Limited,
Manchester City Council,Hospitality + Trading Services,Funeral and coroner related services,06.05.2020,5101087372,"1,854.00",ECE Consultancy,
Manchester City Council,Childrens & Education Services,Professional fees,06.05.2020,1906847669,"1,689.91",Waddington & Son Solicitors,
Manchester City Council,Housing Revenue Account,Supporting People Payments,06.05.2020,5101087058,"1,583.34",Northwards Housing Limited,
Manchester City Council,Chief Executives,Third party payments relating to Voluntary Organisations,06.05.2020,5101087265,"1,500.00",TechManchester Ltd,
Manchester City Council,Chief Executives,Advertising,06.05.2020,5101087035,"1,475.60",Bauer Radio Ltd,
Manchester City Council,Childrens & Education Services,Transport Coach Hire,06.05.2020,5101087494,"1,443.00",Elite Transport,
Manchester City Council,Childrens & Education Services,Professional fees,06.05.2020,1906848311,"1,437.50",Waddington & Son Solicitors,
Manchester City Council,Chief Executives,Expenditure re Internal Trading Ordered Externally,06.05.2020,5101087504,"1,433.07",Civica Election Services,
Manchester City Council,Childrens & Education Services,CORONA VIRUS D-19,06.05.2020,5101087030,"1,416.00",Redacted Personal Information,
Manchester City Council,Hospitality + Trading Services,Hire of Machinery,06.05.2020,5101087341,"1,299.50",R & M Developments Ltd,
Manchester City Council,Regeneration Finance,Hire of Equipment,06.05.2020,5101087288,"1,213.32",Portakabin Ltd,
Manchester City Council,Regeneration Finance,Hire of Equipment,06.05.2020,5101087333,"1,213.32",Portakabin Ltd,
Manchester City Council,Childrens & Education Services,Professional fees,06.05.2020,1906847731,"1,161.25",Waddington & Son Solicitors,
Manchester City Council,Childrens & Education Services,Professional fees,06.05.2020,1906847729,"1,147.48",Waddington & Son Solicitors,
Manchester City Council,Hospitality + Trading Services,Hire of Machinery,06.05.2020,5101087342,"1,038.50",R & M Developments Ltd,
Manchester City Council,Regeneration Finance,Hire of Equipment,06.05.2020,5101087276,931.63,Portakabin Ltd,
Manchester City Council,Regeneration Finance,Hire of Equipment,06.05.2020,5101087324,931.63,Portakabin Ltd,
Manchester City Council,Hospitality + Trading Services,Compensation Payments,06.05.2020,1906850937,921.98,CLATTERBRIDGE PRIVATE CLINIC,
Manchester City Council,Childrens & Education Services,Payments for services,06.05.2020,5101087488,831.68,Reed Employment Plc,
Manchester City Council,Adult Social Care,Payments to Government Departments,06.05.2020,5101087340,826.68,Routes Healthcare (North) Ltd,
Manchester City Council,Childrens & Education Services,Third party payments relating to Voluntary Organisations,06.05.2020,5101087358,803.25,Healthy Body Healthy Mind CIC,
Manchester City Council,Childrens & Education Services,Payments for services,06.05.2020,5101087486,779.70,Reed Employment Plc,
Manchester City Council,Chief Executives,Grant Payments,06.05.2020,5101087391,750.00,LGcomms,
Manchester City Council,Chief Executives,Payments to Sub-Contractors,06.05.2020,5101087320,709.32,Redacted Personal Information,
Manchester City Council,Regeneration Finance,Professional fees,06.05.2020,5101087176,665.00,Pannone Corporate LLP,
Manchester City Council,Highways Services,External repairs and maintenance for buildings,06.05.2020,5101087487,652.25,Cruden Property Services Ltd,
Manchester City Council,Manchester Leisure,Building Materials for direct delivery,06.05.2020,5101087542,650.00,Clearway Drainage Systems Ltd,
Manchester City Council,Manchester Leisure,Building Materials for direct delivery,06.05.2020,5101087543,650.00,Clearway Drainage Systems Ltd,
Manchester City Council,Chief Executives,Payments to Sub-Contractors,06.05.2020,5101087355,573.90,Redacted Personal Information,
Manchester City Council,Childrens & Education Services,Professional fees,06.05.2020,1906848190,568.75,Waddington & Son Solicitors,
Manchester City Council,Manchester Leisure,Equipment,06.05.2020,5101087338,"-1,953.00",The Helping Hand Company Ltd,
Manchester City Council,Adult Social Care,Payments to Government Departments,06.05.2020,5101087383,"-2,250.24",Homeecare4u Ltd,
Manchester City Council,Childrens & Education Services,CORONA VIRUS D-19,06.05.2020,5101087346,"-7,344.00",PDR Travel Ltd,
Manchester City Council,Corporate Services,Fees,06.05.2020,1906847700,"-17,631.10",Newlyn Plc,
Manchester City Council,Manchester Leisure,Works and associated costs for Land and Buildings,06.05.2020,5101087392,"-18,460.00",Laing O'Rourke Construction Ltd,
Manchester City Council,Hospitality + Trading Services,Water Service Charges - Unmetered,07.05.2020,1906854560,"143,788.12",Water Plus Limited,
Manchester City Council,Chief Executives,I T Provision,07.05.2020,5101086748,"111,717.18",Insight Direct (Uk) Ltd,
Manchester City Council,Chief Executives,Equipment Operating Lease,07.05.2020,5101087557,"69,373.41",Ricoh UK Ltd.,
Manchester City Council,Regeneration Finance,Water Service Charges - Unmetered,07.05.2020,1906854572,"61,550.10",Water Plus Limited,
Manchester City Council,Manchester Leisure,Electricity,07.05.2020,1906854679,"25,661.98",Npower,
Manchester City Council,Regeneration Finance,Water Service Charges - Unmetered,07.05.2020,1906854625,"24,619.57",Water Plus Limited,
Manchester City Council,Manchester Leisure,Professional fees,07.05.2020,5101087611,"20,000.00",Young Manchester,
Manchester City Council,Manchester Leisure,Goods purchased for resale in Council outlets,07.05.2020,1906853959,"13,500.00",Redacted Personal Information,
Manchester City Council,Highways Services,Payments to Sub-Contractors,07.05.2020,5101086861,"11,702.11",Rosgal Ltd,
Manchester City Council,Insurance Fund,Insurance,07.05.2020,1906812655,"10,766.03",Thompsons Solicitors,
Manchester City Council,Highways Services,Payments to Sub-Contractors,07.05.2020,5101086862,"9,750.00",Rosgal Ltd,
Manchester City Council,Highways Services,Payments to Sub-Contractors,07.05.2020,5101086869,"9,750.00",Rosgal Ltd,
Manchester City Council,Manchester Leisure,Electricity,07.05.2020,1906854680,"9,685.28",Npower,
Manchester City Council,Corporate Services,Professional fees,07.05.2020,5101086958,"9,660.00",Turner & Townsend Cost,
Manchester City Council,Adult Social Care,Supporting People Payments,07.05.2020,5101087548,"9,521.34",Northwards Housing Limited,
Manchester City Council,Manchester Leisure,Electricity,07.05.2020,1906854678,"9,181.78",Npower,
Manchester City Council,Hospitality + Trading Services,Water Service Charges - Unmetered,07.05.2020,1906854562,"8,695.94",Water Plus Limited,
Manchester City Council,Regeneration Finance,Water Service Charges - Unmetered,07.05.2020,1906854567,"8,695.94",Water Plus Limited,
Manchester City Council,Regeneration Finance,Water Service Charges - Unmetered,07.05.2020,1906854568,"8,695.94",Water Plus Limited,
Manchester City Council,Regeneration Finance,Water Service Charges - Unmetered,07.05.2020,1906854571,"8,695.94",Water Plus Limited,
Manchester City Council,Regeneration Finance,Water Service Charges - Unmetered,07.05.2020,1906854622,"8,695.94",Water Plus Limited,
Manchester City Council,Regeneration Finance,Water Service Charges - Unmetered,07.05.2020,1906854624,"8,695.94",Water Plus Limited,
Manchester City Council,Regeneration Finance,Water Service Charges - Unmetered,07.05.2020,1906854628,"8,695.94",Water Plus Limited,
Manchester City Council,Highways Services,Payments to Sub-Contractors,07.05.2020,5101086866,"7,800.00",Rosgal Ltd,
Manchester City Council,Highways Services,Payments to Sub-Contractors,07.05.2020,5101086867,"7,800.00",Rosgal Ltd,
Manchester City Council,Corporate Services,Professional fees,07.05.2020,5101086956,"7,560.00",Turner & Townsend Cost,
Manchester City Council,Manchester Leisure,Electricity,07.05.2020,1906854676,"7,445.03",Npower,
Manchester City Council,Regeneration Finance,Third party payments to other Local Authorities,07.05.2020,5101087382,"6,500.00",Swindon Borough Council,
Manchester City Council,Manchester Leisure,Electricity,07.05.2020,1906854677,"6,191.30",Npower,
Manchester City Council,Manchester Leisure,Electricity,07.05.2020,1906854675,"4,310.74",Npower,
Manchester City Council,Chief Executives,Postage,07.05.2020,5101086889,"4,027.74",Royal Mail Group Plc,
Manchester City Council,Manchester Leisure,Water Service Charges - Unmetered,07.05.2020,1906854577,"3,858.08",Water Plus Limited,
Manchester City Council,Regeneration Finance,Water Service Charges - Unmetered,07.05.2020,1906854564,"3,858.08",Water Plus Limited,
Manchester City Council,Regeneration Finance,Water Service Charges - Unmetered,07.05.2020,1906854570,"3,858.08",Water Plus Limited,
Manchester City Council,Regeneration Finance,Water Service Charges - Unmetered,07.05.2020,1906854632,"3,858.08",Water Plus Limited,
Manchester City Council,Childrens & Education Services,Third party payments relating to Voluntary Organisations,07.05.2020,5101086797,"3,750.00",Safe Families for Children,
Manchester City Council,Highways Services,Equipment,07.05.2020,5101087751,"3,440.00",Banner Group Limited,
Manchester City Council,Childrens & Education Services,Professional fees,07.05.2020,1906848303,"3,372.80",Waddington & Son Solicitors,
Manchester City Council,Childrens & Education Services,Third party payments to other Local Authorities,07.05.2020,5101087172,"3,256.00",Altrincham College Of Arts,
Manchester City Council,Childrens & Education Services,Third party payments relating to Voluntary Organisations,07.05.2020,5101086832,"3,250.00",Remedi,
Manchester City Council,Highways Services,Compensation Payments,07.05.2020,1906853282,"3,246.00",JF Law,
Manchester City Council,Environment and Operations,Construction Works,07.05.2020,5101087577,"3,102.60",Amey Highways Lighting (Manchester),
Manchester City Council,Childrens & Education Services,Third party payments to other Local Authorities,07.05.2020,5101087299,"2,727.00",St Alphonsus RC Primary School,
Manchester City Council,Manchester Leisure,Equipment,07.05.2020,5101087712,"2,703.00",The Helping Hand Company Ltd,
Manchester City Council,Chief Executives,Works and associated costs for Land and Buildings,07.05.2020,5101087649,"2,500.00",Charcoalblue LLP,
Manchester City Council,Childrens & Education Services,Transport Coach Hire,07.05.2020,5101087570,"2,417.00",Middleton Cars Ltd,
Manchester City Council,Childrens & Education Services,Transport Coach Hire,07.05.2020,5101087572,"2,200.00",Middleton Cars Ltd,
Manchester City Council,Childrens & Education Services,I T Provision,07.05.2020,5101086784,"2,049.00",Twinkl,
Manchester City Council,Adult Social Care,Personal needs of client,07.05.2020,5101087752,"2,010.00",Banner Group Limited,
Manchester City Council,Manchester Leisure,Equipment,07.05.2020,5101087336,"1,953.00",The Helping Hand Company Ltd,
Manchester City Council,Childrens & Education Services,Water Service Charges - Unmetered,07.05.2020,1906854623,"1,934.46",Water Plus Limited,
Manchester City Council,Manchester Leisure,Water Service Charges - Unmetered,07.05.2020,1906854588,"1,844.53",Water Plus Limited,
Manchester City Council,Hospitality + Trading Services,Water Service Charges - Unmetered,07.05.2020,1906854566,"1,844.53",Water Plus Limited,
Manchester City Council,Hospitality + Trading Services,Water Service Charges - Unmetered,07.05.2020,1906854591,"1,844.53",Water Plus Limited,
Manchester City Council,Hospitality + Trading Services,Water Service Charges - Unmetered,07.05.2020,1906854608,"1,844.53",Water Plus Limited,
Manchester City Council,Regeneration Finance,Water Service Charges - Unmetered,07.05.2020,1906854554,"1,844.53",Water Plus Limited,
Manchester City Council,Regeneration Finance,Water Service Charges - Unmetered,07.05.2020,1906854579,"1,844.53",Water Plus Limited,
Manchester City Council,Regeneration Finance,Water Service Charges - Unmetered,07.05.2020,1906854582,"1,844.53",Water Plus Limited,
Manchester City Council,Regeneration Finance,Water Service Charges - Unmetered,07.05.2020,1906854583,"1,844.53",Water Plus Limited,
Manchester City Council,Regeneration Finance,Water Service Charges - Unmetered,07.05.2020,1906854590,"1,844.53",Water Plus Limited,
Manchester City Council,Regeneration Finance,Water Service Charges - Unmetered,07.05.2020,1906854609,"1,844.53",Water Plus Limited,
Manchester City Council,Regeneration Finance,Water Service Charges - Unmetered,07.05.2020,1906854613,"1,844.53",Water Plus Limited,
Manchester City Council,Regeneration Finance,Water Service Charges - Unmetered,07.05.2020,1906854615,"1,844.53",Water Plus Limited,
Manchester City Council,Regeneration Finance,Water Service Charges - Unmetered,07.05.2020,1906854626,"1,844.53",Water Plus Limited,
Manchester City Council,Childrens & Education Services,Professional fees,07.05.2020,1906847736,"1,798.75",Waddington & Son Solicitors,
Manchester City Council,Adult Social Care,Third party payments relating to Voluntary Organisations,07.05.2020,5101087688,"1,631.00",Alzheimers Society (Mcr Branch),
Manchester City Council,Chief Executives,Professional fees,07.05.2020,1906853285,"1,500.00",Lamb Building Chambers,
Manchester City Council,Adult Social Care,Compensation Payments,07.05.2020,1906853284,"1,500.00",Peasegoods,
Manchester City Council,Highways Services,Compensation Payments,07.05.2020,1906853282,"1,500.00",JF Law,
Manchester City Council,Chief Executives,Third party payments relating to Voluntary Organisations,07.05.2020,5101087422,"1,500.00",A.Pollick Ltd,
Manchester City Council,Childrens & Education Services,Transport Coach Hire,07.05.2020,5101087576,"1,470.00",Middleton Cars Ltd,
Manchester City Council,Highways Services,Professional fees,07.05.2020,5101087001,"1,442.21",Transport for Greater Manchester,
Manchester City Council,Childrens & Education Services,Professional fees,07.05.2020,1906847699,"1,403.92",Waddington & Son Solicitors,
Manchester City Council,Corporate Services,Mobilephone Charges,07.05.2020,5101087545,"1,231.79",EE/T-Mobile,
Manchester City Council,Childrens & Education Services,Professional fees,07.05.2020,1906847665,"1,161.25",Waddington & Son Solicitors,
Manchester City Council,Childrens & Education Services,Transport Coach Hire,07.05.2020,5101087567,"1,100.00",Middleton Cars Ltd,
Manchester City Council,Adult Social Care,Supporting People Payments,07.05.2020,5101087605,"1,034.76",The Guinness Partnership Ltd,
Manchester City Council,Childrens & Education Services,Professional fees,07.05.2020,1906847735,"1,017.50",Waddington & Son Solicitors,
Manchester City Council,Adult Social Care,Supporting People Payments,07.05.2020,5101087605,972.67,The Guinness Partnership Ltd,
Manchester City Council,Childrens & Education Services,Professional fees,07.05.2020,1906850930,968.75,Redacted Personal Information,
Manchester City Council,Childrens & Education Services,Water Service Charges - Unmetered,07.05.2020,1906854589,918.51,Water Plus Limited,
Manchester City Council,Childrens & Education Services,Professional fees,07.05.2020,1906848302,906.25,Waddington & Son Solicitors,
Manchester City Council,Chief Executives,Professional fees,07.05.2020,1906850808,875.00,Redacted Personal Information,
Manchester City Council,Adult Social Care,Professional fees,07.05.2020,1906853069,860.00,MJJ Social Care Consulting Ltd,
Manchester City Council,Manchester Leisure,Electricity,07.05.2020,1906854672,826.99,Haven Power Ltd,
Manchester City Council,Manchester Leisure,Electricity,07.05.2020,1906854670,821.94,Haven Power Ltd,
Manchester City Council,Manchester Leisure,Water Service Charges - Unmetered,07.05.2020,1906854575,815.22,Water Plus Limited,
Manchester City Council,Childrens & Education Services,Water Service Charges - Unmetered,07.05.2020,1906854604,815.22,Water Plus Limited,
Manchester City Council,Adult Social Care,Water Service Charges - Unmetered,07.05.2020,1906854578,815.22,Water Plus Limited,
Manchester City Council,Adult Social Care,Water Service Charges - Unmetered,07.05.2020,1906854667,815.22,Water Plus Limited,
Manchester City Council,Corporate Services,Water Service Charges - Unmetered,07.05.2020,1906854631,815.22,Water Plus Limited,
Manchester City Council,Regeneration Finance,Water Service Charges - Unmetered,07.05.2020,1906854587,815.22,Water Plus Limited,
Manchester City Council,Regeneration Finance,Water Service Charges - Unmetered,07.05.2020,1906854611,815.22,Water Plus Limited,
Manchester City Council,Regeneration Finance,Water Service Charges - Unmetered,07.05.2020,1906854616,815.22,Water Plus Limited,
Manchester City Council,Regeneration Finance,Water Service Charges - Unmetered,07.05.2020,1906854617,815.22,Water Plus Limited,
Manchester City Council,Regeneration Finance,Water Service Charges - Unmetered,07.05.2020,1906854618,815.22,Water Plus Limited,
Manchester City Council,Regeneration Finance,Water Service Charges - Unmetered,07.05.2020,1906854619,815.22,Water Plus Limited,
Manchester City Council,Regeneration Finance,Water Service Charges - Unmetered,07.05.2020,1906854621,815.22,Water Plus Limited,
Manchester City Council,Regeneration Finance,Water Service Charges - Unmetered,07.05.2020,1906854630,815.22,Water Plus Limited,
Manchester City Council,Manchester Leisure,Electricity,07.05.2020,1906854671,814.88,Haven Power Ltd,
Manchester City Council,Regeneration Finance,Third party payments to other Local Authorities,07.05.2020,5101087382,800.00,Swindon Borough Council,
Manchester City Council,Adult Social Care,Equipment,07.05.2020,5101087672,790.72,Drive Devilbiss Healthcare Ltd,
Manchester City Council,Adult Social Care,Supporting People Payments,07.05.2020,5101087605,790.70,The Guinness Partnership Ltd,
Manchester City Council,Adult Social Care,Supporting People Payments,07.05.2020,5101087605,785.74,The Guinness Partnership Ltd,
Manchester City Council,Manchester Leisure,Equipment,07.05.2020,5101087396,750.00,Green-Tech Ltd,
Manchester City Council,Childrens & Education Services,Professional fees,07.05.2020,1906847733,748.75,Waddington & Son Solicitors,
Manchester City Council,Manchester Leisure,Electricity,07.05.2020,1906854673,737.33,Haven Power Ltd,
Manchester City Council,Corporate Services,Water Service Charges - Unmetered,07.05.2020,1906854627,732.01,Water Plus Limited,
Manchester City Council,Manchester Leisure,Electricity,07.05.2020,1906854674,728.10,Haven Power Ltd,
Manchester City Council,Chief Executives,Professional fees,07.05.2020,1906850931,725.00,Redacted Personal Information,
Manchester City Council,Childrens & Education Services,Transport Coach Hire,07.05.2020,5101087573,720.00,Middleton Cars Ltd,
Manchester City Council,Adult Social Care,Supporting People Payments,07.05.2020,5101087605,695.78,The Guinness Partnership Ltd,
Manchester City Council,Manchester Leisure,Professional fees,07.05.2020,5101087524,694.00,Trafford Signs Ltd,
Manchester City Council,Childrens & Education Services,Water Service Charges - Unmetered,07.05.2020,1906854555,663.33,Water Plus Limited,
Manchester City Council,Childrens & Education Services,Professional fees,07.05.2020,1906850933,650.00,Redacted Personal Information,
Manchester City Council,Highways Services,Building Materials for direct delivery,07.05.2020,5101086910,641.25,P.F. Cusack (Tools Supplies) Ltd,
Manchester City Council,Chief Executives,Payments to Sub-Contractors,07.05.2020,5101087207,618.60,Redacted Personal Information,
Manchester City Council,Chief Executives,Payments to Sub-Contractors,07.05.2020,5101087028,608.08,Redacted Personal Information,
Manchester City Council,Childrens & Education Services,Professional fees,07.05.2020,5101087684,600.00,Affinity Workforce Solutions Ltd,
Manchester City Council,Chief Executives,Professional fees,07.05.2020,1906853286,599.33,Hart Psychological Consulting,
Manchester City Council,Manchester Leisure,Publications,07.05.2020,5101087550,592.00,Trafford Signs Ltd,
Manchester City Council,Corporate Services,Printing,07.05.2020,5101086816,567.50,Mail Solutions,
Manchester City Council,Chief Executives,Compensation Payments,07.05.2020,1906853272,567.00,Youth Support,
Manchester City Council,Corporate Services,Water Service Charges - Unmetered,07.05.2020,1906854581,547.75,Water Plus Limited,
Manchester City Council,Manchester Leisure,Professional fees,07.05.2020,5101087532,542.00,Trafford Signs Ltd,
Manchester City Council,Chief Executives,Printing,07.05.2020,5101086812,527.50,Mail Solutions,
Manchester City Council,Adult Social Care,Rents,07.05.2020,1906847664,500.00,Redacted Personal Information,
Manchester City Council,Manchester Leisure,Electricity,07.05.2020,1700101086,-521.13,Haven Power Ltd,
Manchester City Council,Manchester Leisure,Electricity,07.05.2020,1700101085,-525.78,Haven Power Ltd,
Manchester City Council,Manchester Leisure,Electricity,07.05.2020,1700101087,-536.89,Haven Power Ltd,
Manchester City Council,Manchester Leisure,Electricity,07.05.2020,1700101088,-579.43,Haven Power Ltd,
Manchester City Council,Manchester Leisure,Electricity,07.05.2020,1700101089,"-8,993.88",Npower,
Manchester City Council,Chief Executives,Equipment Operating Lease,07.05.2020,5101087574,"-69,373.39",Ricoh UK Ltd.,
Manchester City Council,Chief Executives,Equipment Operating Lease,07.05.2020,5101087559,"-69,373.41",Ricoh UK Ltd.,
Manchester City Council,Chief Executives,Building Works,11.05.2020,1906854868,"2,367,481.00",Vital Energi Solutions Ltd,
Manchester City Council,Housing Revenue Account,Northwards Repairs Fee,11.05.2020,5101087812,"1,685,333.34",Northwards Housing Limited,
Manchester City Council,Corporate Services,Works and associated costs for Land and Buildings,11.05.2020,5101087325,"805,740.40",ISG Construction Limited,
Manchester City Council,Childrens Services,Building Works,11.05.2020,5101087580,"378,351.82",The Dean Trust,
Manchester City Council,Environment and Operations,Construction Works,11.05.2020,5101087020,"326,594.05",Colas Limited,
Manchester City Council,Childrens & Education Services,Third party payments to other Local Authorities,11.05.2020,5101086770,"195,727.00",Bury M.B.C.,
Manchester City Council,Regeneration Finance,Rents,11.05.2020,1906847732,"192,938.12",Wellington Properties Ltd,
Manchester City Council,Childrens & Education Services,External repairs and maintenance for buildings,11.05.2020,5101087326,"134,817.03",Conlon Construction Ltd,
Manchester City Council,Chief Executives,Grant and subscriptions awarded,11.05.2020,5101087305,"105,699.50",HOME,
Manchester City Council,Adult Social Care,Bed and Breakfast Accommodation Expenditure,11.05.2020,5101087329,"99,750.00",Express By Holiday Inn,
Manchester City Council,Hospitality + Trading Services,Refuse Collection,11.05.2020,5101086848,"74,898.83",Fairfield Environmental Serv Ltd,
Manchester City Council,Environment and Operations,Construction Works,11.05.2020,5101087279,"69,458.07",Colas Limited,
Manchester City Council,Chief Executives,I T Provision,11.05.2020,5101087795,"60,700.00",ICT Revolutions Ltd,
Manchester City Council,Regeneration Finance,Professional fees,11.05.2020,5101087818,"44,000.00",Jacobs UK Ltd,
Manchester City Council,Childrens & Education Services,Professional fees,11.05.2020,5101087056,"43,241.00",Welfare Call (LAC) Ltd,
Manchester City Council,Insurance Fund,Professional Indemnity Insurance Premium,11.05.2020,1906853068,"41,117.81",Aon Ltd,
Manchester City Council,Chief Executives,Licences Purchase,11.05.2020,5101087133,"39,067.80",Softcat,
Manchester City Council,Regeneration Finance,Professional fees,11.05.2020,5101087549,"37,453.00",Northwards Housing Limited,
Manchester City Council,Housing General Fund,Works and associated costs for Land and Buildings,11.05.2020,5101087836,"34,000.00",Mosscare St Vincent's Housing,
Manchester City Council,Housing Revenue Account,Northwards Management Fee,11.05.2020,5101087811,"28,450.75",Northwards Housing Limited,
Manchester City Council,Chief Executives,Rents,11.05.2020,5101087679,"24,232.00",UKfast.net Ltd,
Manchester City Council,Adult Social Care,Supporting People Payments,11.05.2020,5101087733,"23,010.00",Adactus Housing Group Ltd,
Manchester City Council,Corporate Services,Tele Conferencing,11.05.2020,1906853077,"20,781.02",BT Conferencing Services,
Manchester City Council,Adult Social Care,Rents,11.05.2020,5101087767,"18,665.64",Mosscare Housing Ltd,
Manchester City Council,Adult Social Care,Rents,11.05.2020,5101087769,"18,665.64",Mosscare Housing Ltd,
Manchester City Council,Childrens & Education Services,Professional fees,11.05.2020,5101087724,"17,065.43",Wigan Metropolitan Borough Council,
Manchester City Council,Childrens & Education Services,Catering,11.05.2020,5101087546,"16,516.27",Spie Limited,
Manchester City Council,Highways Services,Professional fees,11.05.2020,5101087841,"14,420.00",Building Software Ltd,
Manchester City Council,Corporate Services,Works and associated costs for Land and Buildings,11.05.2020,5101087845,"13,972.00",Ramboll UK Limited,
Manchester City Council,Manchester Leisure,Professional fees,11.05.2020,5101087829,"13,100.00",Pleydell Smithyman Limited,
Manchester City Council,Adult Social Care,Bed and Breakfast Accommodation Expenditure,11.05.2020,5101087303,"12,600.00",Redacted Personal Information,
Manchester City Council,Adult Social Care,Bed and Breakfast Accommodation Expenditure,11.05.2020,5101087369,"12,600.00",Redacted Personal Information,
Manchester City Council,Adult Social Care,Agency staff provision,11.05.2020,5101087817,"12,000.00",Tanda Services,
Manchester City Council,Childrens & Education Services,CORONA VIRUS D-19,11.05.2020,5101087495,"11,421.63",Parkway Cabs & Cars,
Manchester City Council,Childrens & Education Services,Third party payments to other Local Authorities,11.05.2020,5101086834,"10,903.00",Longford Park School,
Manchester City Council,Chief Executives,I T Provision,11.05.2020,5101087202,"10,722.00",Insight Direct (Uk) Ltd,
Manchester City Council,Regeneration Finance,Third party payments to other Local Authorities,11.05.2020,5101087650,"10,562.50",Brookfield Adult Learning Centre,
Manchester City Council,Childrens & Education Services,CORONA VIRUS D-19,11.05.2020,5101087854,"10,481.08",MCR Blackcab Ltd,
Manchester City Council,Manchester Leisure,Payments to Sub-Contractors,11.05.2020,5101087706,"10,000.00",Arboricultural Services Treework,
Manchester City Council,Adult Social Care,Grant and subscriptions awarded,11.05.2020,5101087295,"10,000.00",Independent Choices Gtr Manchester,
Manchester City Council,Regeneration Finance,Rents,11.05.2020,1906853270,"9,864.83",Moss Side Millennium Powerhouse Ltd,
Manchester City Council,Chief Executives,Legal Fees,11.05.2020,5101087889,"9,816.00",Eversheds Llp,
Manchester City Council,Chief Executives,Printing,11.05.2020,5101086845,"9,610.00",WDM,
Manchester City Council,Adult Social Care,Rents,11.05.2020,5101087770,"9,332.82",Mosscare Housing Ltd,
Manchester City Council,Chief Executives,CRB Fees,11.05.2020,5101087803,"8,784.00",Disclosure & Barring Service,
Manchester City Council,Regeneration Finance,Third party payments to other Local Authorities,11.05.2020,5101087126,"8,651.00",Caritas - Talk English Project,
Manchester City Council,Chief Executives,I T Provision,11.05.2020,5101087050,"8,408.82",Insight Direct (Uk) Ltd,
Manchester City Council,Adult Social Care,Third party payments relating to Voluntary Organisations,11.05.2020,5101087734,"8,158.00",Greater Manchester Immigration Aid,
Manchester City Council,Hospitality + Trading Services,Vehicle Fuel Costs,11.05.2020,5101087628,"7,995.40",Carlton Fuels Ltd,
Manchester City Council,Manchester Leisure,Payments to Sub-Contractors,11.05.2020,5101087061,"7,836.60",Ramora Ltd,
Manchester City Council,Corporate Services,Professional fees,11.05.2020,5101086843,"7,587.50",GVA Grimley Ltd,
Manchester City Council,Housing Revenue Account,Legal Fees,11.05.2020,5101087875,"6,055.00",Eversheds Llp,
Manchester City Council,Corporate Services,Works and associated costs for Land and Buildings,11.05.2020,5101087198,"6,012.18",Building Design Partnership Limited,
Manchester City Council,Adult Social Care,Agency staff provision,11.05.2020,5101087816,"6,000.00",Tanda Services,
Manchester City Council,Regeneration Finance,Third party payments relating to Voluntary Organisations,11.05.2020,5101086837,"5,738.00",Cracking Good Food,
Manchester City Council,Manchester Leisure,Payments to Sub-Contractors,11.05.2020,5101087482,"5,408.88",Scrutiny Cleaning Services,
Manchester City Council,Chief Executives,Works and associated costs for Land and Buildings,11.05.2020,5101087096,"5,284.67",Vinci Construction UK Ltd,
Manchester City Council,Adult Social Care,Supporting People Payments,11.05.2020,5101087729,"5,269.00",Places for People Living +,
Manchester City Council,Childrens & Education Services,Payments for services,11.05.2020,5101087479,"5,117.19",Enhance EHC Ltd,
Manchester City Council,Highways Services,Car Parking Permits,11.05.2020,5101087092,"5,036.70",Quadrant Security Group,
Manchester City Council,Childrens & Education Services,Professional fees,11.05.2020,5101087593,"5,000.00",GW Theatre Company Ltd,
Manchester City Council,Manchester Leisure,Grant and subscriptions awarded,11.05.2020,5101087859,"4,750.00",The Manchester Men's Room,
Manchester City Council,Adult Social Care,Equipment,11.05.2020,5101087069,"4,500.00",Invacare Limited,
Manchester City Council,Adult Social Care,Third party payments relating to Voluntary Organisations,11.05.2020,5101087592,"4,400.00",Independent Choices Gtr Manchester,
Manchester City Council,Hospitality + Trading Services,Funeral and coroner related services,11.05.2020,5101087830,"4,218.40",G E Robinson & Co Ltd,
Manchester City Council,Chief Executives,Compensation Payments,11.05.2020,1906854444,"4,200.00",Redacted Personal Information,
Manchester City Council,Childrens & Education Services,CORONA VIRUS D-19,11.05.2020,5101087852,"4,032.60",MCR Blackcab Ltd,
Manchester City Council,Manchester Leisure,Payments to Sub-Contractors,11.05.2020,5101087484,"3,896.72",Scrutiny Cleaning Services,
Manchester City Council,Childrens & Education Services,CORONA VIRUS D-19,11.05.2020,5101087082,"3,840.00",D.J. Minibus Travel,
Manchester City Council,Chief Executives,Agency staff provision,11.05.2020,5101087453,"3,825.84",Wilde Consultants Ltd,
Manchester City Council,Corporate Services,Security,11.05.2020,5101087317,"3,808.00",Flowbird Smart City Uk Ltd,
Manchester City Council,Chief Executives,Compensation Payments,11.05.2020,1906854446,"3,600.00",Redacted Personal Information,
Manchester City Council,Manchester Leisure,Professional fees,11.05.2020,5101086833,"3,499.80",Bureau Veritas UK Ltd,
Manchester City Council,Adult Social Care,Third party payments relating to Voluntary Organisations,11.05.2020,5101087872,"3,482.70",Northwards Housing Limited,
Manchester City Council,Adult Social Care,Funeral and coroner related services,11.05.2020,5101087627,"3,446.00",Greater Manchester Funeral Service,
Manchester City Council,Childrens & Education Services,CORONA VIRUS D-19,11.05.2020,5101087850,"3,127.51",MCR Blackcab Ltd,
Manchester City Council,Regeneration Finance,Professional fees,11.05.2020,5101087171,"3,000.00",Sow the City,
Manchester City Council,Regeneration Finance,Third party payments to other Local Authorities,11.05.2020,5101087213,"3,000.00",Blackburn With Darwen Borough Counc,
Manchester City Council,Adult Social Care,Rents,11.05.2020,5101087871,"2,937.35",Northwards Housing Limited,
Manchester City Council,Childrens & Education Services,Professional fees,11.05.2020,1906854863,"2,917.46",Steffas and Associates,
Manchester City Council,Childrens & Education Services,CORONA VIRUS D-19,11.05.2020,5101087851,"2,728.87",MCR Blackcab Ltd,
Manchester City Council,Adult Social Care,Equipment,11.05.2020,5101087847,"2,700.00",Ultimate Healthcare,
Manchester City Council,Chief Executives,Professional fees,11.05.2020,5101087401,"2,635.15",Foreign and Commonwealth Office,
Manchester City Council,Hospitality + Trading Services,Funeral and coroner related services,11.05.2020,5101087832,"2,590.40",G E Robinson & Co Ltd,
Manchester City Council,Chief Executives,I T Provision,11.05.2020,5101087022,"2,528.00",Insight Direct (Uk) Ltd,
Manchester City Council,Chief Executives,Hire of Equipment,11.05.2020,5101086769,"2,525.00",Jigsaw Systems Limited,
Manchester City Council,Corporate Services,Hire of Equipment,11.05.2020,5101087315,"2,494.00",Flowbird Smart City Uk Ltd,
Manchester City Council,Childrens & Education Services,CORONA VIRUS D-19,11.05.2020,5101087849,"2,448.14",MCR Blackcab Ltd,
Manchester City Council,Adult Social Care,Rents,11.05.2020,5101087884,"2,442.52",Northwards Housing Limited,
Manchester City Council,Highways Services,Purchase of stores for re-distribution,11.05.2020,5101087846,"2,358.72",Instarmac Group Ltd,
Manchester City Council,Childrens & Education Services,Payments for services,11.05.2020,5101086949,"2,333.34",NISAI Virtual Academy,
Manchester City Council,Adult Social Care,Equipment,11.05.2020,5101087106,"2,299.50",iTs Designs Ltd,
Manchester City Council,Childrens & Education Services,Third party payments to other Local Authorities,11.05.2020,5101087306,"2,105.00",The Oak Trust,
Manchester City Council,Adult Social Care,Rents,11.05.2020,5101087869,"2,054.00",Northwards Housing Limited,
Manchester City Council,Adult Social Care,Supporting People Payments,11.05.2020,5101087731,"1,907.00",Places for People Living +,
Manchester City Council,Housing General Fund,Council Dwelling Adaptations,11.05.2020,5101087554,"1,763.80",UPS Building & Maintenance Ltd,
Manchester City Council,Hospitality + Trading Services,Funeral and coroner related services,11.05.2020,5101087438,"1,740.00",Teleshore (Uk) Ltd,
Manchester City Council,Corporate Services,Works and associated costs for Land and Buildings,11.05.2020,5101087019,"1,711.84",Cruden Property Services Ltd,
Manchester City Council,Corporate Services,Works and associated costs for Land and Buildings,11.05.2020,5101087368,"1,650.00",Jane Simpson Access Ltd,
Manchester City Council,Highways Services,Compensation Payments,11.05.2020,1906854111,"1,618.50",Peasegoods,
Manchester City Council,Childrens & Education Services,Payments for services,11.05.2020,5101087015,"1,535.52",Apollo Home Healthcare Ltd,
Manchester City Council,Adult Social Care,Grant Payments,11.05.2020,5101087426,"1,500.00",Newcastle City Council,
Manchester City Council,Corporate Services,Licences Purchase,11.05.2020,5101087033,"1,468.61",Insight Direct (Uk) Ltd,
Manchester City Council,Adult Social Care,Personal needs of client,11.05.2020,5101087073,"1,464.00",Ethitec,
Manchester City Council,Environment and Operations,Construction Works,11.05.2020,5101087802,"1,450.00",Deloitte & Touche Llp,
Manchester City Council,Childrens & Education Services,CORONA VIRUS D-19,11.05.2020,5101087864,"1,440.00",Redacted Personal Information,
Manchester City Council,Childrens & Education Services,CORONA VIRUS D-19,11.05.2020,5101087272,"1,380.00",RK Travel Ltd,
Manchester City Council,Childrens & Education Services,CORONA VIRUS D-19,11.05.2020,5101087744,"1,272.00",T/A Beresford Travel,
Manchester City Council,Highways Services,Compensation Payments,11.05.2020,1906854111,"1,250.00",Peasegoods,
Manchester City Council,Chief Executives,Legal Fees,11.05.2020,5101087886,"1,246.90",Eversheds Llp,
Manchester City Council,Childrens & Education Services,CORONA VIRUS D-19,11.05.2020,5101087866,"1,210.00",Redacted Personal Information,
Manchester City Council,Adult Social Care,Rents,11.05.2020,1906854867,"1,050.00",Redacted Personal Information,
Manchester City Council,Corporate Services,Equipment,11.05.2020,5101087861,"1,029.00",Back Care Solutions Ltd,
Manchester City Council,Regeneration Finance,Contract Cleaning External,11.05.2020,5101087496,"1,027.23",M & M Cleaning Services Ltd,
Manchester City Council,Manchester Leisure,Contract Cleaning External,11.05.2020,5101087032,"1,000.00",GTS Steam Cleaners,
Manchester City Council,Manchester Leisure,Equipment,11.05.2020,5101087677,976.00,Kingfisher Design & Management Ltd,
Manchester City Council,Childrens & Education Services,Payments for services,11.05.2020,5101087474,968.04,Allied Publicity Services (M\cr) Lt,
Manchester City Council,Chief Executives,Advertising,11.05.2020,5101087452,949.05,TES Global Ltd,
Manchester City Council,Chief Executives,Advertising,11.05.2020,5101087708,949.05,TES Global Ltd,
Manchester City Council,Chief Executives,Payments to Sub-Contractors,11.05.2020,5101087177,941.21,Redacted Personal Information,
Manchester City Council,Chief Executives,Printing,11.05.2020,5101087500,920.00,Euro Label Printers Ltd,
Manchester City Council,Regeneration Finance,Third party payments relating to Voluntary Organisations,11.05.2020,5101087588,920.00,Street League,
Manchester City Council,Regeneration Finance,External repairs and maintenance for buildings,11.05.2020,5101087792,915.20,Cheshire Scaffolds Ltd,
Manchester City Council,Manchester Leisure,Furniture,11.05.2020,5101087793,909.00,Rackline Limited,
Manchester City Council,Corporate Services,Training and Development,11.05.2020,5101087014,900.00,Capita Business Services Ltd,
Manchester City Council,Regeneration Finance,Equipment,11.05.2020,5101086945,900.00,Hideaway Media Ltd,
Manchester City Council,Adult Social Care,Third party payments relating to Voluntary Organisations,11.05.2020,5101087726,883.46,Manchester People First,
Manchester City Council,Chief Executives,Agency staff provision,11.05.2020,1906854108,880.00,Redacted Personal Information,
Manchester City Council,Manchester Leisure,Professional fees,11.05.2020,5101087842,876.00,University Of Manchester,
Manchester City Council,Chief Executives,Professional fees,11.05.2020,1906853281,875.00,Redacted Personal Information,
Manchester City Council,Manchester Leisure,Testing Fees,11.05.2020,5101087585,850.00,County Scientific Services,
Manchester City Council,Regeneration Finance,Training and Development,11.05.2020,5101087583,844.00,Ncfe,
Manchester City Council,Corporate Services,Works and associated costs for Land and Buildings,11.05.2020,5101087844,810.00,Ramboll UK Limited,
Manchester City Council,Childrens & Education Services,Public Transport,11.05.2020,5101087244,765.00,Welcare Secure Escorts Limited,
Manchester City Council,Regeneration Finance,Training and Development,11.05.2020,1906853075,760.00,Rics,
Manchester City Council,Manchester Leisure,Equipment,11.05.2020,5101087614,750.00,Flowprotect Ltd,
Manchester City Council,Manchester Leisure,Subsistence and Conference Expenses,11.05.2020,5101087858,735.00,Edinburgh City Council,
Manchester City Council,Childrens & Education Services,CORONA VIRUS D-19,11.05.2020,5101087885,729.44,Arrow County Supplies,
Manchester City Council,Childrens & Education Services,Third party payments to other Local Authorities,11.05.2020,5101087810,676.00,Stockport Metropolitan Borough,
Manchester City Council,Childrens & Education Services,Professional fees,11.05.2020,1906848308,666.67,Redacted Personal Information,
Manchester City Council,Environment and Operations,Construction Works,11.05.2020,5101087547,643.60,Deloitte & Touche Llp,
Manchester City Council,Regeneration Finance,External repairs and maintenance for buildings,11.05.2020,5101087655,630.00,Fairway Landscapes Ltd,
Manchester City Council,Childrens & Education Services,Professional fees,11.05.2020,5101087632,600.00,Affinity Workforce Solutions Ltd,
Manchester City Council,Childrens & Education Services,Professional fees,11.05.2020,5101087659,600.00,Affinity Workforce Solutions Ltd,
Manchester City Council,Childrens & Education Services,CORONA VIRUS D-19,11.05.2020,5101087749,600.00,Connect Cars Ltd,
Manchester City Council,Adult Social Care,External repairs and maintenance for buildings,11.05.2020,5101087540,595.00,UPS Building & Maintenance Ltd,
Manchester City Council,Manchester Leisure,Professional fees,11.05.2020,5101087862,587.50,Redacted Personal Information,
Manchester City Council,Hospitality + Trading Services,Funeral and coroner related services,11.05.2020,5101087890,581.00,ECE Consultancy,
Manchester City Council,Childrens & Education Services,Professional fees,11.05.2020,5101087513,560.00,Affinity Workforce Solutions Ltd,
Manchester City Council,Adult Social Care,Rents,11.05.2020,5101087055,542.62,Houses4Homes 4U Ltd,
Manchester City Council,Environment and Operations,Construction Works,11.05.2020,5101087021,532.48,Bt Repayments And Claims Group,
Manchester City Council,Childrens & Education Services,Professional fees,11.05.2020,5101087645,520.00,Affinity Workforce Solutions Ltd,
Manchester City Council,Chief Executives,Paper & Envelopes,11.05.2020,5101087887,502.18,Premier Paper Group Ltd,
Manchester City Council,Highways Services,Legal Fees,11.05.2020,1906846800,500.00,Redacted Personal Information,
Manchester City Council,Chief Executives,Compensation Payments,11.05.2020,5101087881,500.00,Redacted Personal Information,
Manchester City Council,Chief Executives,Paper & Envelopes,11.05.2020,5101087882,-502.18,Premier Paper Group Ltd,
Manchester City Council,Highways Services,Private Finance and Public Private partnership initiatives,12.05.2020,5101087575,"643,595.97",Amey Highways Lighting (Manchester),
Manchester City Council,Housing Revenue Account,Private Finance and Public Private partnership initiatives,12.05.2020,5101087998,"487,813.17",Grove Village Ltd,
Manchester City Council,Childrens & Education Services,Private Finance and Public Private partnership initiatives,12.05.2020,5101086891,"405,947.85",Manchester School Services Limited,
Manchester City Council,Childrens & Education Services,Private Finance and Public Private partnership initiatives,12.05.2020,5101087865,"405,947.85",Manchester School Services Limited,
Manchester City Council,Adult Social Care,Rents,12.05.2020,5101088064,"142,853.15",Mack Residential Letting Ltd,
Manchester City Council,Adult Social Care,Third party payments relating to Voluntary Organisations,12.05.2020,5101087933,"104,166.67",Nacro,
Manchester City Council,Housing Revenue Account,Professional fees,12.05.2020,5101087979,"103,000.00",Your Employment Service CIC (YES),
Manchester City Council,Childrens & Education Services,Transport Coach Hire,12.05.2020,5101087335,"91,272.00",Communitytransportservices.co.uk,
Manchester City Council,Corporate Services,Works and associated costs for Land and Buildings,12.05.2020,5101088028,"87,000.00",Purcell Architecture Limited,
Manchester City Council,Chief Executives,Works and associated costs for Land and Buildings,12.05.2020,5101087403,"72,811.00",Office for Metropolitan Architectur,
Manchester City Council,Adult Social Care,Bed and Breakfast Accommodation Expenditure,12.05.2020,5101087982,"41,742.00",Redacted Personal Information,
Manchester City Council,Adult Social Care,Personal needs of client,12.05.2020,5101087939,"41,043.20",Yorkshire Care Equipment,
Manchester City Council,Corporate Services,Works and associated costs for Land and Buildings,12.05.2020,5101088012,"37,000.00",Faithful & Gould Ltd,
Manchester City Council,Corporate Services,Works and associated costs for Land and Buildings,12.05.2020,5101088029,"32,698.00",Mace Ltd,
Manchester City Council,Adult Social Care,Carer Support Payments ,12.05.2020,5101087973,"32,677.88",Sevacare (U K ) lTD,
Manchester City Council,Adult Social Care,Rents,12.05.2020,5101087944,"27,149.65",Cromwood Ltd,
Manchester City Council,Corporate Services,Works and associated costs for Land and Buildings,12.05.2020,5101088037,"25,000.00",Purcell Architecture Limited,
Manchester City Council,Highways Services,Compensation Payments,12.05.2020,1906854899,"20,000.00",Waring& Co Solicitors,
Manchester City Council,Adult Social Care,Bed and Breakfast Accommodation Expenditure,12.05.2020,5101087922,"19,778.85",Redacted Personal Information,
Manchester City Council,Adult Social Care,Third party payments relating to Voluntary Organisations,12.05.2020,5101087214,"19,074.00",Manchester Carers Forum,
Manchester City Council,Chief Executives,Grant and subscriptions awarded,12.05.2020,5101088058,"17,029.00",Young Manchester,
Manchester City Council,Corporate Services,Works and associated costs for Land and Buildings,12.05.2020,5101088003,"15,129.60",Ove Arup & Partners Ltd,
Manchester City Council,Corporate Services,I T Provision,12.05.2020,5101087938,"15,067.00",Siemens Plc,
Manchester City Council,Hospitality + Trading Services,Compensation Payments,12.05.2020,1906856030,"12,791.90",Thompsons Solicitors,
Manchester City Council,Adult Social Care,Residential Care Homes Payments,12.05.2020,5101087963,"8,571.43",Enabling Futures Ltd,
Manchester City Council,Highways Services,Compensation Payments,12.05.2020,1906854900,"7,250.00",Express Solicitors,
Manchester City Council,Corporate Services,Works and associated costs for Land and Buildings,12.05.2020,5101088038,"7,068.00",Purcell Architecture Limited,
Manchester City Council,Corporate Services,Transport Taxis,12.05.2020,1906856870,"6,875.30",Street Cars,
Manchester City Council,Highways Services,Compensation Payments,12.05.2020,1906856484,"6,731.50",Simpson Millar LLP,
Manchester City Council,Corporate Services,Works and associated costs for Land and Buildings,12.05.2020,5101088032,"6,630.00",Planit,
Manchester City Council,Adult Social Care,Third party payments relating to Voluntary Organisations,12.05.2020,5101087953,"6,340.67",Manchester Womens Aid,
Manchester City Council,Adult Social Care,Third party payments relating to Voluntary Organisations,12.05.2020,5101087954,"6,340.67",Manchester Womens Aid,
Manchester City Council,Adult Social Care,Hospitality,12.05.2020,5101087922,"6,152.05",Redacted Personal Information,
Manchester City Council,Highways Services,Compensation Payments,12.05.2020,1906855109,"5,576.50",Gavin Edmondson Solicitors Ltd,
Manchester City Council,Environment and Operations,Construction Works,12.05.2020,5101088060,"5,195.26",John Sisk & Son (Holdings) Ltd,
Manchester City Council,Corporate Services,Works and associated costs for Land and Buildings,12.05.2020,5101088033,"5,080.65",Purcell Architecture Limited,
Manchester City Council,Corporate Services,Security,12.05.2020,5101088041,"5,024.82",NSL Ltd,
Manchester City Council,Regeneration Finance,Security,12.05.2020,5101087934,"4,462.00",Ridge Park Security Ltd,
Manchester City Council,Highways Services,Compensation Payments,12.05.2020,1906854900,"4,308.00",Express Solicitors,
Manchester City Council,Hospitality + Trading Services,Building Materials for direct delivery,12.05.2020,5101087651,"4,072.72",Killgerm Chemicals Ltd,
Manchester City Council,Corporate Services,Works and associated costs for Land and Buildings,12.05.2020,5101088029,"4,000.00",Mace Ltd,
Manchester City Council,Highways Services,Compensation Payments,12.05.2020,1906856484,"3,750.00",Simpson Millar LLP,
Manchester City Council,Adult Social Care,Funeral and coroner related services,12.05.2020,5101087631,"3,402.00",Greater Manchester Funeral Service,
Manchester City Council,Corporate Services,Works and associated costs for Land and Buildings,12.05.2020,5101088031,"3,300.00",Planit,
Manchester City Council,Childrens & Education Services,Internal Repairs and Maintenance for buildings,12.05.2020,5101087086,"3,145.00",Manchester School Services Limited,
Manchester City Council,Insurance Fund,Compensation Payments,12.05.2020,1906854899,"3,000.00",Waring& Co Solicitors,
Manchester City Council,Adult Social Care,Payments to Government Departments,12.05.2020,5101087996,"2,891.98",Routes Healthcare (North) Ltd,
Manchester City Council,Adult Social Care,Personal needs of client,12.05.2020,5101088059,"2,777.00",Drive Devilbiss Healthcare Ltd,
Manchester City Council,Adult Social Care,Payments to Government Departments,12.05.2020,5101088016,"2,634.24",Homeecare4u Ltd,
Manchester City Council,Corporate Services,Tele Conferencing,12.05.2020,1906853114,"2,631.31",BT Conferencing Services,
Manchester City Council,Hospitality + Trading Services,Vehicle Hire Costs,12.05.2020,5101088014,"2,524.60",Enterprise Flex-E-Rent,
Manchester City Council,Corporate Services,Works and associated costs for Land and Buildings,12.05.2020,5101088034,"2,500.00",Purcell Architecture Limited,
Manchester City Council,Childrens & Education Services,Rents,12.05.2020,1906830069,"2,440.00",Commercial Real Estates Management,
Manchester City Council,Adult Social Care,Funeral and coroner related services,12.05.2020,5101087623,"2,424.00",Greater Manchester Funeral Service,
Manchester City Council,Adult Social Care,Payments for services,12.05.2020,5101087955,"2,330.00",Turning Point,
Manchester City Council,Chief Executives,Professional fees,12.05.2020,1906856468,"2,100.00",Redacted Personal Information,
Manchester City Council,Chief Executives,Grant and subscriptions awarded,12.05.2020,5101087903,"2,099.00",The Manchester Law Society,
Manchester City Council,Corporate Services,Tracing fees,12.05.2020,5101087920,"2,086.40",Experian Limited,
Manchester City Council,Adult Social Care,Payments to Government Departments,12.05.2020,5101087995,"2,065.70",Routes Healthcare (North) Ltd,
Manchester City Council,Adult Social Care,Equipment,12.05.2020,5101087999,"2,026.83",Ability Smart Ltd,
Manchester City Council,Corporate Services,External repairs and maintenance for buildings,12.05.2020,1906844490,"2,000.00",Twinfix Limited,
Manchester City Council,Adult Social Care,Equipment,12.05.2020,5101088045,"1,949.10",Drive Devilbiss Healthcare Ltd,
Manchester City Council,Chief Executives,Agency staff provision,12.05.2020,5101087966,"1,944.00",Ashberry Recruitment Ltd,
Manchester City Council,Adult Social Care,Payments to Government Departments,12.05.2020,5101088017,"1,858.08",Homeecare4u Ltd,
Manchester City Council,Adult Social Care,Payments to Government Departments,12.05.2020,5101088018,"1,858.08",Homeecare4u Ltd,
Manchester City Council,Adult Social Care,Equipment,12.05.2020,5101087999,"1,845.37",Ability Smart Ltd,
Manchester City Council,Adult Social Care,Payments to Government Departments,12.05.2020,5101088021,"1,798.83",Homeecare4u Ltd,
Manchester City Council,Chief Executives,Landline Telephone Charges,12.05.2020,5101087951,"1,750.00",The Loop t/a Gamma Telecom Ltd,
Manchester City Council,Hospitality + Trading Services,Vehicle Hire Costs,12.05.2020,5101088015,"1,700.00",Peter Douglass Platforms,
Manchester City Council,Manchester Leisure,Professional fees,12.05.2020,5101087941,"1,639.94",Effusion LLP,
Manchester City Council,Chief Executives,Legal Fees,12.05.2020,5101087901,"1,525.00",11KBW,
Manchester City Council,Regeneration Finance,Grounds Maintenance Costs,12.05.2020,5101087988,"1,500.00",Arboricultural Services Treework,
Manchester City Council,Corporate Services,Works and associated costs for Land and Buildings,12.05.2020,5101088035,"1,500.00",Purcell Architecture Limited,
Manchester City Council,Chief Executives,Compensation Payments,12.05.2020,5101087919,"1,500.00",DWF LLP,
Manchester City Council,Manchester Leisure,Refuse Collection,12.05.2020,5101087940,"1,419.00",Vetspeed Ltd t/a Novus Environmenta,
Manchester City Council,Chief Executives,Advertising,12.05.2020,5101087972,"1,400.00",Guardian News and Media Limited,
Manchester City Council,Adult Social Care,Supporting People Payments,12.05.2020,5101087924,"1,255.41",Anchor Trust,
Manchester City Council,Hospitality + Trading Services,Vehicle Hire Costs,12.05.2020,5101087956,"1,200.00",Peter Douglass Platforms,
Manchester City Council,Regeneration Finance,External repairs and maintenance for buildings,12.05.2020,5101088074,"1,162.50",Community Security (North West),
Manchester City Council,Corporate Services,Works and associated costs for Land and Buildings,12.05.2020,5101088001,"1,123.88",Ove Arup & Partners Ltd,
Manchester City Council,Chief Executives,CORONA VIRUS D-19,12.05.2020,5101087904,"1,083.00",The Courier Company,
Manchester City Council,Corporate Services,Works and associated costs for Land and Buildings,12.05.2020,5101088007,"1,034.52",Faithful & Gould Ltd,
Manchester City Council,Hospitality + Trading Services,Equipment,12.05.2020,5101087967,"1,015.60",W.V.Howe Ltd,
Manchester City Council,Childrens & Education Services,Professional fees,12.05.2020,1906856467,"1,000.00",Central Chambers,
Manchester City Council,Adult Social Care,Legal Fees,12.05.2020,5101087926,"1,000.00",Redacted Personal Information,
Manchester City Council,Adult Social Care,Rents,12.05.2020,5101087948,996.66,Amco Management,
Manchester City Council,Adult Social Care,Supporting People Payments,12.05.2020,5101087924,930.00,Anchor Trust,
Manchester City Council,Regeneration Finance,Storage Costs,12.05.2020,5101087921,872.13,Data Space Limited,
Manchester City Council,Adult Social Care,Compensation Payments,12.05.2020,1906854901,827.59,Nicholas Todd Ltd,
Manchester City Council,Adult Social Care,Bed and Breakfast Accommodation Expenditure,12.05.2020,5101088030,800.00,Genuine Property Investments,
Manchester City Council,Adult Social Care,Equipment,12.05.2020,5101088048,766.75,Drive Devilbiss Healthcare Ltd,
Manchester City Council,Hospitality + Trading Services,Non Housing Rent Receipts,12.05.2020,1906841455,750.00,Redacted Personal Information,
Manchester City Council,Highways Services,Compensation Payments,12.05.2020,1906855032,750.00,Thompsons Solicitors,
Manchester City Council,Adult Social Care,Bed and Breakfast Accommodation Expenditure,12.05.2020,5101088036,700.00,Genuine Property Investments,
Manchester City Council,Adult Social Care,Bed and Breakfast Accommodation Expenditure,12.05.2020,5101088040,700.00,Genuine Property Investments,
Manchester City Council,Chief Executives,Landline Telephone Charges,12.05.2020,5101087952,695.00,The Loop t/a Gamma Telecom Ltd,
Manchester City Council,Adult Social Care,Manchester Council Tax,12.05.2020,5101088046,670.71,MCC Council Tax (int),
Manchester City Council,Adult Social Care,Rents,12.05.2020,5101087946,667.33,Amco Management,
Manchester City Council,Chief Executives,Professional fees,12.05.2020,1906856482,656.25,Redacted Personal Information,
Manchester City Council,Highways Services,Purchase of stores for re-distribution,12.05.2020,5101088068,653.60,Benchmark Building Supplies Ltd,
Manchester City Council,Regeneration Finance,Contract Cleaning External,12.05.2020,5101087821,646.64,Arrow County Supplies,
Manchester City Council,Adult Social Care,Bed and Breakfast Accommodation Expenditure,12.05.2020,5101088027,600.00,Genuine Property Investments,
Manchester City Council,Childrens & Education Services,Electricity,12.05.2020,1906830067,562.50,Commercial Real Estates Management,
Manchester City Council,Childrens & Education Services,Rents,12.05.2020,1906854871,562.50,Commercial Real Estates Management,
Manchester City Council,Childrens & Education Services,Transport Coach Hire,12.05.2020,5101087961,541.00,Middleton Cars Ltd,
Manchester City Council,Regeneration Finance,Storage Costs,12.05.2020,5101087937,519.51,Data Space Limited,
Manchester City Council,Adult Social Care,Rents,12.05.2020,1906854850,500.00,Redacted Personal Information,
Manchester City Council,Chief Executives,Professional fees,12.05.2020,1906856473,500.00,Kenworthy's Chambers,
Manchester City Council,Highways Services,Legal Fees,12.05.2020,5101087928,500.00,Redacted Personal Information,
Manchester City Council,Chief Executives,Vehicle Plant Furniture and Equipment,12.05.2020,5101087589,"-1,500.00",Esteem,
Manchester City Council,Adult Social Care,Bed and Breakfast Accommodation Expenditure,12.05.2020,5101087922,"-6,152.05",Redacted Personal Information,
Manchester City Council,Regeneration Finance,Cleaning Equipment and Materials,12.05.2020,5101087902,"-6,860.88",Arrow County Supplies,
Manchester City Council,Childrens & Education Services,Private Finance and Public Private partnership initiatives,12.05.2020,5101087989,"-405,947.85",Manchester School Services Limited,
Manchester City Council,General Fund,Levies,13.05.2020,1906846811,"3,747,584.90",GMCA,
Manchester City Council,Adult Social Care,Bed and Breakfast Accommodation Expenditure,13.05.2020,5101088126,"38,319.05",Revolving Doors Housing Trust,
Manchester City Council,Chief Executives,Advertising,13.05.2020,5101088182,"37,692.00",Reach Publishing Services Ltd,
Manchester City Council,Corporate Services,ICT Support & Maintenance,13.05.2020,5101088123,"26,000.00",Civica UK Ltd,
Manchester City Council,Manchester Leisure,Cash Collection,13.05.2020,5101086941,"19,555.33",National Car Parks Ltd Season Ticke,
Manchester City Council,Chief Executives,Grant and subscriptions awarded,13.05.2020,5101088136,"17,500.00",Thrive Manachester,
Manchester City Council,Corporate Services,ICT Support & Maintenance,13.05.2020,5101088122,"13,900.00",Civica UK Ltd,
Manchester City Council,Corporate Services,Professional fees,13.05.2020,5101087825,"11,250.00",Gleeds Management Services Limited,
Manchester City Council,Childrens & Education Services,Third party payments relating to Voluntary Organisations,13.05.2020,5101088142,"10,883.60",Manchester Settlement,
Manchester City Council,Corporate Services,General Office expenses,13.05.2020,1906859859,"10,800.00",CASTLE INDUSTRIAL,
Manchester City Council,Adult Social Care,Third party payments relating to Voluntary Organisations,13.05.2020,5101088128,"10,500.00",Learning Pool Limited,
Manchester City Council,Childrens & Education Services,CORONA VIRUS D-19,13.05.2020,5101088170,"9,572.00",Hastings Private Hire,
Manchester City Council,Childrens & Education Services,Third party payments to other Local Authorities,13.05.2020,5101088261,"8,939.00",The Orchards School,
Manchester City Council,Corporate Services,Professional fees,13.05.2020,5101088253,"8,829.00",Gleeds Management Services Limited,
Manchester City Council,Corporate Services,Professional fees,13.05.2020,5101088254,"8,829.00",Gleeds Management Services Limited,
Manchester City Council,Hospitality + Trading Services,Vehicle Fuel Costs,13.05.2020,5101088200,"8,398.23",Carlton Fuels Ltd,
Manchester City Council,Corporate Services,Professional fees,13.05.2020,5101088042,"8,100.00",Wilde Consultants Ltd,
Manchester City Council,Hospitality + Trading Services,Vehicle Fuel Costs,13.05.2020,5101088083,"8,061.54",Carlton Fuels Ltd,
Manchester City Council,Adult Social Care,Third party payments relating to Voluntary Organisations,13.05.2020,5101088223,"7,906.69",Supporting People In Need,
Manchester City Council,Adult Social Care,Third party payments relating to Voluntary Organisations,13.05.2020,5101088226,"7,906.69",Supporting People In Need,
Manchester City Council,Corporate Services,Professional fees,13.05.2020,5101087974,"7,210.00",Mace Cost Consultancy Ltd,
Manchester City Council,Hospitality + Trading Services,Vehicle Hire Costs,13.05.2020,1906859463,"7,000.00",PCS*WEEDING TECHNOLOGI,
Manchester City Council,Hospitality + Trading Services,Vehicle Fuel Costs,13.05.2020,5101088087,"6,987.42",Carlton Fuels Ltd,
Manchester City Council,Regeneration Finance,Cleaning Equipment and Materials,13.05.2020,5101087905,"6,860.88",Arrow County Supplies,
Manchester City Council,Hospitality + Trading Services,Funeral and coroner related services,13.05.2020,5101088157,"6,493.50",Showsec International Ltd,
Manchester City Council,Chief Executives,Professional fees,13.05.2020,5101088073,"6,250.00",Birmingham City Council,
Manchester City Council,Highways Services,Compensation Payments,13.05.2020,1906857171,"6,000.00",NV Legal Ltd,
Manchester City Council,Adult Social Care,Payments for services,13.05.2020,5101087997,"6,000.00",Wythenshawe Community Initiative,
Manchester City Council,Regeneration Finance,Professional fees,13.05.2020,5101087551,"5,945.17",Pax Energy,
Manchester City Council,Highways Services,Compensation Payments,13.05.2020,1906857158,"5,898.00",Russell & Russell,
Manchester City Council,Corporate Services,Professional fees,13.05.2020,5101087977,"5,500.00",Mace Cost Consultancy Ltd,
Manchester City Council,Corporate Services,Postage,13.05.2020,5101088139,"4,815.92",Royal Mail Group Plc,
Manchester City Council,Highways Services,Compensation Payments,13.05.2020,1906856577,"4,722.00",Slater & Gordon (UK) LLP,
Manchester City Council,Adult Social Care,Cleaning Equipment and Materials,13.05.2020,5101087755,"4,479.51",Banner Group Limited,
Manchester City Council,Adult Social Care,Third party payments relating to Voluntary Organisations,13.05.2020,5101088131,"4,444.49",DISC Ltd,
Manchester City Council,Highways Services,Compensation Payments,13.05.2020,1906856575,"4,137.26",Treadstone Law Solicitors,
Manchester City Council,Childrens & Education Services,Third party payments to other Local Authorities,13.05.2020,5101088153,"3,838.00",Outwood Primary School,
Manchester City Council,Corporate Services,Professional fees,13.05.2020,5101087975,"3,600.00",Mace Cost Consultancy Ltd,
Manchester City Council,Hospitality + Trading Services,Building Materials for direct delivery,13.05.2020,1906859551,"3,369.41",MARINA ROPE LTD,
Manchester City Council,Environment and Operations,Construction Works,13.05.2020,5101087449,"3,274.69",Transport for Greater Manchester,
Manchester City Council,Childrens & Education Services,Third party payments to other Local Authorities,13.05.2020,5101088195,"3,256.00",Fairfield High School for Girls,
Manchester City Council,Adult Social Care,Rents,13.05.2020,5101088102,"3,210.60",Mosscare Housing Ltd,
Manchester City Council,Childrens & Education Services,Compensation Payments,13.05.2020,1906854105,"3,129.50",Accountant General Of the,
Manchester City Council,Childrens & Education Services,Personal needs of client,13.05.2020,1906859827,"3,070.87",HENDHAM HOUSE HOTEL,
Manchester City Council,Highways Services,Compensation Payments,13.05.2020,1906857158,"3,000.00",Russell & Russell,
Manchester City Council,Adult Social Care,Payments for services,13.05.2020,5101087398,"2,982.00",Delphi Medical,
Manchester City Council,Manchester Leisure,Professional fees,13.05.2020,5101088071,"2,862.50",Pleydell Smithyman Limited,
Manchester City Council,Corporate Services,Transport Taxis,13.05.2020,1906859905,"2,838.33",Mantax Radio Taxis Ltd,
Manchester City Council,Chief Executives,Data Links,13.05.2020,5101087994,"2,833.34",The Loop t/a Gamma Telecom Ltd,
Manchester City Council,Childrens & Education Services,Professional fees,13.05.2020,1906856478,"2,766.60",Tuckers Solicitors,
Manchester City Council,Adult Social Care,"Consumable items eg Toilet rolls, soap etc",13.05.2020,1906859435,"2,761.01",STERLING PROPERTY CO L,
Manchester City Council,Highways Services,Compensation Payments,13.05.2020,1906856575,"2,725.00",Treadstone Law Solicitors,
Manchester City Council,Corporate Services,Works and associated costs for Land and Buildings,13.05.2020,5101088044,"2,315.64",AA Projects Ltd,
Manchester City Council,Childrens & Education Services,Third party payments relating to Voluntary Organisations,13.05.2020,5101088143,"2,260.44",Manchester Settlement,
Manchester City Council,Childrens & Education Services,CORONA VIRUS D-19,13.05.2020,5101088316,"2,256.36",Banner Group Limited,
Manchester City Council,Chief Executives,Examination Fees,13.05.2020,5101088222,"1,999.75",ROAR Forensics Ltd,
Manchester City Council,Chief Executives,Agency staff provision,13.05.2020,5101087992,"1,944.00",Ashberry Recruitment Ltd,
Manchester City Council,Regeneration Finance,Professional fees,13.05.2020,5101088169,"1,809.50",P Mcguinness & Co Ltd,
Manchester City Council,Chief Executives,Landline Telephone Charges,13.05.2020,5101088002,"1,750.00",The Loop t/a Gamma Telecom Ltd,
Manchester City Council,Chief Executives,Examination Fees,13.05.2020,5101088204,"1,719.50",ROAR Forensics Ltd,
Manchester City Council,Childrens & Education Services,Subsistence and Conference Expenses,13.05.2020,1906859812,"1,717.50",PAYPAL (UK) P CARD ONLY,
Manchester City Council,Hospitality + Trading Services,Building Materials for direct delivery,13.05.2020,1906859665,"1,684.71",MARINA ROPE LTD,
Manchester City Council,Hospitality + Trading Services,Building Materials for direct delivery,13.05.2020,1906859513,"1,684.70",MARINA ROPE LTD,
Manchester City Council,Hospitality + Trading Services,Building Materials for direct delivery,13.05.2020,1906859664,"1,684.70",MARINA ROPE LTD,
Manchester City Council,Adult Social Care,Catering Provisions,13.05.2020,1906859452,"1,648.00",CONCEPT CARE SHOP,
Manchester City Council,Manchester Leisure,Professional fees,13.05.2020,5101087120,"1,500.00",Utilities Design & Planning Ltd,
Manchester City Council,Manchester Leisure,Professional fees,13.05.2020,5101087123,"1,500.00",Utilities Design & Planning Ltd,
Manchester City Council,Chief Executives,Third party payments relating to Voluntary Organisations,13.05.2020,5101088063,"1,500.00",Affordable & Stylish,
Manchester City Council,Adult Social Care,Payments for services,13.05.2020,5101087399,"1,491.00",Delphi Medical,
Manchester City Council,Manchester Leisure,Publications,13.05.2020,5101088174,"1,456.89",NBN International,
Manchester City Council,Childrens & Education Services,Professional fees,13.05.2020,1906856626,"1,437.50",Redacted Personal Information,
Manchester City Council,Chief Executives,Examination Fees,13.05.2020,5101088218,"1,432.13",ROAR Forensics Ltd,
Manchester City Council,Manchester Leisure,"Clothes, Uniform and Laundry",13.05.2020,5101088320,"1,387.00",Egan Reid Stationery Co Ltd,
Manchester City Council,Adult Social Care,"Consumable items eg Toilet rolls, soap etc",13.05.2020,1906859501,"1,335.00",Reeds Rains,
Manchester City Council,Chief Executives,Examination Fees,13.05.2020,5101088214,"1,306.25",ROAR Forensics Ltd,
Manchester City Council,Chief Executives,Printing,13.05.2020,5101088321,"1,300.00",Astra Signs,
Manchester City Council,Adult Social Care,"Consumable items eg Toilet rolls, soap etc",13.05.2020,1906859610,"1,203.60",MONTAUBAN SERVICED ACCOMM,
Manchester City Council,Childrens & Education Services,Furniture,13.05.2020,5101088282,"1,195.62",Eps Supplies Ltd,
Manchester City Council,Regeneration Finance,Professional fees,13.05.2020,5101088163,"1,155.00",P Mcguinness & Co Ltd,
Manchester City Council,Chief Executives,Grant Payments,13.05.2020,5101088113,"1,127.50",Association For Public,
Manchester City Council,Regeneration Finance,Grant Payments,13.05.2020,5101088113,"1,127.50",Association For Public,
Manchester City Council,Corporate Services,ICT Support & Maintenance,13.05.2020,5101088121,"1,100.00",Civica UK Ltd,
Manchester City Council,Childrens & Education Services,Grant and subscriptions awarded,13.05.2020,5101088104,"1,095.00",Music Mark,
Manchester City Council,Manchester Leisure,Professional fees,13.05.2020,5101088233,"1,080.00",Redacted Personal Information,
Manchester City Council,Childrens & Education Services,Personal needs of client,13.05.2020,1906859806,"1,031.20",2VAA014201430 TD E-PMT,
Manchester City Council,Highways Services,Compensation Payments,13.05.2020,1906847447,"1,020.00",Berrymans Lace Mawer,
Manchester City Council,Adult Social Care,Catering Provisions,13.05.2020,1906859649,948.00,CURRYS ONLINE,
Manchester City Council,Corporate Services,Equipment,13.05.2020,1906859804,943.28,Brake Bros Foodservice Ltd,
Manchester City Council,Adult Social Care,Contract Cleaning External,13.05.2020,5101088078,933.00,YD Healthcare Ltd,
Manchester City Council,Chief Executives,Professional fees,13.05.2020,1906856630,931.25,Weightmans LLP Solicitors,
Manchester City Council,Childrens & Education Services,General Office expenses,13.05.2020,1906859488,913.18,SPOK LETTINGS,
Manchester City Council,Childrens & Education Services,General Office expenses,13.05.2020,1906859491,906.06,EE / Orange,
Manchester City Council,Adult Social Care,Cleaning Equipment and Materials,13.05.2020,5101088053,900.00,Banner Group Limited,
Manchester City Council,Housing Revenue Account,Council Dwelling Adaptations,13.05.2020,5101087835,865.75,Stannah Lift Services Ltd,
Manchester City Council,Chief Executives,Examination Fees,13.05.2020,5101088199,859.75,ROAR Forensics Ltd,
Manchester City Council,Chief Executives,Examination Fees,13.05.2020,5101088202,859.75,ROAR Forensics Ltd,
Manchester City Council,Chief Executives,Compensation Payments,13.05.2020,1906859399,830.00,BPP UNI COLLEGE 5,
Manchester City Council,Chief Executives,Expenditure re Internal Trading Ordered Externally,13.05.2020,5101088238,820.00,Civica Election Services,
Manchester City Council,Adult Social Care,Rents,13.05.2020,1906856628,770.00,Redacted Personal Information,
Manchester City Council,Corporate Services,General Office expenses,13.05.2020,1906859875,761.20,Amazon Co.Uk,
Manchester City Council,Childrens & Education Services,Subsistence and Conference Expenses,13.05.2020,1906859531,712.00,THE LIGHT APARTHOTEL,
Manchester City Council,Chief Executives,Landline Telephone Charges,13.05.2020,5101088004,695.00,The Loop t/a Gamma Telecom Ltd,
Manchester City Council,Regeneration Finance,General Office expenses,13.05.2020,5101088189,680.00,Faithful & Gould Ltd,
Manchester City Council,Hospitality + Trading Services,Building Materials for direct delivery,13.05.2020,1906859550,670.45,SUMUP  *LUCKY WINES,
Manchester City Council,Highways Services,Payments to Sub-Contractors,13.05.2020,5101087423,650.00,Utilities Design & Planning Ltd,
Manchester City Council,Chief Executives,Landline Telephone Charges,13.05.2020,5101088260,635.31,Insight Direct (Uk) Ltd,
Manchester City Council,Childrens & Education Services,Foster Payments,13.05.2020,1906857164,634.00,Redacted Personal Information,
Manchester City Council,Adult Social Care,"Consumable items eg Toilet rolls, soap etc",13.05.2020,1906859413,614.94,Argos Business Solutions,
Manchester City Council,Adult Social Care,"Consumable items eg Toilet rolls, soap etc",13.05.2020,1906859411,603.94,Argos Business Solutions,
Manchester City Council,Chief Executives,Advertising,13.05.2020,1906859397,600.03,Facebook (CARD ONLY),
Manchester City Council,Manchester Leisure,Professional fees,13.05.2020,5101088127,600.00,Redacted Personal Information,
Manchester City Council,Manchester Leisure,Payments to Sub-Contractors,13.05.2020,5101088077,590.00,Wythenshawe Community Farm,
Manchester City Council,Childrens & Education Services,Professional fees,13.05.2020,1906859590,554.98,Amazon Co.Uk,
Manchester City Council,Childrens & Education Services,Personal needs of client,13.05.2020,1906859842,553.00,CORP TVL MGT 000000000000,
Manchester City Council,Adult Social Care,"Consumable items eg Toilet rolls, soap etc",13.05.2020,1906859559,550.00,CROWN HOMES LTD,
Manchester City Council,Adult Social Care,Training and Development,13.05.2020,5101088255,540.00,Foundations,
Manchester City Council,Environment and Operations,Construction Works,13.05.2020,5101087448,505.90,Transport for Greater Manchester,
Manchester City Council,Adult Social Care,Rents,13.05.2020,1906830615,500.00,Redacted Personal Information,
Manchester City Council,Adult Social Care,"Consumable items eg Toilet rolls, soap etc",13.05.2020,1906859412,-603.94,Argos Business Solutions,
Manchester City Council,Corporate Services,Travel Season Ticket Loan Scheme,13.05.2020,5101088201,-748.70,Transport for Greater Manchester,
Manchester City Council,Childrens & Education Services,Transport Coach Hire,13.05.2020,5101088181,"-1,320.00",JKR Travel,
Manchester City Council,Adult Social Care,Third party payments relating to Voluntary Organisations,13.05.2020,5101088220,"-7,906.69",Supporting People In Need,
Manchester City Council,Manchester Leisure,Refuse Collection,14.05.2020,5101087853,"1,125,098.38",Biffa Municipal Limited,
Manchester City Council,Childrens & Education Services,Payments for services,14.05.2020,5101087473,"118,334.34",Loreto College,
Manchester City Council,Manchester Leisure,Payments to Contractors,14.05.2020,5101087855,"107,272.29",Biffa Municipal Limited,
Manchester City Council,Manchester Leisure,Refuse Collection,14.05.2020,5101087856,"87,994.52",Biffa Municipal Limited,
Manchester City Council,Adult Social Care,Bed and Breakfast Accommodation Expenditure,14.05.2020,5101087930,"86,184.00",British Muslim Heritage Centre,
Manchester City Council,Corporate Services,Works and associated costs for Land and Buildings,14.05.2020,5101088286,"78,401.18",Kier Construction Limited,
Manchester City Council,Adult Social Care,Rents,14.05.2020,5101087653,"53,532.88",Mears Limited,
Manchester City Council,Corporate Services,Works and associated costs for Land and Buildings,14.05.2020,5101087848,"46,530.27",F Parkinson Limited,
Manchester City Council,Adult Social Care,Payments for services,14.05.2020,5101088276,"41,715.32",Brook,
Manchester City Council,Chief Executives,Agency staff provision,14.05.2020,5101087993,"31,931.30",Cadence Resourcing Ltd,
Manchester City Council,Hospitality + Trading Services,Contract Cleaning External,14.05.2020,5101088094,"28,311.58",Biffa Municipal Limited,
Manchester City Council,Hospitality + Trading Services,Contract Cleaning External,14.05.2020,5101088098,"28,311.58",Biffa Municipal Limited,
Manchester City Council,Childrens & Education Services,Gas,14.05.2020,5101088061,"20,304.16",Manchester School Services Limited,
Manchester City Council,Childrens & Education Services,Payments for services,14.05.2020,5101087468,"15,966.67",Works 4U (Support Services) Ltd,
Manchester City Council,Childrens & Education Services,Transport Coach Hire,14.05.2020,5101087029,"15,360.00",JCT Travel Ltd,
Manchester City Council,Childrens & Education Services,Transport Coach Hire,14.05.2020,5101088284,"15,360.00",JCT Travel Ltd,
Manchester City Council,Adult Social Care,Bed and Breakfast Accommodation Expenditure,14.05.2020,5101088360,"13,510.07",Quays Housing,
Manchester City Council,Childrens & Education Services,Payments for services,14.05.2020,5101088212,"11,470.00",Trafford College,
Manchester City Council,Adult Social Care,Security,14.05.2020,5101088363,"11,256.00",UNIQUE SPECIALIST SERVICES,
Manchester City Council,Adult Social Care,Security,14.05.2020,5101088364,"11,256.00",UNIQUE SPECIALIST SERVICES,
Manchester City Council,Adult Social Care,Security,14.05.2020,5101088366,"11,256.00",UNIQUE SPECIALIST SERVICES,
Manchester City Council,Adult Social Care,Security,14.05.2020,5101088367,"11,256.00",UNIQUE SPECIALIST SERVICES,
Manchester City Council,Adult Social Care,Security,14.05.2020,5101088368,"11,256.00",UNIQUE SPECIALIST SERVICES,
Manchester City Council,Adult Social Care,Payments for services,14.05.2020,5101088276,"10,833.33",Brook,
Manchester City Council,Childrens & Education Services,Third party payments to other Local Authorities,14.05.2020,5101088298,"9,028.00",Bolton Mbc,
Manchester City Council,Hospitality + Trading Services,Vehicle Fuel Costs,14.05.2020,5101087772,"8,208.46",Carlton Fuels Ltd,
Manchester City Council,Manchester Leisure,Grant and subscriptions awarded,14.05.2020,5101087367,"7,227.10",Wythenshawe Food Banks,
Manchester City Council,Chief Executives,Professional fees,14.05.2020,1906861120,"6,906.25",Weightmans LLP Solicitors,
Manchester City Council,Highways Services,Professional fees,14.05.2020,5101087582,"5,418.75",Pell Frischmann Consultants Ltd,
Manchester City Council,Adult Social Care,Personal needs of client,14.05.2020,5101087789,"5,400.00",Invacare Limited,
Manchester City Council,Corporate Services,Professional fees,14.05.2020,5101087590,"4,500.00",Gleeds Management Services Limited,
Manchester City Council,Adult Social Care,Equipment,14.05.2020,5101088049,"3,840.00",Tunstall Healthcare (UK) Ltd,
Manchester City Council,Corporate Services,Fees,14.05.2020,5101088134,"3,429.00",Pannone Corporate LLP,
Manchester City Council,Childrens & Education Services,Storage Costs,14.05.2020,5101088333,"3,200.64",Restore PLC,
Manchester City Council,Regeneration Finance,Professional fees,14.05.2020,5101087790,"3,000.00",GVA Grimley Ltd,
Manchester City Council,Adult Social Care,Funeral and coroner related services,14.05.2020,5101087641,"2,668.00",Greater Manchester Funeral Service,
Manchester City Council,Adult Social Care,External repairs and maintenance for buildings,14.05.2020,5101087843,"2,542.50",Sheridan Lifts Ltd,
Manchester City Council,Adult Social Care,Third party payments relating to Voluntary Organisations,14.05.2020,5101088124,"2,527.20",Supporting People In Need,
Manchester City Council,Corporate Services,Electricity,14.05.2020,1906861636,"2,497.36",Scottish & Southern Energy Plc,
Manchester City Council,Hospitality + Trading Services,Professional fees,14.05.2020,5101088273,"2,438.00",Jacobs UK Ltd,
Manchester City Council,Childrens & Education Services,Storage Costs,14.05.2020,5101088331,"2,151.97",Restore PLC,
Manchester City Council,Regeneration Finance,Electricity,14.05.2020,1906861561,"1,872.35",Scottish & Southern Energy Plc,
Manchester City Council,Chief Executives,Professional fees,14.05.2020,1906861119,"1,737.50",Weightmans LLP Solicitors,
Manchester City Council,Adult Social Care,Payments for services,14.05.2020,5101088347,"1,631.00",Turning Point,
Manchester City Council,Adult Social Care,Payments for services,14.05.2020,5101088350,"1,631.00",Turning Point,
Manchester City Council,Adult Social Care,Payments for services,14.05.2020,5101088352,"1,631.00",Turning Point,
Manchester City Council,Adult Social Care,Payments for services,14.05.2020,5101088354,"1,631.00",Turning Point,
Manchester City Council,Adult Social Care,Payments for services,14.05.2020,5101088359,"1,631.00",Turning Point,
Manchester City Council,Regeneration Finance,Electricity,14.05.2020,1906861514,"1,448.08",Scottish & Southern Energy Plc,
Manchester City Council,Adult Social Care,Funeral and coroner related services,14.05.2020,5101087644,"1,389.00",Greater Manchester Funeral Service,
Manchester City Council,Regeneration Finance,Electricity,14.05.2020,1906861724,"1,370.43",Scottish & Southern Energy Plc,
Manchester City Council,Childrens & Education Services,Third party payments to other Local Authorities,14.05.2020,5101086724,"1,275.48",Bury M.B.C.,
Manchester City Council,Regeneration Finance,Electricity,14.05.2020,1906861722,"1,229.09",Scottish & Southern Energy Plc,
Manchester City Council,Manchester Leisure,Contract Cleaning External,14.05.2020,5101088302,"1,200.40",Clearview Event Services Limited,
Manchester City Council,Adult Social Care,Personal needs of client,14.05.2020,5101088361,"1,184.70",Drive Devilbiss Healthcare Ltd,
Manchester City Council,Chief Executives,Rents,14.05.2020,5101088164,"1,177.83",Manchester Creative Digital Assets,
Manchester City Council,Manchester Leisure,Electricity,14.05.2020,1906861588,"1,097.03",Scottish & Southern Energy Plc,
Manchester City Council,Childrens & Education Services,Electricity,14.05.2020,1906861513,"1,068.45",Scottish & Southern Energy Plc,
Manchester City Council,Chief Executives,Publications,14.05.2020,5101088349,"1,010.00",Thompson Reuters,
Manchester City Council,Childrens & Education Services,Payments for services,14.05.2020,5101087477,"1,000.00",Link Mediation Services,
Manchester City Council,Corporate Services,Electricity,14.05.2020,1906861672,977.65,Scottish & Southern Energy Plc,
Manchester City Council,Regeneration Finance,Electricity,14.05.2020,1906861653,977.06,Scottish & Southern Energy Plc,
Manchester City Council,Corporate Services,Electricity,14.05.2020,1906861584,960.94,Scottish & Southern Energy Plc,
Manchester City Council,Regeneration Finance,Electricity,14.05.2020,1906861571,956.99,Scottish & Southern Energy Plc,
Manchester City Council,Manchester Leisure,Electricity,14.05.2020,1906861589,930.05,Scottish & Southern Energy Plc,
Manchester City Council,Corporate Services,Electricity,14.05.2020,1906861512,923.57,Scottish & Southern Energy Plc,
Manchester City Council,Regeneration Finance,Electricity,14.05.2020,1906861787,872.55,Scottish & Southern Energy Plc,
Manchester City Council,Adult Social Care,Rents,14.05.2020,1906860933,870.00,Redacted Personal Information,
Manchester City Council,Regeneration Finance,Electricity,14.05.2020,1906861785,845.24,Scottish & Southern Energy Plc,
Manchester City Council,Corporate Services,Electricity,14.05.2020,1906861664,844.22,Scottish & Southern Energy Plc,
Manchester City Council,Regeneration Finance,External repairs and maintenance for buildings,14.05.2020,5101088337,840.00,McCosker Ltd,
Manchester City Council,Corporate Services,Electricity,14.05.2020,1906861667,828.66,Scottish & Southern Energy Plc,
Manchester City Council,Manchester Leisure,Electricity,14.05.2020,1906861552,795.25,Scottish & Southern Energy Plc,
Manchester City Council,Regeneration Finance,Electricity,14.05.2020,1906861602,785.45,Scottish & Southern Energy Plc,
Manchester City Council,Regeneration Finance,Electricity,14.05.2020,1906861643,779.59,Scottish & Southern Energy Plc,
Manchester City Council,Manchester Leisure,Electricity,14.05.2020,1906861591,774.32,Scottish & Southern Energy Plc,
Manchester City Council,Corporate Services,Electricity,14.05.2020,1906861625,769.96,Scottish & Southern Energy Plc,
Manchester City Council,Chief Executives,Electricity,14.05.2020,1906861541,747.61,Scottish & Southern Energy Plc,
Manchester City Council,Chief Executives,Vehicle Plant Furniture and Equipment,14.05.2020,5101084864,740.00,UKfast.net Ltd,
Manchester City Council,Manchester Leisure,Electricity,14.05.2020,1906861557,739.54,Scottish & Southern Energy Plc,
Manchester City Council,Insurance Fund,All Risks Insurance Premium,14.05.2020,5101088289,738.58,Aon Ltd,
Manchester City Council,Corporate Services,Electricity,14.05.2020,1906861730,725.70,Scottish & Southern Energy Plc,
Manchester City Council,Regeneration Finance,Electricity,14.05.2020,1906861630,721.67,Scottish & Southern Energy Plc,
Manchester City Council,Manchester Leisure,Contract Cleaning External,14.05.2020,5101088303,678.95,Clearview Event Services Limited,
Manchester City Council,Corporate Services,Electricity,14.05.2020,1906861540,671.43,Scottish & Southern Energy Plc,
Manchester City Council,Adult Social Care,Supported Accommodation,14.05.2020,5101087804,668.50,Care & Independence Ltd,
Manchester City Council,Highways Services,Building Materials for direct delivery,14.05.2020,5101088358,662.33,TARMAC,
Manchester City Council,Adult Social Care,Electricity,14.05.2020,1906861647,662.32,Scottish & Southern Energy Plc,
Manchester City Council,Regeneration Finance,Electricity,14.05.2020,1906861546,661.15,Scottish & Southern Energy Plc,
Manchester City Council,Corporate Services,Electricity,14.05.2020,1906861663,646.67,Scottish & Southern Energy Plc,
Manchester City Council,Regeneration Finance,Equipment,14.05.2020,5101088280,641.00,E Jordon (Refrigeration) Ltd,
Manchester City Council,Regeneration Finance,Electricity,14.05.2020,1906861720,638.69,Scottish & Southern Energy Plc,
Manchester City Council,Regeneration Finance,Electricity,14.05.2020,1906861727,635.76,Scottish & Southern Energy Plc,
Manchester City Council,Highways Services,Building Materials for direct delivery,14.05.2020,5101088357,634.28,TARMAC,
Manchester City Council,Manchester Leisure,Electricity,14.05.2020,1906861511,625.15,Scottish & Southern Energy Plc,
Manchester City Council,Regeneration Finance,Electricity,14.05.2020,1906861655,618.49,Scottish & Southern Energy Plc,
Manchester City Council,Childrens & Education Services,Professional fees,14.05.2020,1906857156,614.58,Redacted Personal Information,
Manchester City Council,Adult Social Care,Electricity,14.05.2020,1906861717,601.13,Scottish & Southern Energy Plc,
Manchester City Council,Environment and Operations,Professional fees,14.05.2020,5101087927,595.00,Solution Talk LLP,
Manchester City Council,Environment and Operations,Professional fees,14.05.2020,5101087929,595.00,Solution Talk LLP,
Manchester City Council,Regeneration Finance,Electricity,14.05.2020,1906861723,591.59,Scottish & Southern Energy Plc,
Manchester City Council,Regeneration Finance,Professional fees,14.05.2020,5101088340,575.00,McCosker Ltd,
Manchester City Council,Corporate Services,Electricity,14.05.2020,1906861517,568.27,Scottish & Southern Energy Plc,
Manchester City Council,Corporate Services,Electricity,14.05.2020,1906861665,553.20,Scottish & Southern Energy Plc,
Manchester City Council,Regeneration Finance,Cleaning Equipment and Materials,14.05.2020,5101087867,551.14,Arrow County Supplies,
Manchester City Council,Corporate Services,Electricity,14.05.2020,1906861607,548.74,Scottish & Southern Energy Plc,
Manchester City Council,Corporate Services,Electricity,14.05.2020,1906861620,542.86,Scottish & Southern Energy Plc,
Manchester City Council,Regeneration Finance,Electricity,14.05.2020,1906861608,542.66,Scottish & Southern Energy Plc,
Manchester City Council,Corporate Services,Electricity,14.05.2020,1906861427,539.61,Scottish & Southern Energy Plc,
Manchester City Council,Adult Social Care,Electricity,14.05.2020,1906861645,536.61,Scottish & Southern Energy Plc,
Manchester City Council,Chief Executives,Printing,14.05.2020,5101087860,530.84,Access Point Ltd,
Manchester City Council,Insurance Fund,All Risks Insurance Premium,14.05.2020,5101088288,529.18,Aon Ltd,
Manchester City Council,Regeneration Finance,Electricity,14.05.2020,1906861646,525.50,Scottish & Southern Energy Plc,
Manchester City Council,Childrens & Education Services,Professional fees,14.05.2020,1906856587,525.00,Redacted Personal Information,
Manchester City Council,Regeneration Finance,Electricity,14.05.2020,1906861637,523.01,Scottish & Southern Energy Plc,
Manchester City Council,Manchester Leisure,Electricity,14.05.2020,1906861642,512.05,Scottish & Southern Energy Plc,
Manchester City Council,Corporate Services,Electricity,14.05.2020,1906861585,512.05,Scottish & Southern Energy Plc,
Manchester City Council,Regeneration Finance,Electricity,14.05.2020,1906861554,511.03,Scottish & Southern Energy Plc,
Manchester City Council,Chief Executives,Compensation Payments,14.05.2020,5101088327,500.00,Redacted Personal Information,
Manchester City Council,Hospitality + Trading Services,Vehicle Fuel Costs,14.05.2020,5101088365,"-8,061.54",Carlton Fuels Ltd,
Manchester City Council,Childrens & Education Services,Transport Coach Hire,14.05.2020,5101088283,"-15,360.00",JCT Travel Ltd,
Manchester City Council,Regeneration Finance,Rents,15.05.2020,1906840974,"540,625.00",Adam Geoffrey Management Ltd,
Manchester City Council,Adult Social Care,Third party payments relating to Voluntary Organisations,15.05.2020,5101087797,"515,196.50",Change Grow Live Services Ltd,
Manchester City Council,Corporate Services,CAMC/Not assigned,15.05.2020,5101088511,"290,321.00",Alliance Disposables Ltd,
Manchester City Council,Adult Social Care,Payments for services,15.05.2020,5101088418,"274,478.18",Standwalk Ltd,
Manchester City Council,Adult Social Care,Payments for services,15.05.2020,5101088420,"274,478.18",Standwalk Ltd,
Manchester City Council,Manchester Leisure,External repairs and maintenance for buildings,15.05.2020,5101088386,"111,166.19",Laing O'Rourke Construction Ltd,
Manchester City Council,Childrens Services,Works and associated costs for Land and Buildings,15.05.2020,5101088530,"64,813.99",ENGIE Regeneration (Bramall) Ltd,
Manchester City Council,Highways Services,Payments to Sub-Contractors,15.05.2020,5101087900,"56,372.45",Rosgal Ltd,
Manchester City Council,Childrens Services,Works and associated costs for Land and Buildings,15.05.2020,5101088514,"51,487.22",ISG Construction Limited,
Manchester City Council,Adult Social Care,Third party payments relating to Voluntary Organisations,15.05.2020,5101087797,"47,632.42",Change Grow Live Services Ltd,
Manchester City Council,Highways Services,Refuse Collection,15.05.2020,5101087950,"46,156.51",Balfour Beatty Living Places Ltd,
Manchester City Council,Adult Social Care,Third party payments relating to Voluntary Organisations,15.05.2020,5101087827,"41,637.75",Change Grow Live Services Ltd,
Manchester City Council,Highways Services,Payments to Sub-Contractors,15.05.2020,5101087898,"37,937.88",Rosgal Ltd,
Manchester City Council,Manchester Leisure,Works and associated costs for Land and Buildings,15.05.2020,5101088385,"35,034.62",Laing O'Rourke Construction Ltd,
Manchester City Council,Hospitality + Trading Services,Hire of Machinery,15.05.2020,5101088526,"30,403.76",Manchester Van Hire Ltd,
Manchester City Council,Childrens & Education Services,Residential Care Homes Payments,15.05.2020,1906833196,"23,305.49",Next Stage 4 Life Ltd,
Manchester City Council,Chief Executives,Legal Fees,15.05.2020,5101088431,"21,954.00",Eversheds Llp,
Manchester City Council,Highways Services,Payments to Sub-Contractors,15.05.2020,5101087899,"20,944.38",Rosgal Ltd,
Manchester City Council,Childrens & Education Services,Transport Coach Hire,15.05.2020,5101087587,"17,748.00",M Travel,
Manchester City Council,Childrens & Education Services,Payments for services,15.05.2020,5101088428,"17,475.00",National Offender Mgt Services,
Manchester City Council,Adult Social Care,Third party payments relating to Voluntary Organisations,15.05.2020,5101087962,"16,520.87",Manchester Action On Street Health,
Manchester City Council,Adult Social Care,Third party payments relating to Voluntary Organisations,15.05.2020,5101087960,"16,520.83",Manchester Action On Street Health,
Manchester City Council,Manchester Leisure,Payments to Sub-Contractors,15.05.2020,5101088538,"15,000.00",Arboricultural Services Treework,
Manchester City Council,Childrens & Education Services,Professional fees,15.05.2020,5101088457,"10,782.00",Research in Practice,
Manchester City Council,Childrens & Education Services,Professional fees,15.05.2020,5101088459,"10,782.00",Research in Practice,
Manchester City Council,Highways Services,Payments to Sub-Contractors,15.05.2020,5101087897,"10,765.72",Rosgal Ltd,
Manchester City Council,Collection Fund,Ctax - Preceptor Payments,15.05.2020,1906862125,"10,168.00",GMCA,
Manchester City Council,Adult Social Care,Supporting People Payments,15.05.2020,5101088542,"6,219.92",Turning Point Services,
Manchester City Council,Regeneration Finance,Third party payments relating to Voluntary Organisations,15.05.2020,5101088390,"6,024.00",Sonder Radio Ltd,
Manchester City Council,Childrens & Education Services,Third party payments to other Local Authorities,15.05.2020,5101088466,"5,755.83",Sale Grammar School,
Manchester City Council,Manchester Leisure,Payments to Sub-Contractors,15.05.2020,5101088541,"5,000.00",Arboricultural Services Treework,
Manchester City Council,Chief Executives,CORONA VIRUS D-19,15.05.2020,5101088438,"4,675.00",Blackstone Chambers,
Manchester City Council,Manchester Leisure,Professional fees,15.05.2020,5101088539,"4,587.71",Daly Drains Ltd,
Manchester City Council,Chief Executives,Professional fees,15.05.2020,1906861790,"4,409.10",Russell & Russell Solicitors,
Manchester City Council,Manchester Leisure,Grant and subscriptions awarded,15.05.2020,5101086746,"4,074.56",Chorlton Park Regeneration Group,
Manchester City Council,Childrens & Education Services,Third party payments relating to Voluntary Organisations,15.05.2020,5101088448,"3,070.60",Manchester Settlement,
Manchester City Council,Childrens & Education Services,Transport Coach Hire,15.05.2020,5101087018,"3,036.00",AA Buses,
Manchester City Council,Chief Executives,Professional fees,15.05.2020,1906861140,"2,737.50",Weightmans LLP Solicitors,
Manchester City Council,Childrens & Education Services,Legal Fees,15.05.2020,1906845990,"2,562.50",Weightmans LLP Solicitors,
Manchester City Council,Adult Social Care,Third party payments relating to Voluntary Organisations,15.05.2020,5101088125,"2,527.20",Supporting People In Need,
Manchester City Council,Childrens & Education Services,Rents,15.05.2020,1906854872,"2,440.00",Commercial Real Estates Management,
Manchester City Council,Manchester Leisure,Building Materials for direct delivery,15.05.2020,5101088537,"2,400.00",Arboricultural Services Treework,
Manchester City Council,Manchester Leisure,Cleaning Equipment and Materials,15.05.2020,5101088504,"2,394.00",Alliance Disposables Ltd,
Manchester City Council,Childrens & Education Services,Payments for services,15.05.2020,5101088470,"2,388.00",Keys PCE Limited,
Manchester City Council,Corporate Services,"Clothes, Uniform and Laundry",15.05.2020,5101087690,"2,264.50",Alliance Disposables Ltd,
Manchester City Council,Highways Services,Professional fees,15.05.2020,5101087134,"2,080.00",Waterman Aspen Ltd,
Manchester City Council,Adult Social Care,Cleaning Equipment and Materials,15.05.2020,5101087703,"2,000.00",Alliance Disposables Ltd,
Manchester City Council,Highways Services,Professional fees,15.05.2020,5101087151,"1,990.00",Waterman Aspen Ltd,
Manchester City Council,Manchester Leisure,Professional fees,15.05.2020,5101088387,"1,980.00",Redacted Personal Information,
Manchester City Council,Manchester Leisure,Professional fees,15.05.2020,5101088388,"1,980.00",Redacted Personal Information,
Manchester City Council,Highways Services,Professional fees,15.05.2020,5101087142,"1,940.00",Waterman Aspen Ltd,
Manchester City Council,Corporate Services,"Clothes, Uniform and Laundry",15.05.2020,5101088599,"1,904.60",Arco Group Ltd,
Manchester City Council,Regeneration Finance,Cleaning Equipment and Materials,15.05.2020,5101088518,"1,898.00",Alliance Disposables Ltd,
Manchester City Council,Adult Social Care,Furniture,15.05.2020,5101088532,"1,889.83",Furniture Resource Centre Ltd,
Manchester City Council,Chief Executives,Professional fees,15.05.2020,1906861139,"1,829.03",Weightmans LLP Solicitors,
Manchester City Council,Highways Services,Professional fees,15.05.2020,5101087140,"1,822.50",Waterman Aspen Ltd,
Manchester City Council,Childrens & Education Services,Legal Fees,15.05.2020,1906836984,"1,755.00",Redacted Personal Information,
Manchester City Council,Adult Social Care,Equipment,15.05.2020,5101087796,"1,740.00",Mangar International Ltd,
Manchester City Council,Manchester Leisure,External repairs and maintenance for buildings,15.05.2020,5101088229,"1,700.00",LABOSPORT,
Manchester City Council,Corporate Services,"Clothes, Uniform and Laundry",15.05.2020,5101088047,"1,696.25",Alliance Disposables Ltd,
Manchester City Council,Highways Services,Professional fees,15.05.2020,5101087136,"1,678.80",Waterman Aspen Ltd,
Manchester City Council,Highways Services,Professional fees,15.05.2020,5101087931,"1,678.80",Waterman Aspen Ltd,
Manchester City Council,Regeneration Finance,Cleaning Equipment and Materials,15.05.2020,5101088149,"1,678.00",Arrow County Supplies,
Manchester City Council,Highways Services,Professional fees,15.05.2020,5101087135,"1,660.00",Waterman Aspen Ltd,
Manchester City Council,Adult Social Care,Payments for services,15.05.2020,5101088419,"1,631.00",Turning Point,
Manchester City Council,Adult Social Care,Payments for services,15.05.2020,5101088421,"1,631.00",Turning Point,
Manchester City Council,Adult Social Care,Payments for services,15.05.2020,5101088422,"1,631.00",Turning Point,
Manchester City Council,Hospitality + Trading Services,Vehicle Repairs,15.05.2020,5101088525,"1,620.79",Manchester Van Hire Ltd,
Manchester City Council,Highways Services,Professional fees,15.05.2020,5101087138,"1,440.00",Waterman Aspen Ltd,
Manchester City Council,Highways Services,Professional fees,15.05.2020,5101087150,"1,440.00",Waterman Aspen Ltd,
Manchester City Council,Childrens & Education Services,Legal Fees,15.05.2020,1906839888,"1,350.00",Redacted Personal Information,
Manchester City Council,Highways Services,Professional fees,15.05.2020,5101087143,"1,349.00",Waterman Aspen Ltd,
Manchester City Council,Highways Services,Professional fees,15.05.2020,5101087145,"1,323.00",Waterman Aspen Ltd,
Manchester City Council,Childrens & Education Services,Professional fees,15.05.2020,1906856466,"1,312.50",Redacted Personal Information,
Manchester City Council,Adult Social Care,Rents,15.05.2020,1906863155,"1,300.00",Redacted Personal Information,
Manchester City Council,Adult Social Care,Professional fees,15.05.2020,5101088378,"1,260.00",Telecare Services Association,
Manchester City Council,Highways Services,Professional fees,15.05.2020,5101087149,"1,080.00",Waterman Aspen Ltd,
Manchester City Council,Regeneration Finance,External repairs and maintenance for buildings,15.05.2020,5101088338,"1,070.00",McCosker Ltd,
Manchester City Council,Manchester Leisure,Grant Payments,15.05.2020,5101088550,"1,050.00",Association Of Port Health Authorit,
Manchester City Council,Highways Services,Professional fees,15.05.2020,5101087935,882.00,Waterman Aspen Ltd,
Manchester City Council,Manchester Leisure,Payments to Sub-Contractors,15.05.2020,5101088543,850.00,Arboricultural Services Treework,
Manchester City Council,Regeneration Finance,External repairs and maintenance for buildings,15.05.2020,5101088391,795.00,BAT Fabrications,
Manchester City Council,Manchester Leisure,Payments to Sub-Contractors,15.05.2020,5101088544,784.00,Arboricultural Services Treework,
Manchester City Council,Childrens & Education Services,Legal Fees,15.05.2020,1906838447,750.00,Redacted Personal Information,
Manchester City Council,Childrens & Education Services,Payments for services,15.05.2020,5101088471,740.00,Teaching Personnel Ltd,
Manchester City Council,Adult Social Care,Furniture,15.05.2020,5101088506,714.20,Furniture Resource Centre Ltd,
Manchester City Council,Childrens & Education Services,Payments for services,15.05.2020,5101088411,623.76,Reed Employment Plc,
Manchester City Council,Corporate Services,Security,15.05.2020,5101087831,576.20,Flowbird Smart City Uk Ltd,
Manchester City Council,Adult Social Care,Furniture,15.05.2020,5101088180,575.04,Furniture Resource Centre Ltd,
Manchester City Council,Corporate Services,Welfare Provision Service Awards,15.05.2020,5101088244,552.68,Furniture Resource Centre Ltd,
Manchester City Council,Hospitality + Trading Services,"Clothes, Uniform and Laundry",15.05.2020,5101088594,531.68,Arco Group Ltd,
Manchester City Council,Adult Social Care,"Consumable items eg Toilet rolls, soap etc",15.05.2020,5101088389,516.48,Bluenuit Limited t/a,
Manchester City Council,Adult Social Care,Training and Development,15.05.2020,5101088441,500.00,Pathways CIC,
Manchester City Council,Adult Social Care,Rents,15.05.2020,1906863154,500.00,Redacted Personal Information,
Manchester City Council,Corporate Services,Legal Fees,15.05.2020,1906862088,500.00,Redacted Personal Information,
Manchester City Council,Highways Services,Professional fees,15.05.2020,5101088380,"-1,678.80",Waterman Aspen Ltd,
Manchester City Council,Highways Services,Professional fees,15.05.2020,5101088382,"-2,686.08",Waterman Aspen Ltd,
Manchester City Council,Childrens & Education Services,Transport Coach Hire,15.05.2020,5101088403,"-3,036.00",AA Buses,
Manchester City Council,Childrens & Education Services,Professional fees,15.05.2020,5101088458,"-10,782.00",Research in Practice,
Manchester City Council,Childrens & Education Services,Payments for services,15.05.2020,5101088427,"-17,457.00",National Offender Mgt Services,
Manchester City Council,Childrens & Education Services,Transport Coach Hire,15.05.2020,5101088406,"-17,748.00",M Travel,
Manchester City Council,Collection Fund,Ctax - Preceptor Payments,18.05.2020,1906861916,"3,045,018.00",GMCA,
Manchester City Council,Manchester Leisure,Levies,18.05.2020,1906863807,"2,504,000.00",GMCA,
Manchester City Council,Childrens Services,Works and associated costs for Land and Buildings,18.05.2020,5101088610,"355,613.30",The McAvoy Group Plc Ltd,
Manchester City Council,Collection Fund,Business Rates - Preceptor Payments,18.05.2020,1906861916,"296,660.00",GMCA,
Manchester City Council,Chief Executives,Vehicle Plant Furniture and Equipment,18.05.2020,5101088736,"292,395.67",Microsoft Ltd,
Manchester City Council,Environment and Operations,Construction Works,18.05.2020,5101088516,"243,114.59",Eric Wright Civil Engineering Limit,
Manchester City Council,Manchester Leisure,Works and associated costs for Land and Buildings,18.05.2020,5101088005,"137,400.97",Engie Regeration Limited,
Manchester City Council,Adult Social Care,Third party payments relating to Voluntary Organisations,18.05.2020,5101088473,"80,000.00",Citizens Advice Manchester,
Manchester City Council,Corporate Services,Works and associated costs for Land and Buildings,18.05.2020,5101088241,"77,934.80",ISG Construction Limited,
Manchester City Council,Childrens & Education Services,Third party payments relating to Voluntary Organisations,18.05.2020,5101088744,"73,656.00",Barnardo Services Ltd (Essex),
Manchester City Council,Adult Social Care,Third party payments relating to Voluntary Organisations,18.05.2020,5101088393,"57,879.36",SSG Sustainable Living,
Manchester City Council,Regeneration Finance,External repairs and maintenance for buildings,18.05.2020,5101088643,"45,376.96",Morrison Facilities Services Ltd,
Manchester City Council,Regeneration Finance,Internal Repairs and Maintenance for buildings,18.05.2020,5101088743,"41,503.70",ENGIE Services Ltd,
Manchester City Council,Corporate Services,Works and associated costs for Land and Buildings,18.05.2020,5101088661,"33,153.46",Manchester Working Ltd,
Manchester City Council,Childrens & Education Services,Third party payments to other Local Authorities,18.05.2020,5101088474,"32,003.00",Sale High School,
Manchester City Council,Chief Executives,Vehicle Plant Furniture and Equipment,18.05.2020,5101088761,"28,040.00",Liquidlogic Ltd,
Manchester City Council,Adult Social Care,Third party payments relating to Voluntary Organisations,18.05.2020,5101088392,"26,706.68",SSG Sustainable Living,
Manchester City Council,Adult Social Care,Carer Support Payments ,18.05.2020,5101088259,"25,943.47",Premier Care  Ltd,
Manchester City Council,Childrens & Education Services,Payments for services,18.05.2020,5101088759,"22,911.23",Teenage Works,
Manchester City Council,Adult Social Care,Extra Care Sheltered Housing Payments,18.05.2020,5101088257,"20,216.59",Premier Care  Ltd,
Manchester City Council,Adult Social Care,Extra Care Sheltered Housing Payments,18.05.2020,5101088258,"18,836.62",Premier Care  Ltd,
Manchester City Council,Chief Executives,Works and associated costs for Land and Buildings,18.05.2020,5101088573,"18,720.00",Pierre Angulaire Limited,
Manchester City Council,Regeneration Finance,Third party payments to other Local Authorities,18.05.2020,5101088096,"17,302.00",Bolton College,
Manchester City Council,Adult Social Care,Registered Nursing Homes Permanent Payments,18.05.2020,5101088587,"16,290.86",Ringway Mews Nursing Home,
Manchester City Council,Chief Executives,Vehicle Plant Furniture and Equipment,18.05.2020,5101088179,"14,875.00",Ivanti UK Limited,
Manchester City Council,Regeneration Finance,Rents,18.05.2020,1906856505,"14,514.48",DUK Property Management Ltd,
Manchester City Council,Childrens Services,Works and associated costs for Land and Buildings,18.05.2020,5101088512,"13,451.92",ISG Construction Limited,
Manchester City Council,Adult Social Care,Supported Accommodation,18.05.2020,5101088612,"12,746.24",Wythenshawe Community Housing Group,
Manchester City Council,Chief Executives,Agency staff provision,18.05.2020,5101088675,"12,650.00",NES UK Limited,
Manchester City Council,Childrens & Education Services,Payments for services,18.05.2020,5101088472,"10,140.00",Young Foundations,
Manchester City Council,Adult Social Care,Residential Care Homes Payments,18.05.2020,5101088595,"10,125.00",Ringway Mews Nursing Home,
Manchester City Council,Childrens & Education Services,Payments for services,18.05.2020,5101088757,"9,724.00",Teenage Works,
Manchester City Council,Corporate Services,Postage,18.05.2020,5101088734,"8,548.76",Royal Mail Group Plc,
Manchester City Council,Regeneration Finance,Third party payments to other Local Authorities,18.05.2020,5101088557,"8,125.00",London Borough of Harrow,
Manchester City Council,Highways Services,Payments to Sub-Contractors,18.05.2020,5101088251,"7,700.27",Rosgal Ltd,
Manchester City Council,Adult Social Care,Residential Care Homes Payments,18.05.2020,5101088597,"7,577.14",Ringway Mews Nursing Home,
Manchester City Council,Manchester Leisure,Rents,18.05.2020,5101088700,"6,265.98",Wythenshawe Forum Trust Ltd,
Manchester City Council,Adult Social Care,Third party payments relating to Voluntary Organisations,18.05.2020,5101088396,"6,129.70",SSG Sustainable Living,
Manchester City Council,Highways Services,Payments to Sub-Contractors,18.05.2020,5101088762,"5,484.38",Rosgal Ltd,
Manchester City Council,Manchester Leisure,I T Provision,18.05.2020,5101088702,"5,197.20",Axiell ALM Ltd,
Manchester City Council,Manchester Leisure,Rents,18.05.2020,5101088701,"5,161.70",Wythenshawe Forum Trust Ltd,
Manchester City Council,Regeneration Finance,Refuse Collection,18.05.2020,5101088440,"4,703.90",Biffa Municipal Limited,
Manchester City Council,Childrens & Education Services,Transport Coach Hire,18.05.2020,5101087609,"4,266.60",Redacted Personal Information,
Manchester City Council,Highways Services,Payments to Sub-Contractors,18.05.2020,5101088740,"3,920.18",Rosgal Ltd,
Manchester City Council,Highways Services,Payments to Sub-Contractors,18.05.2020,5101088307,"3,663.82",Rosgal Ltd,
Manchester City Council,Adult Social Care,Registered Nursing Homes Permanent Payments,18.05.2020,5101088592,"3,501.43",Ringway Mews Nursing Home,
Manchester City Council,Childrens & Education Services,Transport Coach Hire,18.05.2020,5101087608,"3,413.28",Redacted Personal Information,
Manchester City Council,Corporate Services,Transport Taxis,18.05.2020,1906863641,"3,382.20",Manchester Cars,
Manchester City Council,Highways Services,Payments to Sub-Contractors,18.05.2020,5101088312,"3,319.16",Rosgal Ltd,
Manchester City Council,Childrens & Education Services,Third party payments to other Local Authorities,18.05.2020,5101088581,"3,256.00",Altrincham Grammar School for Boys,
Manchester City Council,Manchester Leisure,Payments to Sub-Contractors,18.05.2020,5101088800,"3,200.00",Clean-Up UK Limited,
Manchester City Council,Adult Social Care,Third party payments relating to Voluntary Organisations,18.05.2020,5101088395,"3,065.00",SSG Sustainable Living,
Manchester City Council,Adult Social Care,Third party payments relating to Voluntary Organisations,18.05.2020,5101088402,"3,064.87",SSG Sustainable Living,
Manchester City Council,Adult Social Care,Furniture,18.05.2020,5101088726,"3,008.40",Banner Group Limited,
Manchester City Council,Childrens & Education Services,Third party payments relating to Voluntary Organisations,18.05.2020,5101088744,"3,000.00",Barnardo Services Ltd (Essex),
Manchester City Council,Adult Social Care,Registered Nursing Homes Permanent Payments,18.05.2020,5101088588,"2,902.50",Ringway Mews Nursing Home,
Manchester City Council,Highways Services,Payments to Sub-Contractors,18.05.2020,5101088311,"2,390.16",Rosgal Ltd,
Manchester City Council,Highways Services,Payments to Sub-Contractors,18.05.2020,5101088243,"2,337.45",Rosgal Ltd,
Manchester City Council,Highways Services,Payments to Sub-Contractors,18.05.2020,5101088763,"2,197.60",Rosgal Ltd,
Manchester City Council,Manchester Leisure,Professional fees,18.05.2020,1906863161,"2,128.00",Office 6,
Manchester City Council,Highways Services,Grounds Maintenance Costs,18.05.2020,5101088755,"2,120.00",Utilities Design & Planning Ltd,
Manchester City Council,Chief Executives,Agency staff provision,18.05.2020,5101088609,"2,000.00",Kenyon Block Consultants Ltd,
Manchester City Council,Adult Social Care,Personal needs of client,18.05.2020,5101088476,"1,982.50",Invacare Limited,
Manchester City Council,Childrens & Education Services,Training and Development,18.05.2020,5101088292,"1,900.00",Me Learning Limited,
Manchester City Council,Highways Services,Payments to Sub-Contractors,18.05.2020,5101088308,"1,700.00",Rosgal Ltd,
Manchester City Council,Hospitality + Trading Services,Professional fees,18.05.2020,5101088735,"1,688.13",Mpulse Ltd,
Manchester City Council,Highways Services,Professional fees,18.05.2020,5101087925,"1,659.00",Waterman Aspen Ltd,
Manchester City Council,Highways Services,Payments to Sub-Contractors,18.05.2020,5101088309,"1,635.92",Rosgal Ltd,
Manchester City Council,Chief Executives,Agency staff provision,18.05.2020,5101088708,"1,613.20",HCL Social Care,
Manchester City Council,Highways Services,Payments to Sub-Contractors,18.05.2020,5101088242,"1,603.82",Rosgal Ltd,
Manchester City Council,Highways Services,Professional fees,18.05.2020,5101087146,"1,580.00",Waterman Aspen Ltd,
Manchester City Council,Childrens & Education Services,Payments for services,18.05.2020,5101088401,"1,564.68",Apollo Home Healthcare Ltd,
Manchester City Council,Childrens & Education Services,Professional fees,18.05.2020,5101088704,"1,500.00",Cushman & Wakefield,
Manchester City Council,Chief Executives,Third party payments relating to Voluntary Organisations,18.05.2020,5101088095,"1,500.00",Sonder Radio Ltd,
Manchester City Council,Adult Social Care,Funeral and coroner related services,18.05.2020,5101087985,"1,485.00",Greater Manchester Funeral Service,
Manchester City Council,Manchester Leisure,Payments to Sub-Contractors,18.05.2020,5101088799,"1,440.00",Clean-Up UK Limited,
Manchester City Council,Childrens & Education Services,Bed and Breakfast Accommodation Expenditure,18.05.2020,1906863806,"1,400.00",LETBID,
Manchester City Council,Childrens & Education Services,Third party payments to other Local Authorities,18.05.2020,5101088611,"1,400.00",Cheadle Royal Healthcare,
Manchester City Council,Adult Social Care,Funeral and coroner related services,18.05.2020,5101087984,"1,339.00",Greater Manchester Funeral Service,
Manchester City Council,Corporate Services,Welfare Provision Service Awards,18.05.2020,5101088621,"1,209.23",Furniture Resource Centre Ltd,
Manchester City Council,Adult Social Care,Funeral and coroner related services,18.05.2020,5101087798,"1,175.00",Greater Manchester Funeral Service,
Manchester City Council,Highways Services,Payments to Sub-Contractors,18.05.2020,5101088760,"1,102.34",Rosgal Ltd,
Manchester City Council,Regeneration Finance,Grant Payments,18.05.2020,5101088574,"1,056.00",Open Awards,
Manchester City Council,Adult Social Care,Rents,18.05.2020,1906863805,"1,040.00",Manchester Letting,
Manchester City Council,Highways Services,Payments to Sub-Contractors,18.05.2020,5101088313,937.93,Rosgal Ltd,
Manchester City Council,Chief Executives,Printing,18.05.2020,5101088665,907.00,Mail Solutions,
Manchester City Council,Regeneration Finance,Equipment,18.05.2020,1906863198,902.50,Cooleraid Ltd,
Manchester City Council,Adult Social Care,Supporting People Payments,18.05.2020,5101088582,881.79,Arawak Walton Housing Association,
Manchester City Council,Corporate Services,Welfare Provision Service Awards,18.05.2020,5101088706,805.45,Furniture Resource Centre Ltd,
Manchester City Council,Regeneration Finance,Grounds Maintenance Costs,18.05.2020,5101088533,800.00,Arboricultural Services Treework,
Manchester City Council,Adult Social Care,Equipment,18.05.2020,5101088397,770.00,Aidapt Bathrooms Ltd,
Manchester City Council,Manchester Leisure,Equipment,18.05.2020,1906863200,760.00,Cooleraid Ltd,
Manchester City Council,Manchester Leisure,Equipment,18.05.2020,5101088801,750.00,Clean-Up UK Limited,
Manchester City Council,Adult Social Care,Equipment,18.05.2020,5101088424,660.00,Doro Care Ltd,
Manchester City Council,Regeneration Finance,Cleaning Equipment and Materials,18.05.2020,5101088752,636.00,Alliance Disposables Ltd,
Manchester City Council,Chief Executives,Payments to Sub-Contractors,18.05.2020,5101088693,615.22,Redacted Personal Information,
Manchester City Council,Chief Executives,Advertising,18.05.2020,5101088756,600.00,Trafford Media & Communication Ltd,
Manchester City Council,Adult Social Care,Supporting People Payments,18.05.2020,5101088582,577.88,Arawak Walton Housing Association,
Manchester City Council,Adult Social Care,Supporting People Payments,18.05.2020,5101088582,557.80,Arawak Walton Housing Association,
Manchester City Council,Adult Social Care,Bed and Breakfast Accommodation Expenditure,18.05.2020,5101088678,550.00,Genuine Property Investments,
Manchester City Council,Highways Services,Building Materials for direct delivery,18.05.2020,5101088630,540.00,O'Connor Concrete Ltd,
Manchester City Council,Highways Services,Building Materials for direct delivery,18.05.2020,5101088634,540.00,O'Connor Concrete Ltd,
Manchester City Council,Highways Services,Building Materials for direct delivery,18.05.2020,5101088636,540.00,O'Connor Concrete Ltd,
Manchester City Council,Highways Services,Building Materials for direct delivery,18.05.2020,5101088639,540.00,O'Connor Concrete Ltd,
Manchester City Council,Highways Services,Building Materials for direct delivery,18.05.2020,5101088648,540.00,O'Connor Concrete Ltd,
Manchester City Council,Highways Services,Building Materials for direct delivery,18.05.2020,5101088649,540.00,O'Connor Concrete Ltd,
Manchester City Council,Highways Services,Building Materials for direct delivery,18.05.2020,5101088650,540.00,O'Connor Concrete Ltd,
Manchester City Council,Highways Services,Building Materials for direct delivery,18.05.2020,5101088655,540.00,O'Connor Concrete Ltd,
Manchester City Council,Adult Social Care,Professional fees,18.05.2020,5101088765,540.00,All 4 Pets Limited,
Manchester City Council,Adult Social Care,Bed and Breakfast Accommodation Expenditure,18.05.2020,5101088723,500.00,Genuine Property Investments,
Manchester City Council,Adult Social Care,Bed and Breakfast Accommodation Expenditure,18.05.2020,5101088724,500.00,Genuine Property Investments,
Manchester City Council,Chief Executives,Licences Purchase,19.05.2020,5101087385,"1,448,032.17",Softcat,
Manchester City Council,Chief Executives,Licences Purchase,19.05.2020,5101087385,"433,961.12",Softcat,
Manchester City Council,Manchester Leisure,Works and associated costs for Land and Buildings,19.05.2020,5101088853,"297,300.44",Greenwich Leisure Limited,
Manchester City Council,Environment and Operations,Construction Works,19.05.2020,5101088856,"226,450.23",Kiely Bros Ltd,
Manchester City Council,Chief Executives,Building Works,19.05.2020,1906863799,"200,000.00",All Work and Social,
Manchester City Council,Environment and Operations,Construction Works,19.05.2020,5101088808,"150,000.00",J.Hopkins (Contractors) Ltd.,
Manchester City Council,Environment and Operations,Construction Works,19.05.2020,5101088819,"109,073.03",J.Hopkins (Contractors) Ltd.,
Manchester City Council,Environment and Operations,Construction Works,19.05.2020,5101088816,"72,794.65",J.Hopkins (Contractors) Ltd.,
Manchester City Council,Environment and Operations,Construction Works,19.05.2020,5101088822,"59,950.00",J.Hopkins (Contractors) Ltd.,
Manchester City Council,Childrens Services,Works and associated costs for Land and Buildings,19.05.2020,5101088929,"59,734.37",ISG Construction Limited,
Manchester City Council,Adult Social Care,Bed and Breakfast Accommodation Expenditure,19.05.2020,5101088779,"44,798.05",Revolving Doors Housing Trust,
Manchester City Council,Adult Social Care,Bed and Breakfast Accommodation Expenditure,19.05.2020,5101088790,"41,460.00",Redacted Personal Information,
Manchester City Council,Manchester Leisure,Refuse Collection,19.05.2020,5101088846,"40,833.34",Biffa Municipal Limited,
Manchester City Council,Environment and Operations,Construction Works,19.05.2020,5101088823,"36,498.03",J.Hopkins (Contractors) Ltd.,
Manchester City Council,Chief Executives,Agency staff provision,19.05.2020,5101088852,"33,024.30",Pertemps Professional Recruitment L,
Manchester City Council,Chief Executives,Works and associated costs for Land and Buildings,19.05.2020,5101084825,"32,000.00",Gardiner & Theobald LLP,
Manchester City Council,Childrens Services,Works and associated costs for Land and Buildings,19.05.2020,5101088930,"31,872.68",ISG Construction Limited,
Manchester City Council,Manchester Leisure,Equipment,19.05.2020,5101088910,"30,504.00",SSI - Schaefer Limited,
Manchester City Council,Adult Social Care,Third party payments to Health Authority,19.05.2020,5101088908,"23,519.70",Central Mcr Uni Hospital t/a,
Manchester City Council,Manchester Leisure,Refuse Collection,19.05.2020,5101088842,"21,666.66",Biffa Municipal Limited,
Manchester City Council,Adult Social Care,Bed and Breakfast Accommodation Expenditure,19.05.2020,5101088913,"19,939.05",Redacted Personal Information,
Manchester City Council,Chief Executives,Works and associated costs for Land and Buildings,19.05.2020,5101088569,"19,656.00",Pierre Angulaire Limited,
Manchester City Council,Childrens & Education Services,Transport Coach Hire,19.05.2020,5101088905,"15,715.48",Liverpool City Council,
Manchester City Council,Insurance Fund,Compensation Payments,19.05.2020,1906854114,"15,290.00",Gorvins,
Manchester City Council,Manchester Leisure,Equipment,19.05.2020,5101088917,"15,252.00",SSI - Schaefer Limited,
Manchester City Council,Manchester Leisure,Professional fees,19.05.2020,5101088845,"15,166.67",Biffa Municipal Limited,
Manchester City Council,Chief Executives,Machinery and equipment repairs,19.05.2020,5101088946,"14,981.95",Quadient Finance UK Ltd (Rental),
Manchester City Council,Corporate Services,Works and associated costs for Land and Buildings,19.05.2020,5101088879,"13,972.00",Ramboll UK Limited,
Manchester City Council,Manchester Leisure,Equipment,19.05.2020,5101088851,"13,100.00",Rigby Taylor Ltd,
Manchester City Council,Hospitality + Trading Services,Vehicle Fuel Costs,19.05.2020,5101088865,"11,939.48",Carlton Fuels Ltd,
Manchester City Council,Highways Services,Professional fees,19.05.2020,5101087043,"9,604.00",Turner & Townsend Cost,
Manchester City Council,Highways Services,Professional fees,19.05.2020,5101087051,"9,604.00",Turner & Townsend Cost,
Manchester City Council,Chief Executives,I T Provision,19.05.2020,1906847666,"9,368.05",Vodafone (Ex C&W),
Manchester City Council,Chief Executives,Works and associated costs for Land and Buildings,19.05.2020,5101088569,"9,240.00",Pierre Angulaire Limited,
Manchester City Council,Environment and Operations,Construction Works,19.05.2020,5101087446,"9,234.36",Transport for Greater Manchester,
Manchester City Council,Adult Social Care,Compensation Payments,19.05.2020,1906863788,"8,990.88",Thompsons Solicitors,
Manchester City Council,Adult Social Care,Equipment,19.05.2020,5101088864,"8,971.20",Invacare Limited,
Manchester City Council,Adult Social Care,Bed and Breakfast Accommodation Expenditure,19.05.2020,5101088915,"8,885.00",Redacted Personal Information,
Manchester City Council,Childrens & Education Services,Third party payments to other Local Authorities,19.05.2020,5101088899,"8,854.43",New Bridge School,
Manchester City Council,Hospitality + Trading Services,Hire of Equipment,19.05.2020,1906854107,"8,720.00",Pro Marquee Events Ltd,
Manchester City Council,Childrens & Education Services,Third party payments to other Local Authorities,19.05.2020,5101088893,"8,450.41",Stockport Metropolitan Borough,
Manchester City Council,Chief Executives,Works and associated costs for Land and Buildings,19.05.2020,5101088571,"8,400.00",Pierre Angulaire Limited,
Manchester City Council,Childrens & Education Services,Third party payments to other Local Authorities,19.05.2020,5101088891,"8,101.30",Stockport Metropolitan Borough,
Manchester City Council,Hospitality + Trading Services,Vehicle Fuel Costs,19.05.2020,5101088664,"8,051.73",Carlton Fuels Ltd,
Manchester City Council,Environment and Operations,Construction Works,19.05.2020,5101087006,"8,000.00",Transport for Greater Manchester,
Manchester City Council,Chief Executives,Machinery and equipment repairs,19.05.2020,5101088948,"7,104.11",Quadient Finance UK Ltd (Rental),
Manchester City Council,Manchester Leisure,Compensation Payments,19.05.2020,1906854114,"5,710.00",Gorvins,
Manchester City Council,Childrens & Education Services,Payments for services,19.05.2020,5101088782,"5,427.00",Chaigeley Education Foundation,
Manchester City Council,Adult Social Care,Compensation Payments,19.05.2020,1906863787,"5,163.55",Thompsons Solicitors,
Manchester City Council,Adult Social Care,Removal and Storage of Furniture,19.05.2020,5101088859,"4,872.00",BCL,
Manchester City Council,Highways Services,Payments to Sub-Contractors,19.05.2020,5101088774,"4,215.68",Rosgal Ltd,
Manchester City Council,Highways Services,Building Materials for direct delivery,19.05.2020,5101088901,"3,746.75",William Smith Sons (Barnard Castle),
Manchester City Council,Childrens & Education Services,Payments for services,19.05.2020,5101088777,"3,545.45",Broadstones Independent Special Sch,
Manchester City Council,Childrens & Education Services,Payments for services,19.05.2020,5101088780,"3,400.00",Broadstones Independent Special Sch,
Manchester City Council,Adult Social Care,Payments for services,19.05.2020,5101088863,"3,250.00",Cais Ltd,
Manchester City Council,Childrens & Education Services,Payments for services,19.05.2020,5101088778,"3,090.91",Broadstones Independent Special Sch,
Manchester City Council,Adult Social Care,Equipment,19.05.2020,5101088867,"2,990.40",Invacare Limited,
Manchester City Council,Hospitality + Trading Services,Vehicle Hire Costs,19.05.2020,5101088080,"2,720.82",Dawsongroup Sweepers,
Manchester City Council,Manchester Leisure,Payments to Sub-Contractors,19.05.2020,5101088540,"1,890.00",Arboricultural Services Treework,
Manchester City Council,Chief Executives,Machinery and equipment repairs,19.05.2020,5101088855,"1,850.00",Xerox (Uk) Ltd,
Manchester City Council,Hospitality + Trading Services,Funeral and coroner related services,19.05.2020,5101088803,"1,681.64",G E Robinson & Co Ltd,
Manchester City Council,Childrens & Education Services,Third party payments to other Local Authorities,19.05.2020,5101088889,"1,594.26",New Bridge School,
Manchester City Council,Housing Revenue Account,Responsive Repairs Work,19.05.2020,5101088791,"1,532.50",Sheridan Lifts Ltd,
Manchester City Council,Childrens & Education Services,Car Parking Permits,19.05.2020,5101088841,"1,530.00",Redacted Personal Information,
Manchester City Council,Adult Social Care,Funeral and coroner related services,19.05.2020,5101087983,"1,339.00",Greater Manchester Funeral Service,
Manchester City Council,Chief Executives,Grant and subscriptions awarded,19.05.2020,5101088771,"1,295.40",Greater Manchester Chamber of,
Manchester City Council,Highways Services,Payments to Sub-Contractors,19.05.2020,5101088773,"1,150.39",Rosgal Ltd,
Manchester City Council,Adult Social Care,Rents,19.05.2020,5101088909,"1,126.66",Amco Management,
Manchester City Council,Regeneration Finance,Signers/Interpreters Fees,19.05.2020,5101088844,"1,122.60",Interpreter Booking Services,
Manchester City Council,Corporate Services,Collection Commission,19.05.2020,5101088837,"1,012.57",Verrus (UK) T/A paybyphone,
Manchester City Council,Corporate Services,Courier Costs,19.05.2020,5101088770,933.00,Xen Courier Ltd,
Manchester City Council,Chief Executives,Advertising,19.05.2020,5101088887,900.00,ITSA Ltd,
Manchester City Council,Corporate Services,Grant and subscriptions awarded,19.05.2020,5101088754,895.00,Rating Publishing,
Manchester City Council,Corporate Services,Works and associated costs for Land and Buildings,19.05.2020,5101088877,810.00,Ramboll UK Limited,
Manchester City Council,Adult Social Care,Rents,19.05.2020,5101088886,667.33,Amco Management,
Manchester City Council,Childrens & Education Services,Childminding Fee Payments,19.05.2020,5101088902,650.00,Brighter Beginnings Day Nursery,
Manchester City Council,Highways Services,Building Materials for direct delivery,19.05.2020,5101088804,624.05,William Smith Sons (Barnard Castle),
Manchester City Council,Adult Social Care,Building Materials for direct delivery,19.05.2020,5101088869,603.12,Invacare Limited,
Manchester City Council,Childrens & Education Services,Rents,19.05.2020,5101088793,568.64,Commercial Real Estates Management,
Manchester City Council,Adult Social Care,Cleaning Equipment and Materials,19.05.2020,5101088923,560.00,Banner Group Limited,
Manchester City Council,Adult Social Care,Cleaning Equipment and Materials,19.05.2020,5101088925,560.00,Banner Group Limited,
Manchester City Council,Childrens & Education Services,Transport Coach Hire,19.05.2020,1906827427,551.58,Redacted Personal Information,
Manchester City Council,Regeneration Finance,Contract Cleaning External,19.05.2020,5101088840,540.86,Westgrove Support Services Ltd,
Manchester City Council,Childrens & Education Services,Payments for services,19.05.2020,5101088810,500.00,Prospero Teaching,
Manchester City Council,Childrens & Education Services,Payments for services,19.05.2020,5101088812,500.00,Prospero Teaching,
Manchester City Council,Childrens & Education Services,Payments for services,19.05.2020,5101088813,500.00,Prospero Teaching,
Manchester City Council,Childrens & Education Services,Payments for services,19.05.2020,5101088815,500.00,Prospero Teaching,
Manchester City Council,Childrens & Education Services,Payments for services,19.05.2020,5101088817,500.00,Prospero Teaching,
Manchester City Council,Corporate Services,Works and associated costs for Land and Buildings,19.05.2020,5101088876,-810.00,Ramboll UK Limited,
Manchester City Council,Chief Executives,Agency staff provision,19.05.2020,5101088832,"-1,218.00",Pertemps Professional Recruitment L,
Manchester City Council,Chief Executives,Agency staff provision,19.05.2020,5101088829,"-1,522.50",Pertemps Professional Recruitment L,
Manchester City Council,Chief Executives,Agency staff provision,19.05.2020,5101088830,"-1,522.50",Pertemps Professional Recruitment L,
Manchester City Council,Chief Executives,Agency staff provision,19.05.2020,5101088834,"-1,522.50",Pertemps Professional Recruitment L,
Manchester City Council,Childrens & Education Services,Third party payments to other Local Authorities,19.05.2020,5101088892,"-2,778.91",Stockport Metropolitan Borough,
Manchester City Council,Hospitality + Trading Services,Vehicle Fuel Costs,19.05.2020,5101088699,"-8,061.54",Carlton Fuels Ltd,
Manchester City Council,Corporate Services,Works and associated costs for Land and Buildings,19.05.2020,5101088878,"-13,972.00",Ramboll UK Limited,
Manchester City Council,Adult Social Care,Third party payments to Health Authority,20.05.2020,5101089051,"337,011.17",Central Mcr Uni Hospital t/a,
Manchester City Council,Manchester Leisure,Grant and subscriptions awarded,20.05.2020,5101089038,"285,914.00",University Of Manchester,
Manchester City Council,Adult Social Care,Rents,20.05.2020,5101088971,"83,386.43",Accommodation Links Ltd,
Manchester City Council,Regeneration Finance,Internal Repairs and Maintenance for buildings,20.05.2020,5101088978,"40,631.03",ENGIE Services Ltd,
Manchester City Council,Adult Social Care,Third party payments to Health Authority,20.05.2020,5101089051,"20,833.34",Central Mcr Uni Hospital t/a,
Manchester City Council,Adult Social Care,Third party payments relating to Voluntary Organisations,20.05.2020,5101089018,"16,410.27",Manchester People First,
Manchester City Council,Chief Executives,Compensation Payments,20.05.2020,1906867957,"15,475.00",Liberata,
Manchester City Council,Adult Social Care,Third party payments to Health Authority,20.05.2020,5101089051,"15,371.75",Central Mcr Uni Hospital t/a,
Manchester City Council,Adult Social Care,Third party payments relating to Voluntary Organisations,20.05.2020,5101088959,"13,485.98",The Shaw Centre,
Manchester City Council,Childrens & Education Services,Legal Fees,20.05.2020,1906867959,"13,370.00",Liberata,
Manchester City Council,Adult Social Care,Security,20.05.2020,5101088374,"11,256.00",UNIQUE SPECIALIST SERVICES,
Manchester City Council,Chief Executives,Funeral and coroner related services,20.05.2020,5101089026,"10,291.20",Kane Funeral Services,
Manchester City Council,Hospitality + Trading Services,Compensation Payments,20.05.2020,1906866578,"8,723.60",CLATTERBRIDGE PRIVATE CLINIC,
Manchester City Council,Childrens & Education Services,Legal Fees,20.05.2020,1906867958,"8,220.00",Liberata,
Manchester City Council,Housing General Fund,Building Works,20.05.2020,1906867733,"7,338.81",UPS Building & Maintenance Ltd,
Manchester City Council,Housing General Fund,Building Works,20.05.2020,1906867735,"7,076.78",UPS Building & Maintenance Ltd,
Manchester City Council,Childrens & Education Services,Legal Fees,20.05.2020,1906867961,"6,870.00",Liberata,
Manchester City Council,Corporate Services,Professional fees,20.05.2020,5101087313,"6,720.00",Turner & Townsend Cost,
Manchester City Council,Corporate Services,Professional fees,20.05.2020,5101087321,"6,720.00",Turner & Townsend Cost,
Manchester City Council,Adult Social Care,Rents,20.05.2020,5101089097,"6,634.27",Eeven Homes Ltd.,
Manchester City Council,Childrens & Education Services,Payments for services,20.05.2020,5101088967,"6,501.26",Cumberland & Westmorland,
Manchester City Council,Housing General Fund,Building Works,20.05.2020,1906867725,"6,491.00",Stannah Lift Services Ltd,
Manchester City Council,Housing General Fund,Building Works,20.05.2020,1906867727,"6,331.45",Stannah Lift Services Ltd,
Manchester City Council,Housing General Fund,Building Works,20.05.2020,1906867731,"6,095.00",Stannah Lift Services Ltd,
Manchester City Council,Chief Executives,Printing,20.05.2020,5101089086,"5,850.00",Astra Signs,
Manchester City Council,Childrens & Education Services,Third party payments to other Local Authorities,20.05.2020,5101088982,"5,807.08",New Bridge School,
Manchester City Council,Housing General Fund,Building Works,20.05.2020,1906867732,"5,786.00",Stannah Lift Services Ltd,
Manchester City Council,Housing General Fund,Building Works,20.05.2020,1906867734,"5,528.00",UPS Building & Maintenance Ltd,
Manchester City Council,Corporate Services,Storage Costs,20.05.2020,5101088973,"5,455.21",Oasis UK formerly Box-It (NW),
Manchester City Council,Housing General Fund,Building Works,20.05.2020,1906867726,"5,228.00",Stannah Lift Services Ltd,
Manchester City Council,Childrens & Education Services,Third party payments to other Local Authorities,20.05.2020,5101088976,"4,528.02",Woodfield Special School,
Manchester City Council,Adult Social Care,Carer Support Payments ,20.05.2020,5101088683,"4,451.93",CM2000 Care Management,
Manchester City Council,Chief Executives,Professional fees,20.05.2020,1906864434,"4,262.50",Weightmans LLP Solicitors,
Manchester City Council,Adult Social Care,Third party payments relating to Voluntary Organisations,20.05.2020,5101089037,"4,163.53",Supporting People In Need,
Manchester City Council,Chief Executives,Professional fees,20.05.2020,1906863825,"3,881.25",Weightmans LLP Solicitors,
Manchester City Council,Manchester Leisure,Payments to Sub-Contractors,20.05.2020,5101087716,"3,832.01",Community Security (North West),
Manchester City Council,Corporate Services,Professional fees,20.05.2020,5101087316,"3,720.00",Turner & Townsend Cost,
Manchester City Council,Manchester Leisure,Professional fees,20.05.2020,5101089065,"3,630.54",Community Security (North West),
Manchester City Council,Housing General Fund,Building Works,20.05.2020,1906867730,"3,393.00",Stannah Lift Services Ltd,
Manchester City Council,Chief Executives,Professional fees,20.05.2020,1906863816,"3,300.00",Weightmans LLP Solicitors,
Manchester City Council,Adult Social Care,Third party payments to Health Authority,20.05.2020,5101089051,"3,040.58",Central Mcr Uni Hospital t/a,
Manchester City Council,Adult Social Care,Rents,20.05.2020,5101088960,"2,999.40",Mosscare St Vincent's Housing,
Manchester City Council,Corporate Services,Professional fees,20.05.2020,5101087308,"2,940.00",Turner & Townsend Cost,
Manchester City Council,Housing General Fund,Building Works,20.05.2020,1906867729,"2,853.00",Hoist & Shower Chair Company,
Manchester City Council,Housing General Fund,Building Works,20.05.2020,1906867737,"2,813.00",Stannah Lift Services Ltd,
Manchester City Council,Chief Executives,Compensation Payments,20.05.2020,1906863785,"2,500.00",Gray's Inn Square Chambers Ltd,
Manchester City Council,Adult Social Care,Training and Development,20.05.2020,5101089075,"2,475.00",Telecare Services Association,
Manchester City Council,Chief Executives,Professional fees,20.05.2020,1906863821,"2,443.75",Weightmans LLP Solicitors,
Manchester City Council,Chief Executives,Professional fees,20.05.2020,1906864436,"2,331.25",Weightmans LLP Solicitors,
Manchester City Council,Childrens & Education Services,Third party payments to other Local Authorities,20.05.2020,5101089016,"2,313.68",New Bridge School,
Manchester City Council,Chief Executives,Professional fees,20.05.2020,1906864182,"2,267.20",Weightmans LLP Solicitors,
Manchester City Council,Childrens & Education Services,Payments for services,20.05.2020,5101088968,"2,199.38",Oldham Sixth Form College,
Manchester City Council,Chief Executives,Legal Fees,20.05.2020,1906867962,"2,142.00",Liberata,
Manchester City Council,Chief Executives,Professional fees,20.05.2020,1906863828,"2,131.25",Weightmans LLP Solicitors,
Manchester City Council,Housing General Fund,Building Works,20.05.2020,1906867728,"2,095.00",Hoist & Shower Chair Company,
Manchester City Council,Chief Executives,Funeral and coroner related services,20.05.2020,5101089068,"2,043.00",Uni Hospital of South Mcr,
Manchester City Council,Manchester Leisure,Payments to Sub-Contractors,20.05.2020,5101089083,"1,942.50",Groundwork Landscapes Ltd,
Manchester City Council,Chief Executives,Professional fees,20.05.2020,1906863824,"1,889.57",Weightmans LLP Solicitors,
Manchester City Council,Adult Social Care,Training and Development,20.05.2020,5101089073,"1,880.00",Telecare Services Association,
Manchester City Council,Chief Executives,Printing,20.05.2020,5101089085,"1,756.00",Astra Signs,
Manchester City Council,Childrens & Education Services,Payments for services,20.05.2020,5101088993,"1,662.02",Apollo Home Healthcare Ltd,
Manchester City Council,Adult Social Care,Payments for services,20.05.2020,5101089081,"1,631.00",Turning Point,
Manchester City Council,Corporate Services,Professional fees,20.05.2020,5101087310,"1,627.50",Turner & Townsend Cost,
Manchester City Council,Chief Executives,Professional fees,20.05.2020,1906863820,"1,625.00",Weightmans LLP Solicitors,
Manchester City Council,Chief Executives,Professional fees,20.05.2020,1906863827,"1,612.50",Weightmans LLP Solicitors,
Manchester City Council,Chief Executives,Professional fees,20.05.2020,1906864183,"1,512.50",Weightmans LLP Solicitors,
Manchester City Council,Chief Executives,Third party payments relating to Voluntary Organisations,20.05.2020,5101088746,"1,500.00",Northern Soul UK Limited,
Manchester City Council,Chief Executives,Third party payments relating to Voluntary Organisations,20.05.2020,5101088858,"1,500.00",Northern Soul UK Limited,
Manchester City Council,Chief Executives,Examination Fees,20.05.2020,5101089066,"1,470.00",Uni Hospital of South Mcr,
Manchester City Council,Leasing,Professional fees,20.05.2020,5101089094,"1,375.00",Arlingclose Ltd,
Manchester City Council,Childrens & Education Services,Foster Payments,20.05.2020,5101088975,"1,327.75",Foster Talk,
Manchester City Council,Manchester Leisure,Payments to Sub-Contractors,20.05.2020,5101089084,"1,290.00",Groundwork Landscapes Ltd,
Manchester City Council,Hospitality + Trading Services,Hire of Machinery,20.05.2020,5101089040,"1,284.00",Gibsons Garden Machinery Limited,
Manchester City Council,Chief Executives,Examination Fees,20.05.2020,5101089033,"1,272.00",Redacted Personal Information,
Manchester City Council,Chief Executives,Professional fees,20.05.2020,1906863822,"1,193.75",Weightmans LLP Solicitors,
Manchester City Council,Adult Social Care,Rents,20.05.2020,1906867954,"1,170.00",Redacted Personal Information,
Manchester City Council,Hospitality + Trading Services,Hire of Machinery,20.05.2020,5101089049,"1,144.00",Gibsons Garden Machinery Limited,
Manchester City Council,Adult Social Care,Cleaning Equipment and Materials,20.05.2020,5101089069,"1,120.00",Banner Group Limited,
Manchester City Council,Hospitality + Trading Services,Hire of Machinery,20.05.2020,5101089046,"1,120.00",Gibsons Garden Machinery Limited,
Manchester City Council,Manchester Leisure,Publications,20.05.2020,5101089096,"1,120.00",Thompson Reuters,
Manchester City Council,Chief Executives,Funeral and coroner related services,20.05.2020,5101089033,"1,107.60",Redacted Personal Information,
Manchester City Council,Adult Social Care,Rents,20.05.2020,1906867953,"1,000.00",Redacted Personal Information,
Manchester City Council,Hospitality + Trading Services,Hire of Machinery,20.05.2020,5101089050,992.00,Gibsons Garden Machinery Limited,
Manchester City Council,Chief Executives,Agency staff provision,20.05.2020,1906864181,960.00,Isherwood Legal Ltd,
Manchester City Council,Adult Social Care,Rents,20.05.2020,1906867955,900.00,Redacted Personal Information,
Manchester City Council,Chief Executives,Agency staff provision,20.05.2020,1906864201,880.00,Isherwood Legal Ltd,
Manchester City Council,Chief Executives,Examination Fees,20.05.2020,5101089003,825.00,Eurofins Forensic Services,
Manchester City Council,Chief Executives,Funeral and coroner related services,20.05.2020,5101089025,822.00,The Pennine Acute Hospital Nhs Trus,
Manchester City Council,Adult Social Care,Training and Development,20.05.2020,5101089039,800.00,University Of Manchester,
Manchester City Council,Adult Social Care,Training and Development,20.05.2020,5101089043,800.00,University Of Manchester,
Manchester City Council,Adult Social Care,Training and Development,20.05.2020,5101089045,800.00,University Of Manchester,
Manchester City Council,Chief Executives,Professional fees,20.05.2020,1906864437,800.00,Redacted Personal Information,
Manchester City Council,Chief Executives,Professional fees,20.05.2020,1906864180,787.50,Weightmans LLP Solicitors,
Manchester City Council,Chief Executives,Fees,20.05.2020,1906863819,760.00,Isherwood Legal Ltd,
Manchester City Council,Chief Executives,Examination Fees,20.05.2020,5101089004,760.00,Eurofins Forensic Services,
Manchester City Council,Childrens & Education Services,Professional fees,20.05.2020,1906855696,750.00,Plowden Facilities Ltd,
Manchester City Council,Childrens & Education Services,Professional fees,20.05.2020,5101086983,699.00,Cellmark,
Manchester City Council,Chief Executives,Professional fees,20.05.2020,1906864432,693.75,Weightmans LLP Solicitors,
Manchester City Council,Childrens & Education Services,Professional fees,20.05.2020,1906856872,656.25,Redacted Personal Information,
Manchester City Council,Chief Executives,Vehicle Hire Costs,20.05.2020,5101089155,642.42,Manchester Van Hire Ltd,
Manchester City Council,Childrens & Education Services,Professional fees,20.05.2020,5101086824,634.00,Cellmark,
Manchester City Council,Childrens & Education Services,Professional fees,20.05.2020,1906855071,606.25,St Johns Buildings-Barristers,
Manchester City Council,Childrens & Education Services,Professional fees,20.05.2020,1906856769,600.00,Redacted Personal Information,
Manchester City Council,Chief Executives,Professional fees,20.05.2020,1906863776,600.00,Weightmans LLP Solicitors,
Manchester City Council,Environment and Operations,Professional fees,20.05.2020,5101089020,595.00,Solution Talk LLP,
Manchester City Council,Manchester Leisure,Refuse Collection,20.05.2020,5101089010,571.53,Vetspeed Ltd t/a Novus Environmenta,
Manchester City Council,Childrens & Education Services,Professional fees,20.05.2020,5101086986,504.00,Cellmark,
Manchester City Council,Childrens & Education Services,Professional fees,20.05.2020,5101086988,504.00,Cellmark,
Manchester City Council,Childrens & Education Services,Payments for services,20.05.2020,5101089001,500.00,Prospero Teaching,
Manchester City Council,Leasing,Professional fees,20.05.2020,5101089089,-687.50,Arlingclose Ltd,
Manchester City Council,Leasing,Professional fees,20.05.2020,5101089093,-687.50,Arlingclose Ltd,
Manchester City Council,Chief Executives,Printing,20.05.2020,5101089080,"-1,756.00",Astra Signs,
Manchester City Council,Adult Social Care,Third party payments to Health Authority,21.05.2020,5101089056,"888,083.67",Central Mcr Uni Hospital t/a,
Manchester City Council,Housing Revenue Account,Private Finance and Public Private partnership initiatives,21.05.2020,5101089216,"688,678.26",S4B Limited,
Manchester City Council,Adult Social Care,Third party payments to Health Authority,21.05.2020,5101089053,"477,595.67",Central Mcr Uni Hospital t/a,
Manchester City Council,Environment and Operations,Construction Works,21.05.2020,5101089119,"376,945.25",Amey Highways Lighting (Manchester),
Manchester City Council,Environment and Operations,Construction Works,21.05.2020,5101088836,"133,948.70",Colas Limited,
Manchester City Council,Adult Social Care,Third party payments relating to Voluntary Organisations,21.05.2020,5101089129,"100,000.00",The Depaul Trust,
Manchester City Council,Adult Social Care,Third party payments to Health Authority,21.05.2020,5101089047,"83,166.66",Central Mcr Uni Hospital t/a,
Manchester City Council,Chief Executives,ICT Support & Maintenance,21.05.2020,5101086750,"82,140.00",Computacenter (UK) Ltd,
Manchester City Council,Childrens & Education Services,Private Finance and Public Private partnership initiatives,21.05.2020,5101089138,"76,605.37",NU3PS,
Manchester City Council,Childrens & Education Services,CORONA VIRUS D-19,21.05.2020,5101089194,"60,234.20",Westfield Minibuses,
Manchester City Council,Adult Social Care,Third party payments to Health Authority,21.05.2020,5101089052,"46,262.84",Central Mcr Uni Hospital t/a,
Manchester City Council,Environment and Operations,Construction Works,21.05.2020,5101089013,"44,141.32",J.Hopkins (Contractors) Ltd.,
Manchester City Council,Adult Social Care,Carer Support Payments ,21.05.2020,5101086035,"41,083.71",Homecare Support,
Manchester City Council,Adult Social Care,Carer Support Payments ,21.05.2020,5101089116,"41,083.71",Homecare Support,
Manchester City Council,Adult Social Care,Carer Support Payments ,21.05.2020,5101089180,"41,083.71",Homecare Support,
Manchester City Council,Adult Social Care,Carer Support Payments ,21.05.2020,5101089181,"41,083.71",Homecare Support,
Manchester City Council,Manchester Leisure,Special Events,21.05.2020,5101089148,"35,000.00",Walk The Plank Ltd,
Manchester City Council,Hospitality + Trading Services,Electricity,21.05.2020,1906868767,"31,711.98",Npower,
Manchester City Council,Regeneration Finance,Electricity,21.05.2020,1906868799,"28,326.00",Npower,
Manchester City Council,Environment and Operations,Construction Works,21.05.2020,5101089015,"27,813.81",J.Hopkins (Contractors) Ltd.,
Manchester City Council,Regeneration Finance,Electricity,21.05.2020,1906868791,"22,491.33",Npower,
Manchester City Council,Regeneration Finance,Water Service Charges - Metered,21.05.2020,1906868688,"21,857.36",Water Plus Limited,
Manchester City Council,Regeneration Finance,Professional fees,21.05.2020,5101089234,"21,510.00",Faithful & Gould Ltd,
Manchester City Council,Corporate Services,Fees,21.05.2020,1906863814,"13,714.10",JBW Group Ltd.,
Manchester City Council,Environment and Operations,Construction Works,21.05.2020,5101087725,"13,424.65",Trafford M B C,
Manchester City Council,Regeneration Finance,Electricity,21.05.2020,1906868765,"13,419.42",Npower,
Manchester City Council,Adult Social Care,Bed and Breakfast Accommodation Expenditure,21.05.2020,5101088838,"12,600.00",Redacted Personal Information,
Manchester City Council,Adult Social Care,Bed and Breakfast Accommodation Expenditure,21.05.2020,5101088839,"12,600.00",Redacted Personal Information,
Manchester City Council,Adult Social Care,Bed and Breakfast Accommodation Expenditure,21.05.2020,5101089237,"12,600.00",Redacted Personal Information,
Manchester City Council,Adult Social Care,Bed and Breakfast Accommodation Expenditure,21.05.2020,5101089214,"12,228.00",Redacted Personal Information,
Manchester City Council,Corporate Services,Fees,21.05.2020,1906852129,"12,057.32",Rundles,
Manchester City Council,Manchester Leisure,Electricity,21.05.2020,1906868824,"11,894.46",Npower,
Manchester City Council,Chief Executives,Printing,21.05.2020,5101089057,"11,532.00",WDM,
Manchester City Council,Regeneration Finance,Water Service Charges - Metered,21.05.2020,1906868485,"11,503.81",Water Plus Limited,
Manchester City Council,Regeneration Finance,Electricity,21.05.2020,1906868702,"11,022.45",Npower,
Manchester City Council,Regeneration Finance,Electricity,21.05.2020,1906868742,"10,793.19",Npower,
Manchester City Council,Adult Social Care,Bed and Breakfast Accommodation Expenditure,21.05.2020,5101089212,"10,587.00",Redacted Personal Information,
Manchester City Council,Manchester Leisure,Payments to Sub-Contractors,21.05.2020,5101089154,"9,562.00",Greenfingers Landscape Ltd,
Manchester City Council,Manchester Leisure,Electricity,21.05.2020,1906868696,"8,315.28",Npower,
Manchester City Council,Regeneration Finance,Electricity,21.05.2020,1906868798,"8,040.40",Npower,
Manchester City Council,Corporate Services,Works and associated costs for Land and Buildings,21.05.2020,5101089224,"7,968.25",ISG Construction Limited,
Manchester City Council,Manchester Leisure,Special Events,21.05.2020,5101089152,"7,917.60",Walk The Plank Ltd,
Manchester City Council,Regeneration Finance,Electricity,21.05.2020,1906868722,"7,584.86",Npower,
Manchester City Council,Regeneration Finance,Electricity,21.05.2020,1906868800,"7,401.86",Npower,
Manchester City Council,Adult Social Care,Bed and Breakfast Accommodation Expenditure,21.05.2020,5101089217,"7,190.00",Hala Guest House,
Manchester City Council,Manchester Leisure,Grant and subscriptions awarded,21.05.2020,5101089227,"7,000.00",ArtReach Trust Ltd,
Manchester City Council,Adult Social Care,Rents,21.05.2020,5101089236,"6,634.27",Eeven Homes Ltd.,
Manchester City Council,Hospitality + Trading Services,Electricity,21.05.2020,1906868708,"6,438.56",Npower,
Manchester City Council,Adult Social Care,Supporting People Payments,21.05.2020,5101088578,"6,259.74",Saheli,
Manchester City Council,Adult Social Care,Supporting People Payments,21.05.2020,5101088575,"6,259.66",Saheli,
Manchester City Council,Highways Services,Professional fees,21.05.2020,5101088941,"6,094.50",Waterman Aspen Ltd,
Manchester City Council,Regeneration Finance,Professional fees,21.05.2020,5101089219,"6,000.00",Planit,
Manchester City Council,Highways Services,Payments to Sub-Contractors,21.05.2020,5101088452,"5,940.30",Rosgal Ltd,
Manchester City Council,Regeneration Finance,Water Service Charges - Metered,21.05.2020,1906868611,"5,804.42",Water Plus Limited,
Manchester City Council,Childrens & Education Services,CORONA VIRUS D-19,21.05.2020,5101087481,"5,772.00",Elite Transport,
Manchester City Council,Regeneration Finance,Electricity,21.05.2020,1906868728,"5,607.56",Npower,
Manchester City Council,Manchester Leisure,Gas,21.05.2020,1906868816,"5,182.46",Total Gas & Power,
Manchester City Council,Manchester Leisure,Electricity,21.05.2020,1906868697,"5,003.61",Npower,
Manchester City Council,Regeneration Finance,Water Service Charges - Metered,21.05.2020,1906868613,"5,002.93",Water Plus Limited,
Manchester City Council,Regeneration Finance,Electricity,21.05.2020,1906868797,"4,712.39",Npower,
Manchester City Council,Regeneration Finance,Water Service Charges - Metered,21.05.2020,1906868651,"4,679.61",Water Plus Limited,
Manchester City Council,Hospitality + Trading Services,Water Service Charges - Metered,21.05.2020,1906868568,"4,662.61",Water Plus Limited,
Manchester City Council,Regeneration Finance,Water Service Charges - Metered,21.05.2020,1906868506,"4,514.87",Water Plus Limited,
Manchester City Council,Chief Executives,Agency staff provision,21.05.2020,5101089145,"4,509.12",Search Consultancy Ltd,
Manchester City Council,Adult Social Care,Supporting People Payments,21.05.2020,5101089187,"4,351.50",Turning Point Services,
Manchester City Council,Childrens & Education Services,Training and Development,21.05.2020,5101089113,"3,980.00",Family Links,
Manchester City Council,Housing Revenue Account,Council Dwelling Adaptations,21.05.2020,5101088894,"3,883.78",Seddon Construction Ltd,
Manchester City Council,Regeneration Finance,Water Service Charges - Metered,21.05.2020,1906868612,"3,728.82",Water Plus Limited,
Manchester City Council,Manchester Leisure,Library Materials Acquisition,21.05.2020,1906864064,"3,570.00",British Standards Institution,
Manchester City Council,Manchester Leisure,Electricity,21.05.2020,1906868693,"3,566.41",Npower,
Manchester City Council,Highways Services,Professional fees,21.05.2020,5101088955,"3,547.50",Waterman Aspen Ltd,
Manchester City Council,Regeneration Finance,Electricity,21.05.2020,1906868704,"3,497.39",Npower,
Manchester City Council,Corporate Services,Electricity,21.05.2020,1906868804,"3,487.09",Npower,
Manchester City Council,Childrens & Education Services,Third party payments to other Local Authorities,21.05.2020,5101088584,"3,059.00",The Albion Academy,
Manchester City Council,Regeneration Finance,Water Service Charges - Metered,21.05.2020,1906868515,"3,006.90",Water Plus Limited,
Manchester City Council,Regeneration Finance,Electricity,21.05.2020,1906868745,"2,917.77",Npower,
Manchester City Council,Adult Social Care,Equipment,21.05.2020,5101089200,"2,900.00",Mangar International Ltd,
Manchester City Council,Regeneration Finance,Electricity,21.05.2020,1906868744,"2,879.41",Npower,
Manchester City Council,Manchester Leisure,Electricity,21.05.2020,1906868822,"2,641.93",Npower,
Manchester City Council,Regeneration Finance,Water Service Charges - Metered,21.05.2020,1906868279,"2,632.56",Water Plus Limited,
Manchester City Council,Regeneration Finance,Electricity,21.05.2020,1906868769,"2,522.04",Npower,
Manchester City Council,Adult Social Care,Third party payments to Health Authority,21.05.2020,5101089054,"2,500.00",Central Mcr Uni Hospital t/a,
Manchester City Council,Regeneration Finance,Water Service Charges - Metered,21.05.2020,1906868677,"2,484.29",Water Plus Limited,
Manchester City Council,Hospitality + Trading Services,Water Service Charges - Metered,21.05.2020,1906868366,"2,465.49",Water Plus Limited,
Manchester City Council,Regeneration Finance,Electricity,21.05.2020,1906868710,"2,234.54",Npower,
Manchester City Council,Chief Executives,Compensation Payments,21.05.2020,5101088772,"2,196.00",Eversheds Llp,
Manchester City Council,Highways Services,Professional fees,21.05.2020,5101088952,"2,080.00",Waterman Aspen Ltd,
Manchester City Council,Manchester Leisure,Electricity,21.05.2020,1906868825,"2,074.80",Npower,
Manchester City Council,Childrens & Education Services,Professional fees,21.05.2020,5101089143,"2,059.00",Ofsted,
Manchester City Council,Regeneration Finance,Electricity,21.05.2020,1906868735,"2,046.83",Npower,
Manchester City Council,Regeneration Finance,Water Service Charges - Metered,21.05.2020,1906868281,"2,041.88",Water Plus Limited,
Manchester City Council,Regeneration Finance,Water Service Charges - Metered,21.05.2020,1906868653,"2,023.53",Water Plus Limited,
Manchester City Council,Regeneration Finance,Water Service Charges - Metered,21.05.2020,1906868498,"1,993.75",Water Plus Limited,
Manchester City Council,Highways Services,Professional fees,21.05.2020,5101088951,"1,990.00",Waterman Aspen Ltd,
Manchester City Council,Childrens & Education Services,Third party payments to other Local Authorities,21.05.2020,5101089196,"1,985.00",Blessed John Henry Newman,
Manchester City Council,Regeneration Finance,Landline Telephone Charges,21.05.2020,1906867945,"1,977.80",Bt Featurenet Payment Centre,
Manchester City Council,Regeneration Finance,Electricity,21.05.2020,1906868762,"1,969.22",Npower,
Manchester City Council,Regeneration Finance,Electricity,21.05.2020,1906868743,"1,966.63",Npower,
Manchester City Council,Highways Services,Professional fees,21.05.2020,5101088957,"1,957.50",Waterman Aspen Ltd,
Manchester City Council,Highways Services,Professional fees,21.05.2020,5101088966,"1,940.00",Waterman Aspen Ltd,
Manchester City Council,Manchester Leisure,Electricity,21.05.2020,1906868698,"1,908.20",Npower,
Manchester City Council,Corporate Services,Water Service Charges - Metered,21.05.2020,1906868663,"1,860.59",Water Plus Limited,
Manchester City Council,Manchester Leisure,Electricity,21.05.2020,1906868823,"1,846.06",Npower,
Manchester City Council,Childrens & Education Services,Payments for services,21.05.2020,5101088783,"1,796.33",Myerscough College,
Manchester City Council,Highways Services,Professional fees,21.05.2020,5101088964,"1,738.00",Waterman Aspen Ltd,
Manchester City Council,Manchester Leisure,Electricity,21.05.2020,1906868821,"1,716.19",Npower,
Manchester City Council,Regeneration Finance,Water Service Charges - Metered,21.05.2020,1906868675,"1,704.36",Water Plus Limited,
Manchester City Council,Regeneration Finance,Electricity,21.05.2020,1906868729,"1,664.89",Npower,
Manchester City Council,Highways Services,Professional fees,21.05.2020,5101088965,"1,660.00",Waterman Aspen Ltd,
Manchester City Council,Regeneration Finance,Water Service Charges - Metered,21.05.2020,1906868500,"1,634.93",Water Plus Limited,
Manchester City Council,Hospitality + Trading Services,Electricity,21.05.2020,1906868727,"1,618.99",Npower,
Manchester City Council,Corporate Services,Works and associated costs for Land and Buildings,21.05.2020,5101089199,"1,610.00",Crookes Walker Consulting Ltd,
Manchester City Council,Chief Executives,Agency staff provision,21.05.2020,5101089140,"1,555.20",Ashberry Recruitment Ltd,
Manchester City Council,Highways Services,Electricity,21.05.2020,1906868818,"1,517.24",Scottish & Southern Energy Plc,
Manchester City Council,Manchester Leisure,Subsistence and Conference Expenses,21.05.2020,5101089231,"1,507.00",Fabulous Fan Fayre Limited,
Manchester City Council,Regeneration Finance,Professional fees,21.05.2020,5101089156,"1,500.00",GVA Grimley Ltd,
Manchester City Council,Manchester Leisure,Gas,21.05.2020,1906868814,"1,499.40",Total Gas & Power,
Manchester City Council,Highways Services,Water Service Charges - Metered,21.05.2020,1906868586,"1,465.84",Water Plus Limited,
Manchester City Council,Highways Services,Professional fees,21.05.2020,5101088945,"1,451.25",Waterman Aspen Ltd,
Manchester City Council,Highways Services,Professional fees,21.05.2020,5101088935,"1,440.00",Waterman Aspen Ltd,
Manchester City Council,Regeneration Finance,Electricity,21.05.2020,1906868741,"1,435.29",Npower,
Manchester City Council,Regeneration Finance,Electricity,21.05.2020,1906868732,"1,392.14",Npower,
Manchester City Council,Hospitality + Trading Services,Electricity,21.05.2020,1906868808,"1,360.11",Npower,
Manchester City Council,Manchester Leisure,Equipment,21.05.2020,5101089139,"1,350.00",Groundwork Landscapes Ltd,
Manchester City Council,Regeneration Finance,Electricity,21.05.2020,1906868701,"1,341.61",Npower,
Manchester City Council,Regeneration Finance,Electricity,21.05.2020,1906868739,"1,329.63",Npower,
Manchester City Council,Highways Services,Professional fees,21.05.2020,5101088947,"1,313.50",Waterman Aspen Ltd,
Manchester City Council,Adult Social Care,Electricity,21.05.2020,1906868807,"1,250.22",Npower,
Manchester City Council,Regeneration Finance,Water Service Charges - Metered,21.05.2020,1906868685,"1,249.01",Water Plus Limited,
Manchester City Council,Regeneration Finance,Electricity,21.05.2020,1906868730,"1,244.72",Npower,
Manchester City Council,Regeneration Finance,Water Service Charges - Metered,21.05.2020,1906868501,"1,226.20",Water Plus Limited,
Manchester City Council,Regeneration Finance,Water Service Charges - Metered,21.05.2020,1906868496,"1,204.36",Water Plus Limited,
Manchester City Council,Hospitality + Trading Services,Hire of Machinery,21.05.2020,5101088305,"1,183.60",F.R.Sharrock Ltd,
Manchester City Council,Highways Services,Electricity,21.05.2020,1906868775,"1,179.36",Npower,
Manchester City Council,Manchester Leisure,Publications,21.05.2020,1906866572,"1,179.00",4C Europe UK Ltd,
Manchester City Council,Chief Executives,Rents,21.05.2020,5101088129,"1,177.83",Manchester Creative Digital Assets,
Manchester City Council,Adult Social Care,Electricity,21.05.2020,1906868805,"1,169.82",Npower,
Manchester City Council,Regeneration Finance,Water Service Charges - Metered,21.05.2020,1906868592,"1,162.84",Water Plus Limited,
Manchester City Council,Manchester Leisure,Gas,21.05.2020,1906868817,"1,158.32",Total Gas & Power,
Manchester City Council,Corporate Services,Fees,21.05.2020,1906863813,"1,131.85",JBW Group Ltd.,
Manchester City Council,Regeneration Finance,Electricity,21.05.2020,1906868734,"1,100.34",Npower,
Manchester City Council,Environment and Operations,Construction Works,21.05.2020,5101089023,"1,100.00",Singleton Clamp & Partners Ltd,
Manchester City Council,Environment and Operations,Construction Works,21.05.2020,5101089021,"1,100.00",Singleton Clamp & Partners Ltd,
Manchester City Council,Adult Social Care,Electricity,21.05.2020,1906868761,"1,091.93",Npower,
Manchester City Council,Highways Services,Professional fees,21.05.2020,5101088969,"1,080.00",Waterman Aspen Ltd,
Manchester City Council,Childrens & Education Services,Professional fees,21.05.2020,1906866565,"1,070.00",Redacted Personal Information,
Manchester City Council,Regeneration Finance,Water Service Charges - Metered,21.05.2020,1906868470,"1,065.58",Water Plus Limited,
Manchester City Council,Regeneration Finance,Water Service Charges - Metered,21.05.2020,1906868466,"1,055.79",Water Plus Limited,
Manchester City Council,Corporate Services,Electricity,21.05.2020,1906868703,"1,001.23",Npower,
Manchester City Council,Manchester Leisure,Electricity,21.05.2020,1906868695,979.84,Npower,
Manchester City Council,Regeneration Finance,Water Service Charges - Metered,21.05.2020,1906868652,976.03,Water Plus Limited,
Manchester City Council,Regeneration Finance,Water Service Charges - Metered,21.05.2020,1906868416,957.37,Water Plus Limited,
Manchester City Council,Regeneration Finance,Electricity,21.05.2020,1906868717,956.08,Npower,
Manchester City Council,Regeneration Finance,Water Service Charges - Metered,21.05.2020,1906868499,948.51,Water Plus Limited,
Manchester City Council,Regeneration Finance,Water Service Charges - Metered,21.05.2020,1906868536,946.91,Water Plus Limited,
Manchester City Council,Childrens & Education Services,Third party payments relating to Voluntary Organisations,21.05.2020,5101089184,924.40,Just Psychology CIC,
Manchester City Council,Adult Social Care,Electricity,21.05.2020,1906868776,902.67,Npower,
Manchester City Council,Hospitality + Trading Services,Vehicle Hire Costs,21.05.2020,5101089135,896.40,Fleet Dynamic Consultancy Ltd,
Manchester City Council,Childrens & Education Services,Electricity,21.05.2020,1906868787,875.34,Npower,
Manchester City Council,Regeneration Finance,Water Service Charges - Metered,21.05.2020,1906868287,869.95,Water Plus Limited,
Manchester City Council,Manchester Leisure,Gas,21.05.2020,1906868815,863.15,Total Gas & Power,
Manchester City Council,Regeneration Finance,Water Service Charges - Metered,21.05.2020,1906868624,861.07,Water Plus Limited,
Manchester City Council,Regeneration Finance,Water Service Charges - Metered,21.05.2020,1906868488,839.30,Water Plus Limited,
Manchester City Council,Regeneration Finance,Water Service Charges - Metered,21.05.2020,1906868486,836.18,Water Plus Limited,
Manchester City Council,Manchester Leisure,Hire of Equipment,21.05.2020,5101087968,820.00,Universal Tanker Solutions Ltd,
Manchester City Council,Corporate Services,Electricity,21.05.2020,1906868754,818.29,Npower,
Manchester City Council,Highways Services,Professional fees,21.05.2020,5101088949,810.00,Waterman Aspen Ltd,
Manchester City Council,Manchester Leisure,Gas,21.05.2020,1906868813,807.45,Total Gas & Power,
Manchester City Council,Corporate Services,Electricity,21.05.2020,1906868795,804.71,Npower,
Manchester City Council,Corporate Services,Electricity,21.05.2020,1906868757,796.42,Npower,
Manchester City Council,Childrens & Education Services,Electricity,21.05.2020,1906868714,795.79,Npower,
Manchester City Council,Regeneration Finance,Electricity,21.05.2020,1906868763,789.67,Npower,
Manchester City Council,Regeneration Finance,Water Service Charges - Metered,21.05.2020,1906868353,783.06,Water Plus Limited,
Manchester City Council,Regeneration Finance,Electricity,21.05.2020,1906868709,782.00,Npower,
Manchester City Council,Childrens & Education Services,Payments for services,21.05.2020,5101089209,779.94,DHP Care Limited,
Manchester City Council,Childrens & Education Services,Supporting People Payments,21.05.2020,5101089126,776.48,Child Action Northwest,
Manchester City Council,Adult Social Care,Water Service Charges - Metered,21.05.2020,1906868527,774.15,Water Plus Limited,
Manchester City Council,Manchester Leisure,Electricity,21.05.2020,1906868699,772.66,Npower,
Manchester City Council,Regeneration Finance,Electricity,21.05.2020,1906868733,766.84,Npower,
Manchester City Council,Regeneration Finance,Electricity,21.05.2020,1906868794,763.00,Npower,
Manchester City Council,Adult Social Care,Supporting People Payments,21.05.2020,5101089203,758.33,Albert Kennedy Trust,
Manchester City Council,Adult Social Care,Supporting People Payments,21.05.2020,5101089126,749.90,Child Action Northwest,
Manchester City Council,Childrens & Education Services,Water Service Charges - Metered,21.05.2020,1906868674,747.87,Water Plus Limited,
Manchester City Council,Regeneration Finance,Water Service Charges - Metered,21.05.2020,1906868494,745.71,Water Plus Limited,
Manchester City Council,Highways Services,Electricity,21.05.2020,1906868713,737.27,Npower,
Manchester City Council,Corporate Services,Electricity,21.05.2020,1906868756,735.77,Npower,
Manchester City Council,Regeneration Finance,Water Service Charges - Metered,21.05.2020,1906868395,732.13,Water Plus Limited,
Manchester City Council,Regeneration Finance,Water Service Charges - Metered,21.05.2020,1906868465,725.74,Water Plus Limited,
Manchester City Council,Regeneration Finance,Water Service Charges - Metered,21.05.2020,1906868417,725.15,Water Plus Limited,
Manchester City Council,Regeneration Finance,Water Service Charges - Metered,21.05.2020,1906868462,722.19,Water Plus Limited,
Manchester City Council,Regeneration Finance,Water Service Charges - Metered,21.05.2020,1906868489,711.39,Water Plus Limited,
Manchester City Council,Manchester Leisure,Electricity,21.05.2020,1906868694,704.71,Npower,
Manchester City Council,Corporate Services,Electricity,21.05.2020,1906868719,704.28,Npower,
Manchester City Council,Corporate Services,Electricity,21.05.2020,1906868783,703.39,Npower,
Manchester City Council,Manchester Leisure,Hire of Equipment,21.05.2020,5101088023,700.00,Universal Tanker Solutions Ltd,
Manchester City Council,Childrens & Education Services,Water Service Charges - Metered,21.05.2020,1906868441,691.63,Water Plus Limited,
Manchester City Council,Regeneration Finance,Water Service Charges - Metered,21.05.2020,1906868497,689.54,Water Plus Limited,
